Council Name,Date,TransNo,Amount � (Excl VAT),Supplier name,Supplier Category,Expense Area,Expense Type,Expense Code
Royal Borough of Kingston,27/10/2023,70058014,"1,950.00",3SPIRIT ENTERPRISE UK LTD,TRAINING,Adult Social Care & Health,Staff Development And Training,A15022
Royal Borough of Kingston,23/11/2023,90283645,"1,375.00",REDACTED - PERSONAL DATA,PLS LANDLORDS,Place,PSL Payments To Landlords,A22031
Royal Borough of Kingston,23/11/2023,90283695,"1,375.00",REDACTED - PERSONAL DATA,PLS LANDLORDS,Place,PSL Payments To Landlords,A22031
Royal Borough of Kingston,02/11/2023,70058018,595.00,ALAN GREENWOOD AND SONS,LEGAL & PROFESSIONAL SERVICES,Adult Social Care & Health,Professional Fees,A44066
Royal Borough of Kingston,15/11/2023,70058745,677.00,ALAN GREENWOOD AND SONS,LEGAL & PROFESSIONAL SERVICES,Adult Social Care & Health,Professional Fees,A44066
Royal Borough of Kingston,20/11/2023,70059085,677.00,ALAN GREENWOOD AND SONS,LEGAL & PROFESSIONAL SERVICES,Adult Social Care & Health,Professional Fees,A44066
Royal Borough of Kingston,23/11/2023,90283544,"1,097.00",REDACTED - PERSONAL DATA,PLS LANDLORDS,Place,PSL Payments To Landlords,A22031
Royal Borough of Kingston,23/11/2023,90283600,"1,125.00",REDACTED - PERSONAL DATA,PLS LANDLORDS,Place,PSL Payments To Landlords,A22031
Royal Borough of Kingston,23/11/2023,90283685,"2,300.00",REDACTED - PERSONAL DATA,PLS LANDLORDS,Place,PSL Payments To Landlords,A22031
Royal Borough of Kingston,23/11/2023,90283686,"2,300.00",REDACTED - PERSONAL DATA,PLS LANDLORDS,Place,PSL Payments To Landlords,A22031
Royal Borough of Kingston,23/11/2023,90283687,"2,300.00",REDACTED - PERSONAL DATA,PLS LANDLORDS,Place,PSL Payments To Landlords,A22031
Royal Borough of Kingston,23/11/2023,90283842,"2,300.00",REDACTED - PERSONAL DATA,PLS LANDLORDS,Place,PSL Payments To Landlords,A22031
Royal Borough of Kingston,23/11/2023,90283641,993.34,REDACTED - PERSONAL DATA,PLS LANDLORDS,Place,PSL Payments To Landlords,A22031
Royal Borough of Kingston,01/05/2023,90284028,"7,885.71",A&R Care Ltd,SOCIAL SERVICES RESIDENTIAL,Adult Social Care & Health,Independent Placements,A56006
Royal Borough of Kingston,01/05/2023,90284321,"4,800.00",A&R Care Ltd,SOCIAL SERVICES RESIDENTIAL,Adult Social Care & Health,Independent Placements,A56006
Royal Borough of Kingston,14/11/2023,90281157,"2,352.00",ABACUS PRE-SCHOOL,ACADEMIC INSTNS - OTHER,Schools,Early Years Contingency,A60030
Royal Borough of Kingston,14/11/2023,90281210,861.00,ABACUS PRE-SCHOOL,ACADEMIC INSTNS - OTHER,Schools,Early Years Contingency,A60030
Royal Borough of Kingston,01/11/2023,90284214,"5,142.86",ABBEY 14LIMITED,SOCIAL SERVICES RESIDENTIAL,Adult Social Care & Health,Independent Placements,A56006
Royal Borough of Kingston,01/11/2023,90284037,"4,027.07",ABBEYFIELD,SOCIAL SERVICES RESIDENTIAL,Adult Social Care & Health,Independent Placements,A56006
Royal Borough of Kingston,01/11/2023,90284050,"3,740.40",ABBEYFIELD,SOCIAL SERVICES RESIDENTIAL,Adult Social Care & Health,Independent Placements,A56006
Royal Borough of Kingston,01/11/2023,90284053,"3,740.40",ABBEYFIELD,SOCIAL SERVICES RESIDENTIAL,Adult Social Care & Health,Independent Placements,A56006
Royal Borough of Kingston,01/11/2023,90284058,"5,066.79",ABBEYFIELD,SOCIAL SERVICES RESIDENTIAL,Adult Social Care & Health,Independent Placements,A56006
Royal Borough of Kingston,01/11/2023,90284061,"4,027.07",ABBEYFIELD,SOCIAL SERVICES RESIDENTIAL,Adult Social Care & Health,Independent Placements,A56006
Royal Borough of Kingston,01/11/2023,90284069,"4,027.07",ABBEYFIELD,SOCIAL SERVICES RESIDENTIAL,Adult Social Care & Health,Independent Placements,A56006
Royal Borough of Kingston,01/11/2023,90284078,"4,027.07",ABBEYFIELD,SOCIAL SERVICES RESIDENTIAL,Adult Social Care & Health,Independent Placements,A56006
Royal Borough of Kingston,01/11/2023,90284079,"4,027.07",ABBEYFIELD,SOCIAL SERVICES RESIDENTIAL,Adult Social Care & Health,Independent Placements,A56006
Royal Borough of Kingston,01/11/2023,90284084,"4,027.07",ABBEYFIELD,SOCIAL SERVICES RESIDENTIAL,Adult Social Care & Health,Independent Placements,A56006
Royal Borough of Kingston,01/11/2023,90284086,"4,027.07",ABBEYFIELD,SOCIAL SERVICES RESIDENTIAL,Adult Social Care & Health,Independent Placements,A56006
Royal Borough of Kingston,01/11/2023,90284090,"5,065.71",ABBEYFIELD,SOCIAL SERVICES RESIDENTIAL,Adult Social Care & Health,Independent Placements,A56006
Royal Borough of Kingston,01/11/2023,90284094,"4,027.07",ABBEYFIELD,SOCIAL SERVICES RESIDENTIAL,Adult Social Care & Health,Independent Placements,A56006
Royal Borough of Kingston,01/11/2023,90284105,"3,740.40",ABBEYFIELD,SOCIAL SERVICES RESIDENTIAL,Adult Social Care & Health,Independent Placements,A56006
Royal Borough of Kingston,01/11/2023,90284111,"2,618.28",ABBEYFIELD,SOCIAL SERVICES RESIDENTIAL,Adult Social Care & Health,Independent Placements,A56006
Royal Borough of Kingston,01/11/2023,90284112,"3,740.40",ABBEYFIELD,SOCIAL SERVICES RESIDENTIAL,Adult Social Care & Health,Independent Placements,A56006
Royal Borough of Kingston,01/11/2023,90284190,"4,027.07",ABBEYFIELD,SOCIAL SERVICES RESIDENTIAL,Adult Social Care & Health,Independent Placements,A56006
Royal Borough of Kingston,01/11/2023,90284219,"4,027.07",ABBEYFIELD,SOCIAL SERVICES RESIDENTIAL,Adult Social Care & Health,Independent Placements,A56006
Royal Borough of Kingston,01/11/2023,90284232,"3,927.43",ABBEYFIELD,SOCIAL SERVICES RESIDENTIAL,Adult Social Care & Health,Independent Placements,A56006
Royal Borough of Kingston,01/11/2023,90284234,"5,066.79",ABBEYFIELD,SOCIAL SERVICES RESIDENTIAL,Adult Social Care & Health,Independent Placements,A56006
Royal Borough of Kingston,01/11/2023,90284243,"4,027.07",ABBEYFIELD,SOCIAL SERVICES RESIDENTIAL,Adult Social Care & Health,Independent Placements,A56006
Royal Borough of Kingston,01/11/2023,90284247,675.57,ABBEYFIELD,SOCIAL SERVICES RESIDENTIAL,Adult Social Care & Health,Independent Placements,A56006
Royal Borough of Kingston,01/11/2023,90284248,"5,235.68",ABBEYFIELD,SOCIAL SERVICES RESIDENTIAL,Adult Social Care & Health,Independent Placements,A56006
Royal Borough of Kingston,01/11/2023,90284249,"5,066.79",ABBEYFIELD,SOCIAL SERVICES RESIDENTIAL,Adult Social Care & Health,Independent Placements,A56006
Royal Borough of Kingston,01/11/2023,90284262,"5,066.79",ABBEYFIELD,SOCIAL SERVICES RESIDENTIAL,Adult Social Care & Health,Independent Placements,A56006
Royal Borough of Kingston,01/11/2023,90284268,"1,182.25",ABBEYFIELD,SOCIAL SERVICES RESIDENTIAL,Adult Social Care & Health,Independent Placements,A56006
Royal Borough of Kingston,01/11/2023,90284320,"-2,618.28",ABBEYFIELD,SOCIAL SERVICES RESIDENTIAL,Adult Social Care & Health,Independent Placements,A56006
Royal Borough of Kingston,01/11/2023,90284322,"2,026.71",ABBEYFIELD,SOCIAL SERVICES RESIDENTIAL,Adult Social Care & Health,Independent Placements,A56006
Royal Borough of Kingston,01/11/2023,90284323,"2,702.29",ABBEYFIELD,SOCIAL SERVICES RESIDENTIAL,Adult Social Care & Health,Independent Placements,A56006
Royal Borough of Kingston,30/11/2023,90285797,"1,688.93",ABBEYFIELD,SOCIAL SERVICES RESIDENTIAL,Adult Social Care & Health,Independent Placements,A56006
Royal Borough of Kingston,30/11/2023,90285798,"1,857.82",ABBEYFIELD,SOCIAL SERVICES RESIDENTIAL,Adult Social Care & Health,Independent Placements,A56006
Royal Borough of Kingston,30/11/2023,90285799,"3,208.96",ABBEYFIELD,SOCIAL SERVICES RESIDENTIAL,Adult Social Care & Health,Independent Placements,A56006
Royal Borough of Kingston,30/11/2023,90285800,"4,729.00",ABBEYFIELD,SOCIAL SERVICES RESIDENTIAL,Adult Social Care & Health,Independent Placements,A56006
Royal Borough of Kingston,30/11/2023,90285801,675.57,ABBEYFIELD,SOCIAL SERVICES RESIDENTIAL,Adult Social Care & Health,Independent Placements,A56006
Royal Borough of Kingston,01/11/2023,90285566,"5,837.74",ABC HILLINGDON LTD,ACCOMMODATION - OTHER,Adult Social Care & Health,Personal Budget - Third Party,A61019
Royal Borough of Kingston,23/11/2023,90283652,990.58,REDACTED - PERSONAL DATA,PLS LANDLORDS,Place,PSL Payments To Landlords,A22031
Royal Borough of Kingston,30/10/2023,70057880,475.00,AC & MS LIMITED,LEGAL & PROFESSIONAL SERVICES,Housing Revenue Account,Asbestos Removal,C10000
Royal Borough of Kingston,09/11/2023,90280943,520.80,ACACIA PRE-SCHOOL,ACADEMIC INSTNS - OTHER,Schools,PVI Providers,A60014
Royal Borough of Kingston,14/11/2023,90281177,"2,257.92",ACACIA PRE-SCHOOL,ACADEMIC INSTNS - OTHER,Schools,Early Years Contingency,A60030
Royal Borough of Kingston,14/11/2023,90281282,"1,964.10",ACACIA PRE-SCHOOL,ACADEMIC INSTNS - OTHER,Schools,Early Years Contingency,A60030
Royal Borough of Kingston,27/10/2023,70057545,"1,080.00",ACCESS INDEPENDENT LIMITED,SOCIAL SERVICES - OTHER,Housing Revenue Account,Buildings - Project Management,C14003
Royal Borough of Kingston,03/11/2023,70058004,"1,662.00",ACCESS INDEPENDENT LIMITED,SOCIAL SERVICES - OTHER,Adult Social Care & Health,Other Private Contractors - Third Party,A56080
Royal Borough of Kingston,08/11/2023,70058223,"1,146.00",ACCESS INDEPENDENT LIMITED,SOCIAL SERVICES - OTHER,Adult Social Care & Health,Other Private Contractors - Third Party,A56080
Royal Borough of Kingston,23/11/2023,90283917,"1,047.00",Accountancy Services (New Malden) Limited,PLS LANDLORDS,Place,PSL Payments To Landlords,A22031
Royal Borough of Kingston,01/11/2023,90284342,"7,197.73",Achieve Together Limited,SOCIAL SERVICES - OTHER,Adult Social Care & Health,Independent Placements,A56006
Royal Borough of Kingston,01/11/2023,90284439,"5,063.31",Achieve Together Limited,SOCIAL SERVICES - OTHER,Adult Social Care & Health,Independent Placements,A56006
Royal Borough of Kingston,01/11/2023,90284445,"2,142.86",Achieve Together Limited,SOCIAL SERVICES - OTHER,Adult Social Care & Health,Independent Placements,A56006
Royal Borough of Kingston,01/11/2023,90284446,"10,897.71",Achieve Together Limited,SOCIAL SERVICES - OTHER,Adult Social Care & Health,Independent Placements,A56006
Royal Borough of Kingston,01/11/2023,90284500,"12,035.49",Achieve Together Limited,SOCIAL SERVICES - OTHER,Adult Social Care & Health,Independent Placements,A56006
Royal Borough of Kingston,03/11/2023,70058158,"6,378,233.70",ACHIEVING FOR CHILDREN LIMITED,LEGAL & PROFESSIONAL SERVICES,Childrens Services,Fixed Childrens Services Contract Strategic,A51019
Royal Borough of Kingston,22/09/2023,70058219,"1,812.00",ACHIEVING FOR CHILDREN LIMITED,LEGAL & PROFESSIONAL SERVICES,Adult Social Care & Health,"Grants, Contributions & Donations",A47005
Royal Borough of Kingston,07/11/2023,70058515,"1,000.00",ACHIEVING FOR CHILDREN LIMITED,LEGAL & PROFESSIONAL SERVICES,Corporate & Communities,"Grants, Contributions & Donations",A47005
Royal Borough of Kingston,14/11/2023,90281178,"3,292.80",Acorn to Oak Nursery and Preschool Ltd,ACADEMIC INSTNS - OTHER,Schools,Early Years Contingency,A60030
Royal Borough of Kingston,14/11/2023,90281284,"2,614.20",Acorn to Oak Nursery and Preschool Ltd,ACADEMIC INSTNS - OTHER,Schools,Early Years Contingency,A60030
Royal Borough of Kingston,03/11/2023,70058225,"1,581.00",ADAM HOTEL MANAGEMENT LTD,ACCOMMODATION BED & BREAKFAST,Place,Bed & Breakfast,A56000
Royal Borough of Kingston,03/11/2023,70058226,"1,085.00",ADAM HOTEL MANAGEMENT LTD,ACCOMMODATION BED & BREAKFAST,Place,Bed & Breakfast,A56000
Royal Borough of Kingston,03/11/2023,70058227,"1,085.00",ADAM HOTEL MANAGEMENT LTD,ACCOMMODATION BED & BREAKFAST,Place,Bed & Breakfast,A56000
Royal Borough of Kingston,03/11/2023,70058228,"1,085.00",ADAM HOTEL MANAGEMENT LTD,ACCOMMODATION BED & BREAKFAST,Place,Bed & Breakfast,A56000
Royal Borough of Kingston,03/11/2023,70058229,"1,581.00",ADAM HOTEL MANAGEMENT LTD,ACCOMMODATION BED & BREAKFAST,Place,Bed & Breakfast,A56000
Royal Borough of Kingston,25/10/2023,70057623,"22,532.22",ADAM HTT LIMITED,TAXI AND COACH HIRE,Adult Social Care & Health,Home To School Transport Taxis,A33016
Royal Borough of Kingston,01/11/2023,70057895,"7,471.82",ADAM HTT LIMITED,TAXI AND COACH HIRE,Adult Social Care & Health,Home To School Transport Taxis,A33016
Royal Borough of Kingston,08/11/2023,70058272,"26,078.24",ADAM HTT LIMITED,TAXI AND COACH HIRE,Adult Social Care & Health,Home To School Transport Taxis,A33016
Royal Borough of Kingston,22/11/2023,70059159,"15,614.98",ADAM HTT LIMITED,TAXI AND COACH HIRE,Adult Social Care & Health,Home To School Transport Taxis,A33016
Royal Borough of Kingston,30/10/2023,70057938,"12,300.00",ADAPTED4 LIMITED,SUNDRY SUPPLIER - HOUSING,Corporate & Communities,Grants Given For Capital Purposes,C20004
Royal Borough of Kingston,25/10/2023,70057600,"3,000.00",ADHD Embrace,SUNDRY SUPPLIER - FINANCE,Corporate & Communities,Payments to Voluntary Organisations,A54005
Royal Borough of Kingston,14/11/2023,90281181,940.80,Event Supplies LTD,ACADEMIC INSTNS - OTHER,Schools,Early Years Contingency,A60030
Royal Borough of Kingston,14/11/2023,90281285,634.20,Event Supplies LTD,ACADEMIC INSTNS - OTHER,Schools,Early Years Contingency,A60030
Royal Borough of Kingston,02/11/2023,70058013,640.00,ADVANCED TREE SERVICES LIMITED,CONSTRUCTION INDUSTRY,Corporate & Communities,Maintenance of trees,A28003
Royal Borough of Kingston,02/11/2023,70058019,"3,600.00",ADVANCED TREE SERVICES LIMITED,CONSTRUCTION INDUSTRY,Corporate & Communities,Maintenance of trees,A28003
Royal Borough of Kingston,02/11/2023,70058071,960.00,ADVANCED TREE SERVICES LIMITED,CONSTRUCTION INDUSTRY,Corporate & Communities,Grounds Maintenance Contract,A28000
Royal Borough of Kingston,07/11/2023,70058159,640.00,ADVANCED TREE SERVICES LIMITED,CONSTRUCTION INDUSTRY,Corporate & Communities,Grounds Maintenance Contract,A28000
Royal Borough of Kingston,07/11/2023,70058165,640.00,ADVANCED TREE SERVICES LIMITED,CONSTRUCTION INDUSTRY,Corporate & Communities,Grounds Maintenance Contract,A28000
Royal Borough of Kingston,13/11/2023,70058498,"2,800.00",ADVANCED TREE SERVICES LIMITED,CONSTRUCTION INDUSTRY,Housing Revenue Account,Maintenance of trees,A28003
Royal Borough of Kingston,13/11/2023,70058499,"1,500.00",ADVANCED TREE SERVICES LIMITED,CONSTRUCTION INDUSTRY,Corporate & Communities,Grounds Maintenance Contract,A28000
Royal Borough of Kingston,13/11/2023,70058500,"1,800.00",ADVANCED TREE SERVICES LIMITED,CONSTRUCTION INDUSTRY,Corporate & Communities,Grounds Maintenance Contract,A28000
Royal Borough of Kingston,13/11/2023,70058673,960.00,ADVANCED TREE SERVICES LIMITED,CONSTRUCTION INDUSTRY,Corporate & Communities,Grounds Maintenance Contract,A28000
Royal Borough of Kingston,26/10/2023,70059115,"49,770.00",ADVANCED TREE SERVICES LIMITED,CONSTRUCTION INDUSTRY,Corporate & Communities,Other Private Contractors - Third Party,A56080
Royal Borough of Kingston,22/11/2023,70059214,"3,255.00",ADVANCED TREE SERVICES LIMITED,CONSTRUCTION INDUSTRY,Corporate & Communities,Maintenance of trees,A28003
Royal Borough of Kingston,22/11/2023,70059214,210.00,ADVANCED TREE SERVICES LIMITED,CONSTRUCTION INDUSTRY,Housing Revenue Account,Tree Works,A56042
Royal Borough of Kingston,22/11/2023,70059214,420.00,ADVANCED TREE SERVICES LIMITED,CONSTRUCTION INDUSTRY,Housing Revenue Account,Tree Works,A56042
Royal Borough of Kingston,22/11/2023,70059214,420.00,ADVANCED TREE SERVICES LIMITED,CONSTRUCTION INDUSTRY,Housing Revenue Account,Tree Works,A56042
Royal Borough of Kingston,22/11/2023,70059216,"1,500.00",ADVANCED TREE SERVICES LIMITED,CONSTRUCTION INDUSTRY,Corporate & Communities,Grounds Maintenance Contract,A28000
Royal Borough of Kingston,09/11/2023,90280903,"2,343.60",ADVANTAGE DAY NURSERY LTD,ACADEMIC INSTNS - OTHER,Schools,PVI Providers,A60014
Royal Borough of Kingston,14/11/2023,90281140,"7,660.80",ADVANTAGE DAY NURSERY LTD,ACADEMIC INSTNS - OTHER,Schools,Early Years Contingency,A60030
Royal Borough of Kingston,14/11/2023,90281182,"7,165.50",ADVANTAGE DAY NURSERY LTD,ACADEMIC INSTNS - OTHER,Schools,Early Years Contingency,A60030
Royal Borough of Kingston,17/11/2023,90282233,907.20,ADVANTAGE DAY NURSERY LTD,ACADEMIC INSTNS - OTHER,Schools,PVI Providers,A60014
Royal Borough of Kingston,20/11/2023,70059035,"63,000.00",Age Concern Kingston upon Thames,GRANTS & EX GRATIA PAYMENTS,Adult Social Care & Health,Payments to Voluntary Organisations,A54005
Royal Borough of Kingston,06/11/2023,90284562,"143,435.00",Age Concern Kingston upon Thames,GRANTS & EX GRATIA PAYMENTS,Adult Social Care & Health,Other Private Contractors - Third Party,A56080
Royal Borough of Kingston,01/11/2023,90284898,514.29,Age Concern Kingston upon Thames,GRANTS & EX GRATIA PAYMENTS,Adult Social Care & Health,Personal Budget - Third Party,A61019
Royal Borough of Kingston,01/11/2023,90284912,857.14,Age Concern Kingston upon Thames,GRANTS & EX GRATIA PAYMENTS,Adult Social Care & Health,Personal Budget - Third Party,A61019
Royal Borough of Kingston,01/11/2023,90284915,685.71,Age Concern Kingston upon Thames,GRANTS & EX GRATIA PAYMENTS,Adult Social Care & Health,Personal Budget - Third Party,A61019
Royal Borough of Kingston,13/11/2023,70058441,500.00,REDACTED - PERSONAL DATA,SUNDRY SUPPLIER - FINANCE,Corporate & Communities,Conference Expenses,A43075
Royal Borough of Kingston,01/11/2023,90284109,"6,642.86",AIMS CARE LIMITED,SOCIAL SERVICES RESIDENTIAL,Adult Social Care & Health,Independent Placements,A56006
Royal Borough of Kingston,24/10/2023,70057816,465.00,AIR SURVEYS LIMITED,LEGAL & PROFESSIONAL SERVICES,Place,Property-Related Professional Fees,A20035
Royal Borough of Kingston,31/10/2023,70058020,"1,795.00",THE CREATIVE TEAM,OPERATIONAL EQUIPMENT/MATERIAL,Adult Social Care & Health,Equipment And Materials Purchase,A40000
Royal Borough of Kingston,07/11/2023,90279627,500.00,REDACTED - PERSONAL DATA,GRANTS & EX GRATIA PAYMENTS,Adult Social Care & Health,"Grants, Contributions & Donations",A47005
Royal Borough of Kingston,07/11/2023,90279628,500.00,REDACTED - PERSONAL DATA,CHARITIES & VOLUNTARY ORGNS,Adult Social Care & Health,"Grants, Contributions & Donations",A47005
Royal Borough of Kingston,23/11/2023,90283721,"1,094.00",REDACTED - PERSONAL DATA,LANDLORDS,Place,PSL Payments To Landlords,A22031
Royal Borough of Kingston,21/02/2023,70057767,"6,416.67",ALEXANDRA SCHOOL,SCHOOL FUNDS,Place,Payments to Contractors,C14000
Royal Borough of Kingston,03/11/2023,90278820,"162,395.61",ALEXANDRA SCHOOL,SCHOOL FUNDS,Schools,Miscellaneous Expenses,A49000
Royal Borough of Kingston,09/11/2023,90280919,781.20,ALEXANDRA SCHOOL,SCHOOL FUNDS,Schools,Miscellaneous Expenses,A49000
Royal Borough of Kingston,14/11/2023,90281036,"2,570.50",ALEXANDRA SCHOOL,SCHOOL FUNDS,Schools,Miscellaneous Expenses,A49000
Royal Borough of Kingston,14/11/2023,90281065,"1,055.47",ALEXANDRA SCHOOL,SCHOOL FUNDS,Schools,Miscellaneous Expenses,A49000
Royal Borough of Kingston,14/11/2023,90281084,"18,915.00",ALEXANDRA SCHOOL,SCHOOL FUNDS,Schools,Miscellaneous Expenses,A49000
Royal Borough of Kingston,14/11/2023,90281085,502.50,ALEXANDRA SCHOOL,SCHOOL FUNDS,Schools,Miscellaneous Expenses,A49000
Royal Borough of Kingston,14/11/2023,90281086,"2,530.00",ALEXANDRA SCHOOL,SCHOOL FUNDS,Schools,Miscellaneous Expenses,A49000
Royal Borough of Kingston,14/11/2023,90281226,"2,772.00",ALEXANDRA SCHOOL,SCHOOL FUNDS,Schools,Early Years Contingency,A60030
Royal Borough of Kingston,17/11/2023,90282227,907.20,ALEXANDRA SCHOOL,SCHOOL FUNDS,Schools,Miscellaneous Expenses,A49000
Royal Borough of Kingston,23/11/2023,90283492,"4,000.00",ALEXANDRA SCHOOL,SCHOOL FUNDS,Schools,Miscellaneous Expenses,A49000
Royal Borough of Kingston,23/11/2023,90283905,"1,050.00",REDACTED - PERSONAL DATA,PLS LANDLORDS,Place,PSL Payments To Landlords,A22031
Royal Borough of Kingston,07/11/2023,90278899,550.00,REDACTED - PERSONAL DATA,CHARITIES & VOLUNTARY ORGNS,Adult Social Care & Health,"Grants, Contributions & Donations",A47005
Royal Borough of Kingston,09/11/2023,90281015,550.00,REDACTED - PERSONAL DATA,CHARITIES & VOLUNTARY ORGNS,Adult Social Care & Health,"Grants, Contributions & Donations",A47005
Royal Borough of Kingston,31/10/2023,70057936,454.07,ALLIED PUBLICITY SERVICES (MANCHESTER) LTD,PRESS & PUBLICITY,Adult Social Care & Health,Other Private Contractors - Third Party,A56080
Royal Borough of Kingston,31/10/2023,70058075,792.97,ALLPAY LIMITED,FINANCIAL / INSURANCE INSTNS,Adult Social Care & Health,Bank Fees & Charges,A44250
Royal Borough of Kingston,23/11/2023,70059086,"7,000.00",ALMEDIADATA LIMITED,SUBSCRIPTIONS & PUBLICATIONS,Corporate & Communities,Publicity And Promotions,A45026
Royal Borough of Kingston,16/10/2023,90278945,567.24,ALPENBEST LTD,SOCIAL SERVICES DAY CARE,Adult Social Care & Health,Homecare - new framework,A56127
Royal Borough of Kingston,16/10/2023,90278948,576.24,ALPENBEST LTD,SOCIAL SERVICES DAY CARE,Adult Social Care & Health,Homecare - new framework,A56127
Royal Borough of Kingston,16/10/2023,90278976,630.27,ALPENBEST LTD,SOCIAL SERVICES DAY CARE,Adult Social Care & Health,Homecare - new framework,A56127
Royal Borough of Kingston,16/10/2023,90279106,567.24,ALPENBEST LTD,SOCIAL SERVICES DAY CARE,Adult Social Care & Health,Homecare - new framework,A56127
Royal Borough of Kingston,16/10/2023,90279120,567.24,ALPENBEST LTD,SOCIAL SERVICES DAY CARE,Adult Social Care & Health,Homecare - new framework,A56127
Royal Borough of Kingston,16/10/2023,90279133,819.35,ALPENBEST LTD,SOCIAL SERVICES DAY CARE,Adult Social Care & Health,Homecare - new framework,A56127
Royal Borough of Kingston,16/10/2023,90279172,549.23,ALPENBEST LTD,SOCIAL SERVICES DAY CARE,Adult Social Care & Health,Homecare - new framework,A56127
Royal Borough of Kingston,16/10/2023,90279181,576.24,ALPENBEST LTD,SOCIAL SERVICES DAY CARE,Adult Social Care & Health,Homecare - new framework,A56127
Royal Borough of Kingston,16/10/2023,90279183,567.24,ALPENBEST LTD,SOCIAL SERVICES DAY CARE,Adult Social Care & Health,Homecare - new framework,A56127
Royal Borough of Kingston,16/10/2023,90279188,621.26,ALPENBEST LTD,SOCIAL SERVICES DAY CARE,Adult Social Care & Health,Homecare - new framework,A56127
Royal Borough of Kingston,16/10/2023,90279275,567.24,ALPENBEST LTD,SOCIAL SERVICES DAY CARE,Adult Social Care & Health,Homecare - new framework,A56127
Royal Borough of Kingston,16/10/2023,90279288,801.34,ALPENBEST LTD,SOCIAL SERVICES DAY CARE,Adult Social Care & Health,Homecare - new framework,A56127
Royal Borough of Kingston,16/10/2023,90279322,684.29,ALPENBEST LTD,SOCIAL SERVICES DAY CARE,Adult Social Care & Health,Homecare - new framework,A56127
Royal Borough of Kingston,16/10/2023,90279343,630.27,ALPENBEST LTD,SOCIAL SERVICES DAY CARE,Adult Social Care & Health,Homecare - new framework,A56127
Royal Borough of Kingston,16/10/2023,90279368,621.26,ALPENBEST LTD,SOCIAL SERVICES DAY CARE,Adult Social Care & Health,Homecare - new framework,A56127
Royal Borough of Kingston,16/10/2023,90279378,621.26,ALPENBEST LTD,SOCIAL SERVICES DAY CARE,Adult Social Care & Health,Homecare - new framework,A56127
Royal Borough of Kingston,16/10/2023,90279382,747.32,ALPENBEST LTD,SOCIAL SERVICES DAY CARE,Adult Social Care & Health,Homecare - new framework,A56127
Royal Borough of Kingston,16/10/2023,90279411,630.27,ALPENBEST LTD,SOCIAL SERVICES DAY CARE,Adult Social Care & Health,Homecare - new framework,A56127
Royal Borough of Kingston,16/10/2023,90279460,504.21,ALPENBEST LTD,SOCIAL SERVICES DAY CARE,Adult Social Care & Health,Homecare - new framework,A56127
Royal Borough of Kingston,16/10/2023,90279488,630.27,ALPENBEST LTD,SOCIAL SERVICES DAY CARE,Adult Social Care & Health,Homecare - new framework,A56127
Royal Borough of Kingston,16/10/2023,90279503,648.28,ALPENBEST LTD,SOCIAL SERVICES DAY CARE,Adult Social Care & Health,Homecare - new framework,A56127
Royal Borough of Kingston,16/10/2023,90279540,635.61,ALPENBEST LTD,SOCIAL SERVICES DAY CARE,Adult Social Care & Health,Personal Budget - Third Party,A61019
Royal Borough of Kingston,16/10/2023,90279553,630.27,ALPENBEST LTD,SOCIAL SERVICES DAY CARE,Adult Social Care & Health,Personal Budget - Third Party,A61019
Royal Borough of Kingston,23/10/2023,90281442,558.24,ALPENBEST LTD,SOCIAL SERVICES DAY CARE,Adult Social Care & Health,Homecare - new framework,A56127
Royal Borough of Kingston,23/10/2023,90281445,576.24,ALPENBEST LTD,SOCIAL SERVICES DAY CARE,Adult Social Care & Health,Homecare - new framework,A56127
Royal Borough of Kingston,23/10/2023,90281475,630.27,ALPENBEST LTD,SOCIAL SERVICES DAY CARE,Adult Social Care & Health,Homecare - new framework,A56127
Royal Borough of Kingston,23/10/2023,90281602,567.24,ALPENBEST LTD,SOCIAL SERVICES DAY CARE,Adult Social Care & Health,Homecare - new framework,A56127
Royal Borough of Kingston,23/10/2023,90281616,567.24,ALPENBEST LTD,SOCIAL SERVICES DAY CARE,Adult Social Care & Health,Homecare - new framework,A56127
Royal Borough of Kingston,23/10/2023,90281628,819.35,ALPENBEST LTD,SOCIAL SERVICES DAY CARE,Adult Social Care & Health,Homecare - new framework,A56127
Royal Borough of Kingston,23/10/2023,90281661,567.24,ALPENBEST LTD,SOCIAL SERVICES DAY CARE,Adult Social Care & Health,Homecare - new framework,A56127
Royal Borough of Kingston,23/10/2023,90281672,639.27,ALPENBEST LTD,SOCIAL SERVICES DAY CARE,Adult Social Care & Health,Homecare - new framework,A56127
Royal Borough of Kingston,23/10/2023,90281674,567.24,ALPENBEST LTD,SOCIAL SERVICES DAY CARE,Adult Social Care & Health,Homecare - new framework,A56127
Royal Borough of Kingston,23/10/2023,90281679,657.28,ALPENBEST LTD,SOCIAL SERVICES DAY CARE,Adult Social Care & Health,Homecare - new framework,A56127
Royal Borough of Kingston,23/10/2023,90281763,567.24,ALPENBEST LTD,SOCIAL SERVICES DAY CARE,Adult Social Care & Health,Homecare - new framework,A56127
Royal Borough of Kingston,23/10/2023,90281764,-567.24,ALPENBEST LTD,SOCIAL SERVICES DAY CARE,Adult Social Care & Health,Homecare - new framework,A56127
Royal Borough of Kingston,23/10/2023,90281765,567.24,ALPENBEST LTD,SOCIAL SERVICES DAY CARE,Adult Social Care & Health,Homecare - new framework,A56127
Royal Borough of Kingston,23/10/2023,90281766,-567.24,ALPENBEST LTD,SOCIAL SERVICES DAY CARE,Adult Social Care & Health,Homecare - new framework,A56127
Royal Borough of Kingston,23/10/2023,90281767,567.24,ALPENBEST LTD,SOCIAL SERVICES DAY CARE,Adult Social Care & Health,Homecare - new framework,A56127
Royal Borough of Kingston,23/10/2023,90281781,819.35,ALPENBEST LTD,SOCIAL SERVICES DAY CARE,Adult Social Care & Health,Homecare - new framework,A56127
Royal Borough of Kingston,23/10/2023,90281815,567.24,ALPENBEST LTD,SOCIAL SERVICES DAY CARE,Adult Social Care & Health,Homecare - new framework,A56127
Royal Borough of Kingston,23/10/2023,90281867,630.27,ALPENBEST LTD,SOCIAL SERVICES DAY CARE,Adult Social Care & Health,Homecare - new framework,A56127
Royal Borough of Kingston,23/10/2023,90281908,621.26,ALPENBEST LTD,SOCIAL SERVICES DAY CARE,Adult Social Care & Health,Homecare - new framework,A56127
Royal Borough of Kingston,23/10/2023,90281912,747.32,ALPENBEST LTD,SOCIAL SERVICES DAY CARE,Adult Social Care & Health,Homecare - new framework,A56127
Royal Borough of Kingston,23/10/2023,90281932,630.27,ALPENBEST LTD,SOCIAL SERVICES DAY CARE,Adult Social Care & Health,Homecare - new framework,A56127
Royal Borough of Kingston,23/10/2023,90281978,504.21,ALPENBEST LTD,SOCIAL SERVICES DAY CARE,Adult Social Care & Health,Homecare - new framework,A56127
Royal Borough of Kingston,23/10/2023,90282019,630.27,ALPENBEST LTD,SOCIAL SERVICES DAY CARE,Adult Social Care & Health,Homecare - new framework,A56127
Royal Borough of Kingston,23/10/2023,90282034,630.27,ALPENBEST LTD,SOCIAL SERVICES DAY CARE,Adult Social Care & Health,Homecare - new framework,A56127
Royal Borough of Kingston,23/10/2023,90282071,690.41,ALPENBEST LTD,SOCIAL SERVICES DAY CARE,Adult Social Care & Health,Personal Budget - Third Party,A61019
Royal Borough of Kingston,23/10/2023,90282086,630.27,ALPENBEST LTD,SOCIAL SERVICES DAY CARE,Adult Social Care & Health,Personal Budget - Third Party,A61019
Royal Borough of Kingston,23/10/2023,90282096,690.41,ALPENBEST LTD,SOCIAL SERVICES DAY CARE,Adult Social Care & Health,Personal Budget - Third Party,A61019
Royal Borough of Kingston,30/10/2023,90282302,567.24,ALPENBEST LTD,SOCIAL SERVICES DAY CARE,Adult Social Care & Health,Homecare - new framework,A56127
Royal Borough of Kingston,30/10/2023,90282305,576.24,ALPENBEST LTD,SOCIAL SERVICES DAY CARE,Adult Social Care & Health,Homecare - new framework,A56127
Royal Borough of Kingston,30/10/2023,90282336,630.27,ALPENBEST LTD,SOCIAL SERVICES DAY CARE,Adult Social Care & Health,Homecare - new framework,A56127
Royal Borough of Kingston,30/10/2023,90282501,567.24,ALPENBEST LTD,SOCIAL SERVICES DAY CARE,Adult Social Care & Health,Homecare - new framework,A56127
Royal Borough of Kingston,30/10/2023,90282514,567.24,ALPENBEST LTD,SOCIAL SERVICES DAY CARE,Adult Social Care & Health,Homecare - new framework,A56127
Royal Borough of Kingston,30/10/2023,90282527,819.35,ALPENBEST LTD,SOCIAL SERVICES DAY CARE,Adult Social Care & Health,Homecare - new framework,A56127
Royal Borough of Kingston,30/10/2023,90282579,630.27,ALPENBEST LTD,SOCIAL SERVICES DAY CARE,Adult Social Care & Health,Homecare - new framework,A56127
Royal Borough of Kingston,30/10/2023,90282581,567.24,ALPENBEST LTD,SOCIAL SERVICES DAY CARE,Adult Social Care & Health,Homecare - new framework,A56127
Royal Borough of Kingston,30/10/2023,90282586,630.27,ALPENBEST LTD,SOCIAL SERVICES DAY CARE,Adult Social Care & Health,Homecare - new framework,A56127
Royal Borough of Kingston,30/10/2023,90282671,567.24,ALPENBEST LTD,SOCIAL SERVICES DAY CARE,Adult Social Care & Health,Homecare - new framework,A56127
Royal Borough of Kingston,30/10/2023,90282685,819.35,ALPENBEST LTD,SOCIAL SERVICES DAY CARE,Adult Social Care & Health,Homecare - new framework,A56127
Royal Borough of Kingston,30/10/2023,90282717,513.22,ALPENBEST LTD,SOCIAL SERVICES DAY CARE,Adult Social Care & Health,Homecare - new framework,A56127
Royal Borough of Kingston,30/10/2023,90282736,630.27,ALPENBEST LTD,SOCIAL SERVICES DAY CARE,Adult Social Care & Health,Homecare - new framework,A56127
Royal Borough of Kingston,30/10/2023,90282762,621.26,ALPENBEST LTD,SOCIAL SERVICES DAY CARE,Adult Social Care & Health,Homecare - new framework,A56127
Royal Borough of Kingston,30/10/2023,90282771,630.27,ALPENBEST LTD,SOCIAL SERVICES DAY CARE,Adult Social Care & Health,Homecare - new framework,A56127
Royal Borough of Kingston,30/10/2023,90282775,747.32,ALPENBEST LTD,SOCIAL SERVICES DAY CARE,Adult Social Care & Health,Homecare - new framework,A56127
Royal Borough of Kingston,30/10/2023,90282797,630.27,ALPENBEST LTD,SOCIAL SERVICES DAY CARE,Adult Social Care & Health,Homecare - new framework,A56127
Royal Borough of Kingston,30/10/2023,90282843,504.21,ALPENBEST LTD,SOCIAL SERVICES DAY CARE,Adult Social Care & Health,Homecare - new framework,A56127
Royal Borough of Kingston,30/10/2023,90282875,630.27,ALPENBEST LTD,SOCIAL SERVICES DAY CARE,Adult Social Care & Health,Homecare - new framework,A56127
Royal Borough of Kingston,30/10/2023,90282889,630.27,ALPENBEST LTD,SOCIAL SERVICES DAY CARE,Adult Social Care & Health,Homecare - new framework,A56127
Royal Borough of Kingston,30/10/2023,90283316,701.37,ALPENBEST LTD,SOCIAL SERVICES DAY CARE,Adult Social Care & Health,Personal Budget - Third Party,A61019
Royal Borough of Kingston,30/10/2023,90283328,630.27,ALPENBEST LTD,SOCIAL SERVICES DAY CARE,Adult Social Care & Health,Personal Budget - Third Party,A61019
Royal Borough of Kingston,30/10/2023,90283339,690.41,ALPENBEST LTD,SOCIAL SERVICES DAY CARE,Adult Social Care & Health,Personal Budget - Third Party,A61019
Royal Borough of Kingston,06/11/2023,90285847,567.24,ALPENBEST LTD,SOCIAL SERVICES DAY CARE,Adult Social Care & Health,Homecare - new framework,A56127
Royal Borough of Kingston,06/11/2023,90285850,576.24,ALPENBEST LTD,SOCIAL SERVICES DAY CARE,Adult Social Care & Health,Homecare - new framework,A56127
Royal Borough of Kingston,06/11/2023,90285882,630.27,ALPENBEST LTD,SOCIAL SERVICES DAY CARE,Adult Social Care & Health,Homecare - new framework,A56127
Royal Borough of Kingston,06/11/2023,90286080,567.24,ALPENBEST LTD,SOCIAL SERVICES DAY CARE,Adult Social Care & Health,Homecare - new framework,A56127
Royal Borough of Kingston,06/11/2023,90286106,567.24,ALPENBEST LTD,SOCIAL SERVICES DAY CARE,Adult Social Care & Health,Homecare - new framework,A56127
Royal Borough of Kingston,06/11/2023,90286120,819.35,ALPENBEST LTD,SOCIAL SERVICES DAY CARE,Adult Social Care & Health,Homecare - new framework,A56127
Royal Borough of Kingston,06/11/2023,90286153,531.22,ALPENBEST LTD,SOCIAL SERVICES DAY CARE,Adult Social Care & Health,Homecare - new framework,A56127
Royal Borough of Kingston,06/11/2023,90286166,639.27,ALPENBEST LTD,SOCIAL SERVICES DAY CARE,Adult Social Care & Health,Homecare - new framework,A56127
Royal Borough of Kingston,06/11/2023,90286168,567.24,ALPENBEST LTD,SOCIAL SERVICES DAY CARE,Adult Social Care & Health,Homecare - new framework,A56127
Royal Borough of Kingston,06/11/2023,90286173,630.27,ALPENBEST LTD,SOCIAL SERVICES DAY CARE,Adult Social Care & Health,Homecare - new framework,A56127
Royal Borough of Kingston,06/11/2023,90286370,567.24,ALPENBEST LTD,SOCIAL SERVICES DAY CARE,Adult Social Care & Health,Homecare - new framework,A56127
Royal Borough of Kingston,06/11/2023,90286371,-567.24,ALPENBEST LTD,SOCIAL SERVICES DAY CARE,Adult Social Care & Health,Homecare - new framework,A56127
Royal Borough of Kingston,06/11/2023,90286372,567.24,ALPENBEST LTD,SOCIAL SERVICES DAY CARE,Adult Social Care & Health,Homecare - new framework,A56127
Royal Borough of Kingston,06/11/2023,90286387,819.35,ALPENBEST LTD,SOCIAL SERVICES DAY CARE,Adult Social Care & Health,Homecare - new framework,A56127
Royal Borough of Kingston,06/11/2023,90286437,513.22,ALPENBEST LTD,SOCIAL SERVICES DAY CARE,Adult Social Care & Health,Homecare - new framework,A56127
Royal Borough of Kingston,06/11/2023,90286457,630.27,ALPENBEST LTD,SOCIAL SERVICES DAY CARE,Adult Social Care & Health,Homecare - new framework,A56127
Royal Borough of Kingston,06/11/2023,90286488,585.25,ALPENBEST LTD,SOCIAL SERVICES DAY CARE,Adult Social Care & Health,Homecare - new framework,A56127
Royal Borough of Kingston,06/11/2023,90286498,630.27,ALPENBEST LTD,SOCIAL SERVICES DAY CARE,Adult Social Care & Health,Homecare - new framework,A56127
Royal Borough of Kingston,06/11/2023,90286502,747.32,ALPENBEST LTD,SOCIAL SERVICES DAY CARE,Adult Social Care & Health,Homecare - new framework,A56127
Royal Borough of Kingston,06/11/2023,90286523,630.27,ALPENBEST LTD,SOCIAL SERVICES DAY CARE,Adult Social Care & Health,Homecare - new framework,A56127
Royal Borough of Kingston,06/11/2023,90286577,504.21,ALPENBEST LTD,SOCIAL SERVICES DAY CARE,Adult Social Care & Health,Homecare - new framework,A56127
Royal Borough of Kingston,06/11/2023,90286847,630.27,ALPENBEST LTD,SOCIAL SERVICES DAY CARE,Adult Social Care & Health,Homecare - new framework,A56127
Royal Borough of Kingston,06/11/2023,90286861,657.28,ALPENBEST LTD,SOCIAL SERVICES DAY CARE,Adult Social Care & Health,Homecare - new framework,A56127
Royal Borough of Kingston,06/11/2023,90287015,690.41,ALPENBEST LTD,SOCIAL SERVICES DAY CARE,Adult Social Care & Health,Personal Budget - Third Party,A61019
Royal Borough of Kingston,06/11/2023,90287029,630.27,ALPENBEST LTD,SOCIAL SERVICES DAY CARE,Adult Social Care & Health,Personal Budget - Third Party,A61019
Royal Borough of Kingston,06/11/2023,90287040,690.41,ALPENBEST LTD,SOCIAL SERVICES DAY CARE,Adult Social Care & Health,Personal Budget - Third Party,A61019
Royal Borough of Kingston,23/11/2023,90283537,"1,136.00",REDACTED - PERSONAL DATA,PLS LANDLORDS,Place,PSL Payments To Landlords,A22031
Royal Borough of Kingston,06/11/2023,70058259,"1,000.00",AML,SUNDRY SUPPLIER - FINANCE,Housing Revenue Account,Vandalism Damage,A20029
Royal Borough of Kingston,08/11/2023,70058269,"3,000.00",AML,SUNDRY SUPPLIER - FINANCE,Housing Revenue Account,Legal Services,A44025
Royal Borough of Kingston,23/11/2023,90283882,"1,383.33",REDACTED - PERSONAL DATA,PLS LANDLORDS,Place,PSL Payments To Landlords,A22031
Royal Borough of Kingston,23/11/2023,90283859,"1,458.33",REDACTED - PERSONAL DATA,PLS LANDLORDS,Place,PSL Payments To Landlords,A22031
Royal Borough of Kingston,23/11/2023,90283785,"1,094.00",REDACTED - PERSONAL DATA,PLS LANDLORDS,Place,PSL Payments To Landlords,A22031
Royal Borough of Kingston,18/10/2023,70057693,"1,196.05",ANGLIAN WATER BUSINESS NATIONAL LTD,UTILITIES,Housing Revenue Account,Water Services,A24005
Royal Borough of Kingston,18/10/2023,70057694,"5,300.60",ANGLIAN WATER BUSINESS NATIONAL LTD,UTILITIES,Corporate & Communities,Water Services,A24005
Royal Borough of Kingston,18/10/2023,70057696,790.06,ANGLIAN WATER BUSINESS NATIONAL LTD,UTILITIES,Housing Revenue Account,Water Services,A24005
Royal Borough of Kingston,18/10/2023,70057696,265.09,ANGLIAN WATER BUSINESS NATIONAL LTD,UTILITIES,Housing Revenue Account,Water Services,A24005
Royal Borough of Kingston,18/10/2023,70057699,"11,736.20",ANGLIAN WATER BUSINESS NATIONAL LTD,UTILITIES,Place,Water Services,A24005
Royal Borough of Kingston,23/11/2023,90283563,"1,094.00",REDACTED - PERSONAL DATA,PLS LANDLORDS,Place,PSL Payments To Landlords,A22031
Royal Borough of Kingston,22/10/2023,70058131,"1,541.20",REDACTED - PERSONAL DATA,REFUNDS,Adult Social Care & Health,Other Private Contractors - Third Party,A56080
Royal Borough of Kingston,13/11/2023,70058439,"7,389.84",REDACTED - PERSONAL DATA,SUNDRY SUPPLIER - HOUSING,Housing Revenue Account,Buildings - Project Management,C14003
Royal Borough of Kingston,23/11/2023,90283902,"1,047.00",REDACTED - PERSONAL DATA,PLS LANDLORDS,Place,PSL Payments To Landlords,A22031
Royal Borough of Kingston,27/10/2023,70057702,"11,500.00",Anthony Hodari Holdings Ltd,SUNDRY SUPPLIER - FINANCE,Housing Revenue Account,Legal Services,A44025
Royal Borough of Kingston,01/11/2023,70058963,"6,388.89",AON UK LTD,FINANCIAL / INSURANCE INSTNS,Corporate & Communities,Professional Fees,A44066
Royal Borough of Kingston,01/11/2023,70057919,900.00,AP RENTAL INC LTD,LANDLORDS,Adult Social Care & Health,Housing Benefit - Rent Allowances -Private Tenants Only,A62009
Royal Borough of Kingston,01/11/2023,70057921,"1,060.00",AP RENTAL INC LTD,LANDLORDS,Adult Social Care & Health,Housing Benefit - Rent Allowances -Private Tenants Only,A62009
Royal Borough of Kingston,01/11/2023,70057922,"1,260.00",AP RENTAL INC LTD,LANDLORDS,Adult Social Care & Health,Housing Benefit - Rent Allowances -Private Tenants Only,A62009
Royal Borough of Kingston,01/11/2023,70057925,"1,225.00",AP RENTAL INC LTD,LANDLORDS,Adult Social Care & Health,Housing Benefit - Rent Allowances -Private Tenants Only,A62009
Royal Borough of Kingston,01/11/2023,70057926,"1,110.00",AP RENTAL INC LTD,LANDLORDS,Adult Social Care & Health,Housing Benefit - Rent Allowances -Private Tenants Only,A62009
Royal Borough of Kingston,29/11/2023,70059552,"16,623.00",AP RENTAL INC LTD,LANDLORDS,Adult Social Care & Health,Housing and Support - Learning Disability Services,A62014
Royal Borough of Kingston,29/11/2023,70059553,"6,824.96",AP RENTAL INC LTD,LANDLORDS,Adult Social Care & Health,Housing and Support - Learning Disability Services,A62014
Royal Borough of Kingston,31/10/2023,70058413,"3,255.00",APEX HOUSING SOLUTIONS LTD,ACCOMMODATION BED & BREAKFAST,Place,Bed & Breakfast,A56000
Royal Borough of Kingston,31/10/2023,70058414,"1,670.90",APEX HOUSING SOLUTIONS LTD,ACCOMMODATION BED & BREAKFAST,Place,Bed & Breakfast,A56000
Royal Borough of Kingston,31/10/2023,70058415,"1,705.00",APEX HOUSING SOLUTIONS LTD,ACCOMMODATION BED & BREAKFAST,Place,Bed & Breakfast,A56000
Royal Borough of Kingston,31/10/2023,70058416,"1,546.90",APEX HOUSING SOLUTIONS LTD,ACCOMMODATION BED & BREAKFAST,Place,Bed & Breakfast,A56000
Royal Borough of Kingston,31/10/2023,70058417,"2,356.00",APEX HOUSING SOLUTIONS LTD,ACCOMMODATION BED & BREAKFAST,Place,Bed & Breakfast,A56000
Royal Borough of Kingston,31/10/2023,70058418,"1,705.00",APEX HOUSING SOLUTIONS LTD,ACCOMMODATION BED & BREAKFAST,Place,Bed & Breakfast,A56000
Royal Borough of Kingston,31/10/2023,70058419,"2,170.00",APEX HOUSING SOLUTIONS LTD,ACCOMMODATION BED & BREAKFAST,Place,Bed & Breakfast,A56000
Royal Borough of Kingston,31/10/2023,70058420,"1,798.00",APEX HOUSING SOLUTIONS LTD,ACCOMMODATION BED & BREAKFAST,Place,Bed & Breakfast,A56000
Royal Borough of Kingston,31/10/2023,70058421,928.00,APEX HOUSING SOLUTIONS LTD,ACCOMMODATION BED & BREAKFAST,Place,Bed & Breakfast,A56000
Royal Borough of Kingston,31/10/2023,70058422,"1,705.00",APEX HOUSING SOLUTIONS LTD,ACCOMMODATION BED & BREAKFAST,Place,Bed & Breakfast,A56000
Royal Borough of Kingston,31/10/2023,70058423,"2,139.00",APEX HOUSING SOLUTIONS LTD,ACCOMMODATION BED & BREAKFAST,Place,Bed & Breakfast,A56000
Royal Borough of Kingston,31/10/2023,70058424,"1,705.00",APEX HOUSING SOLUTIONS LTD,ACCOMMODATION BED & BREAKFAST,Place,Bed & Breakfast,A56000
Royal Borough of Kingston,31/10/2023,70058425,"1,670.90",APEX HOUSING SOLUTIONS LTD,ACCOMMODATION BED & BREAKFAST,Place,Bed & Breakfast,A56000
Royal Borough of Kingston,31/10/2023,70058426,"1,705.00",APEX HOUSING SOLUTIONS LTD,ACCOMMODATION BED & BREAKFAST,Place,Bed & Breakfast,A56000
Royal Borough of Kingston,31/10/2023,70058427,"2,170.00",APEX HOUSING SOLUTIONS LTD,ACCOMMODATION BED & BREAKFAST,Place,Bed & Breakfast,A56000
Royal Borough of Kingston,31/10/2023,70058428,"1,670.90",APEX HOUSING SOLUTIONS LTD,ACCOMMODATION BED & BREAKFAST,Place,Bed & Breakfast,A56000
Royal Borough of Kingston,31/10/2023,70058429,"1,798.00",APEX HOUSING SOLUTIONS LTD,ACCOMMODATION BED & BREAKFAST,Place,Bed & Breakfast,A56000
Royal Borough of Kingston,31/10/2023,70058430,"1,546.90",APEX HOUSING SOLUTIONS LTD,ACCOMMODATION BED & BREAKFAST,Place,Bed & Breakfast,A56000
Royal Borough of Kingston,31/10/2023,70058431,"1,608.90",APEX HOUSING SOLUTIONS LTD,ACCOMMODATION BED & BREAKFAST,Place,Bed & Breakfast,A56000
Royal Borough of Kingston,31/10/2023,70058432,"1,798.00",APEX HOUSING SOLUTIONS LTD,ACCOMMODATION BED & BREAKFAST,Place,Bed & Breakfast,A56000
Royal Borough of Kingston,31/10/2023,70058433,"1,364.00",APEX HOUSING SOLUTIONS LTD,ACCOMMODATION BED & BREAKFAST,Place,Bed & Breakfast,A56000
Royal Borough of Kingston,31/10/2023,70058434,"1,608.90",APEX HOUSING SOLUTIONS LTD,ACCOMMODATION BED & BREAKFAST,Place,Bed & Breakfast,A56000
Royal Borough of Kingston,31/10/2023,70058435,"1,240.00",APEX HOUSING SOLUTIONS LTD,ACCOMMODATION BED & BREAKFAST,Place,Bed & Breakfast,A56000
Royal Borough of Kingston,31/10/2023,70058436,"1,705.00",APEX HOUSING SOLUTIONS LTD,ACCOMMODATION BED & BREAKFAST,Place,Bed & Breakfast,A56000
Royal Borough of Kingston,30/10/2023,70058077,"1,200.00",Arc Business Interiors Limited,FM SERVICES,Corporate & Communities,Equipment And Materials Purchase,A40000
Royal Borough of Kingston,01/11/2023,90283992,"3,363.34",Aria Healthcare Group Ltd,SOCIAL SERVICES-HOME CARE,Adult Social Care & Health,Independent Placements,A56006
Royal Borough of Kingston,01/11/2023,90284013,"3,766.33",Aria Healthcare Group Ltd,SOCIAL SERVICES-HOME CARE,Adult Social Care & Health,Independent Placements,A56006
Royal Borough of Kingston,07/11/2023,90279632,500.00,REDACTED - PERSONAL DATA,CHARITIES & VOLUNTARY ORGNS,Adult Social Care & Health,"Grants, Contributions & Donations",A47005
Royal Borough of Kingston,01/11/2023,90284501,"6,405.43",ASHCROFT CARE SERVICES LIMITED,SOCIAL SERVICES RESIDENTIAL,Adult Social Care & Health,Independent Placements,A56006
Royal Borough of Kingston,01/11/2023,90285638,-517.71,ASHCROFT CARE SERVICES LIMITED,SOCIAL SERVICES RESIDENTIAL,Adult Social Care & Health,Financially Assessed Contributions clients � Non VAT,A92047
Royal Borough of Kingston,30/11/2023,90287158,"10,020.00",ASHCROFT CARE SERVICES LIMITED,SOCIAL SERVICES RESIDENTIAL,Adult Social Care & Health,Independent Placements,A56006
Royal Borough of Kingston,30/11/2023,90287159,"-6,405.43",ASHCROFT CARE SERVICES LIMITED,SOCIAL SERVICES RESIDENTIAL,Adult Social Care & Health,Independent Placements,A56006
Royal Borough of Kingston,30/11/2023,90287160,"10,354.00",ASHCROFT CARE SERVICES LIMITED,SOCIAL SERVICES RESIDENTIAL,Adult Social Care & Health,Independent Placements,A56006
Royal Borough of Kingston,30/11/2023,90287161,"-6,618.94",ASHCROFT CARE SERVICES LIMITED,SOCIAL SERVICES RESIDENTIAL,Adult Social Care & Health,Independent Placements,A56006
Royal Borough of Kingston,30/11/2023,90287162,"10,020.00",ASHCROFT CARE SERVICES LIMITED,SOCIAL SERVICES RESIDENTIAL,Adult Social Care & Health,Independent Placements,A56006
Royal Borough of Kingston,30/11/2023,90287163,"-6,405.43",ASHCROFT CARE SERVICES LIMITED,SOCIAL SERVICES RESIDENTIAL,Adult Social Care & Health,Independent Placements,A56006
Royal Borough of Kingston,30/11/2023,90287164,"10,354.00",ASHCROFT CARE SERVICES LIMITED,SOCIAL SERVICES RESIDENTIAL,Adult Social Care & Health,Independent Placements,A56006
Royal Borough of Kingston,30/11/2023,90287165,"-6,618.94",ASHCROFT CARE SERVICES LIMITED,SOCIAL SERVICES RESIDENTIAL,Adult Social Care & Health,Independent Placements,A56006
Royal Borough of Kingston,30/11/2023,90287166,"10,354.00",ASHCROFT CARE SERVICES LIMITED,SOCIAL SERVICES RESIDENTIAL,Adult Social Care & Health,Independent Placements,A56006
Royal Borough of Kingston,30/11/2023,90287167,"-6,618.94",ASHCROFT CARE SERVICES LIMITED,SOCIAL SERVICES RESIDENTIAL,Adult Social Care & Health,Independent Placements,A56006
Royal Borough of Kingston,30/11/2023,90287168,"10,020.00",ASHCROFT CARE SERVICES LIMITED,SOCIAL SERVICES RESIDENTIAL,Adult Social Care & Health,Independent Placements,A56006
Royal Borough of Kingston,30/11/2023,90287169,"-6,405.43",ASHCROFT CARE SERVICES LIMITED,SOCIAL SERVICES RESIDENTIAL,Adult Social Care & Health,Independent Placements,A56006
Royal Borough of Kingston,30/11/2023,90287170,"10,354.00",ASHCROFT CARE SERVICES LIMITED,SOCIAL SERVICES RESIDENTIAL,Adult Social Care & Health,Independent Placements,A56006
Royal Borough of Kingston,30/11/2023,90287171,"-6,618.94",ASHCROFT CARE SERVICES LIMITED,SOCIAL SERVICES RESIDENTIAL,Adult Social Care & Health,Independent Placements,A56006
Royal Borough of Kingston,30/11/2023,90287172,"10,020.00",ASHCROFT CARE SERVICES LIMITED,SOCIAL SERVICES RESIDENTIAL,Adult Social Care & Health,Independent Placements,A56006
Royal Borough of Kingston,30/11/2023,90287173,"-6,405.43",ASHCROFT CARE SERVICES LIMITED,SOCIAL SERVICES RESIDENTIAL,Adult Social Care & Health,Independent Placements,A56006
Royal Borough of Kingston,01/11/2023,90285528,967.80,ASHINGTON HOUSE LTD,SOCIAL SERVICES RESIDENTIAL,Adult Social Care & Health,Personal Budget - Third Party,A61019
Royal Borough of Kingston,01/11/2023,90285384,"1,409.14",ASHPRIME PROPERTIES LTD,SOCIAL SERVICES RESIDENTIAL,Adult Social Care & Health,Personal Budget - Third Party,A61019
Royal Borough of Kingston,23/11/2023,90283791,"1,595.92",REDACTED - PERSONAL DATA,PLS LANDLORDS,Place,PSL Payments To Landlords,A22031
Royal Borough of Kingston,01/11/2023,90285487,"2,698.33",Aspirations Care Ltd,SOCIAL SERVICES - OTHER,Adult Social Care & Health,Personal Budget - Third Party,A61019
Royal Borough of Kingston,01/11/2023,90284172,"3,966.00",ASPREY HEALTHCARE LTD,SOCIAL SERVICES RESIDENTIAL,Adult Social Care & Health,Independent Placements,A56006
Royal Borough of Kingston,01/11/2023,90284023,"4,695.56",ASTORIA HEALTHCARE LTD,SOCIAL SERVICES RESIDENTIAL,Adult Social Care & Health,Independent Placements,A56006
Royal Borough of Kingston,24/10/2023,70057973,"6,250.00",ATG Cleaning Services Ltd,SUNDRY SUPPLIER - FINANCE,Adult Social Care & Health,Legal Services,A44025
Royal Borough of Kingston,24/10/2023,70058274,"6,250.00",ATG Cleaning Services Ltd,SUNDRY SUPPLIER - FINANCE,Adult Social Care & Health,Other Private Contractors - Third Party,A56080
Royal Borough of Kingston,27/10/2023,70057837,"2,801.25",AuLaw Organic Farm UK C.I.C.,GRANTS & EX GRATIA PAYMENTS,Adult Social Care & Health,Miscellaneous Expenses,A49000
Royal Borough of Kingston,23/11/2023,90283728,"1,094.34",AUMKARA INVESTMENTS LTD,PLS LANDLORDS,Place,PSL Payments To Landlords,A22031
Royal Borough of Kingston,23/11/2023,90283729,"1,094.34",AUMKARA INVESTMENTS LTD,PLS LANDLORDS,Place,PSL Payments To Landlords,A22031
Royal Borough of Kingston,23/11/2023,90283730,"1,094.34",AUMKARA INVESTMENTS LTD,PLS LANDLORDS,Place,PSL Payments To Landlords,A22031
Royal Borough of Kingston,01/11/2023,90284343,"11,528.01",AUTISM CONSULTANTS LTD,SOCIAL SERVICES RESIDENTIAL,Adult Social Care & Health,Independent Placements,A56006
Royal Borough of Kingston,31/10/2023,70058927,"1,300.00",AVA (Against Violence and Abuse),TRAINING,Adult Social Care & Health,Payments to Voluntary Organisations,A54005
Royal Borough of Kingston,14/11/2023,70059039,"1,426.30",AVICENNA PSYCHIATRY,SOCIAL SERVICES - OTHER,Adult Social Care & Health,Other Private Contractors - Third Party,A56080
Royal Borough of Kingston,10/07/2023,70049903,"1,590.49",AXIS EUROPE PLC,CONSTRUCTION INDUSTRY,Place,Property Repairs & Maintenance & Alterations - Responsive,A20011
Royal Borough of Kingston,10/07/2023,70050114,"3,635.17",AXIS EUROPE PLC,CONSTRUCTION INDUSTRY,Place,Property Repairs & Maintenance & Alterations - Responsive,A20011
Royal Borough of Kingston,17/07/2023,70050440,"1,847.39",AXIS EUROPE PLC,CONSTRUCTION INDUSTRY,Place,Property Repairs & Maintenance & Alterations - Responsive,A20011
Royal Borough of Kingston,23/10/2023,70057020,"1,003.86",AXIS EUROPE PLC,CONSTRUCTION INDUSTRY,Housing Revenue Account,Miscellaneous Expenses,A49000
Royal Borough of Kingston,23/10/2023,70057030,"3,381.78",AXIS EUROPE PLC,CONSTRUCTION INDUSTRY,Housing Revenue Account,Fencing,C20017
Royal Borough of Kingston,23/10/2023,70057090,"7,980.00",AXIS EUROPE PLC,CONSTRUCTION INDUSTRY,Housing Revenue Account,Property Repairs & Maintenance & Alterations - Responsive,A20011
Royal Borough of Kingston,30/10/2023,70057668,"2,535.22",AXIS EUROPE PLC,CONSTRUCTION INDUSTRY,Place,Property Repairs & Maintenance & Alterations - Responsive,A20011
Royal Borough of Kingston,30/10/2023,70057672,"26,989.66",AXIS EUROPE PLC,CONSTRUCTION INDUSTRY,Place,Void Property Repairs,A20036
Royal Borough of Kingston,30/10/2023,70057673,"38,782.56",AXIS EUROPE PLC,CONSTRUCTION INDUSTRY,Housing Revenue Account,Void Property Repairs,A20036
Royal Borough of Kingston,30/10/2023,70057674,"250,104.77",AXIS EUROPE PLC,CONSTRUCTION INDUSTRY,Housing Revenue Account,Property Repairs & Maintenance & Alterations - Responsive,A20011
Royal Borough of Kingston,30/10/2023,70057675,"8,724.29",AXIS EUROPE PLC,CONSTRUCTION INDUSTRY,Housing Revenue Account,Void Property Repairs,A20036
Royal Borough of Kingston,30/10/2023,70057676,"51,193.78",AXIS EUROPE PLC,CONSTRUCTION INDUSTRY,Housing Revenue Account,Electrical Repairs,A20002
Royal Borough of Kingston,30/10/2023,70057677,"122,773.10",AXIS EUROPE PLC,CONSTRUCTION INDUSTRY,Housing Revenue Account,Housing - Heating & Ventilation,A20045
Royal Borough of Kingston,30/10/2023,70057710,"13,999.19",AXIS EUROPE PLC,CONSTRUCTION INDUSTRY,Housing Revenue Account,Council Dwellings - Construction & Renovation,C10002
Royal Borough of Kingston,26/10/2023,70057711,"2,696.46",AXIS EUROPE PLC,CONSTRUCTION INDUSTRY,Housing Revenue Account,Council Dwellings - Construction & Renovation,C10002
Royal Borough of Kingston,26/10/2023,70057712,"2,562.70",AXIS EUROPE PLC,CONSTRUCTION INDUSTRY,Housing Revenue Account,Council Dwellings - Construction & Renovation,C10002
Royal Borough of Kingston,26/10/2023,70057713,"2,604.69",AXIS EUROPE PLC,CONSTRUCTION INDUSTRY,Housing Revenue Account,Council Dwellings - Construction & Renovation,C10002
Royal Borough of Kingston,26/10/2023,70057714,"2,599.01",AXIS EUROPE PLC,CONSTRUCTION INDUSTRY,Housing Revenue Account,Council Dwellings - Construction & Renovation,C10002
Royal Borough of Kingston,26/10/2023,70057716,"2,558.40",AXIS EUROPE PLC,CONSTRUCTION INDUSTRY,Housing Revenue Account,Council Dwellings - Construction & Renovation,C10002
Royal Borough of Kingston,26/10/2023,70057717,"2,745.06",AXIS EUROPE PLC,CONSTRUCTION INDUSTRY,Housing Revenue Account,Council Dwellings - Construction & Renovation,C10002
Royal Borough of Kingston,26/10/2023,70057719,"2,620.71",AXIS EUROPE PLC,CONSTRUCTION INDUSTRY,Housing Revenue Account,Council Dwellings - Construction & Renovation,C10002
Royal Borough of Kingston,30/10/2023,70057720,"67,258.12",AXIS EUROPE PLC,CONSTRUCTION INDUSTRY,Housing Revenue Account,Council Dwellings - Construction & Renovation,C10002
Royal Borough of Kingston,30/10/2023,70057721,"23,632.67",AXIS EUROPE PLC,CONSTRUCTION INDUSTRY,Housing Revenue Account,Council Dwellings - Construction & Renovation,C10002
Royal Borough of Kingston,30/06/2023,70058803,"26,989.66",AXIS EUROPE PLC,CONSTRUCTION INDUSTRY,Place,Void Property Repairs,A20036
Royal Borough of Kingston,20/09/2023,70058869,"1,330.81",AXIS EUROPE PLC,CONSTRUCTION INDUSTRY,Housing Revenue Account,Council Dwellings - Construction & Renovation,C10002
Royal Borough of Kingston,29/08/2023,70058870,"4,339.68",AXIS EUROPE PLC,CONSTRUCTION INDUSTRY,Housing Revenue Account,Council Dwellings - Construction & Renovation,C10002
Royal Borough of Kingston,16/10/2023,70059319,"7,496.18",AXIS EUROPE PLC,CONSTRUCTION INDUSTRY,Housing Revenue Account,Disabled Adaptations,C20003
Royal Borough of Kingston,07/08/2023,70059327,"4,420.85",AXIS EUROPE PLC,CONSTRUCTION INDUSTRY,Housing Revenue Account,Consultancy Services - Other,A44065
Royal Borough of Kingston,23/11/2023,90283727,"1,314.00",REDACTED - PERSONAL DATA,PLS LANDLORDS,Place,PSL Payments To Landlords,A22031
Royal Borough of Kingston,23/11/2023,90283839,"1,094.00",REDACTED - PERSONAL DATA,PLS LANDLORDS,Place,PSL Payments To Landlords,A22031
Royal Borough of Kingston,23/11/2023,90283523,758.33,REDACTED - PERSONAL DATA,PLS LANDLORDS,Place,PSL Payments To Landlords,A22031
Royal Borough of Kingston,28/09/2023,70055737,"22,587.76",BALANCE (SUPPORT) C.I.C,SOCIAL SERVICES - OTHER,Adult Social Care & Health,Professional Fees,A44066
Royal Borough of Kingston,10/07/2023,70056203,"4,379.94",BALANCE (SUPPORT) C.I.C,SOCIAL SERVICES - OTHER,Adult Social Care & Health,Professional Fees,A44066
Royal Borough of Kingston,28/10/2023,70057654,"22,587.76",BALANCE (SUPPORT) C.I.C,SOCIAL SERVICES - OTHER,Adult Social Care & Health,Professional Fees,A44066
Royal Borough of Kingston,09/10/2023,90278808,"1,040.00",BALANCE (SUPPORT) C.I.C,SOCIAL SERVICES - OTHER,Adult Social Care & Health,Personal Budget - Third Party,A61019
Royal Borough of Kingston,09/10/2023,90278809,832.00,BALANCE (SUPPORT) C.I.C,SOCIAL SERVICES - OTHER,Adult Social Care & Health,Personal Budget - Third Party,A61019
Royal Borough of Kingston,09/10/2023,90278811,"1,040.00",BALANCE (SUPPORT) C.I.C,SOCIAL SERVICES - OTHER,Adult Social Care & Health,Personal Budget - Third Party,A61019
Royal Borough of Kingston,30/10/2023,70057818,"1,154.17",Banner Group Ltd,OFFICE SUPPLIES,Corporate & Communities,Stationery,A43015
Royal Borough of Kingston,01/11/2023,90283951,"3,647.36",BARCHESTER HEALTHCARE,SOCIAL SERVICES RESIDENTIAL,Adult Social Care & Health,Independent Placements,A56006
Royal Borough of Kingston,07/11/2023,90279634,500.00,REDACTED - PERSONAL DATA,CHARITIES & VOLUNTARY ORGNS,Adult Social Care & Health,"Grants, Contributions & Donations",A47005
Royal Borough of Kingston,01/11/2023,90284174,"4,558.63",BAVANI CARE HOME LIMITED,SOCIAL SERVICES RESIDENTIAL,Adult Social Care & Health,Independent Placements,A56006
Royal Borough of Kingston,01/11/2023,90284175,"-4,341.56",BAVANI CARE HOME LIMITED,SOCIAL SERVICES RESIDENTIAL,Adult Social Care & Health,Independent Placements,A56006
Royal Borough of Kingston,01/11/2023,90284176,"4,710.58",BAVANI CARE HOME LIMITED,SOCIAL SERVICES RESIDENTIAL,Adult Social Care & Health,Independent Placements,A56006
Royal Borough of Kingston,01/11/2023,90284177,"-4,486.28",BAVANI CARE HOME LIMITED,SOCIAL SERVICES RESIDENTIAL,Adult Social Care & Health,Independent Placements,A56006
Royal Borough of Kingston,01/11/2023,90284178,"4,558.63",BAVANI CARE HOME LIMITED,SOCIAL SERVICES RESIDENTIAL,Adult Social Care & Health,Independent Placements,A56006
Royal Borough of Kingston,01/11/2023,90284179,"-4,341.56",BAVANI CARE HOME LIMITED,SOCIAL SERVICES RESIDENTIAL,Adult Social Care & Health,Independent Placements,A56006
Royal Borough of Kingston,01/11/2023,90284180,"4,710.58",BAVANI CARE HOME LIMITED,SOCIAL SERVICES RESIDENTIAL,Adult Social Care & Health,Independent Placements,A56006
Royal Borough of Kingston,01/11/2023,90284181,"-4,486.28",BAVANI CARE HOME LIMITED,SOCIAL SERVICES RESIDENTIAL,Adult Social Care & Health,Independent Placements,A56006
Royal Borough of Kingston,01/11/2023,90284182,"4,710.58",BAVANI CARE HOME LIMITED,SOCIAL SERVICES RESIDENTIAL,Adult Social Care & Health,Independent Placements,A56006
Royal Borough of Kingston,01/11/2023,90284183,"-4,486.28",BAVANI CARE HOME LIMITED,SOCIAL SERVICES RESIDENTIAL,Adult Social Care & Health,Independent Placements,A56006
Royal Borough of Kingston,01/11/2023,90284184,"4,558.63",BAVANI CARE HOME LIMITED,SOCIAL SERVICES RESIDENTIAL,Adult Social Care & Health,Independent Placements,A56006
Royal Borough of Kingston,01/11/2023,90284185,"-4,341.56",BAVANI CARE HOME LIMITED,SOCIAL SERVICES RESIDENTIAL,Adult Social Care & Health,Independent Placements,A56006
Royal Borough of Kingston,01/11/2023,90284186,"4,710.58",BAVANI CARE HOME LIMITED,SOCIAL SERVICES RESIDENTIAL,Adult Social Care & Health,Independent Placements,A56006
Royal Borough of Kingston,01/11/2023,90284187,"-4,486.28",BAVANI CARE HOME LIMITED,SOCIAL SERVICES RESIDENTIAL,Adult Social Care & Health,Independent Placements,A56006
Royal Borough of Kingston,01/11/2023,90284188,"4,558.63",BAVANI CARE HOME LIMITED,SOCIAL SERVICES RESIDENTIAL,Adult Social Care & Health,Independent Placements,A56006
Royal Borough of Kingston,01/11/2023,90284199,"4,050.00",BAVANI CARE HOME LIMITED,SOCIAL SERVICES RESIDENTIAL,Adult Social Care & Health,Independent Placements,A56006
Royal Borough of Kingston,01/11/2023,90284200,"-3,857.14",BAVANI CARE HOME LIMITED,SOCIAL SERVICES RESIDENTIAL,Adult Social Care & Health,Independent Placements,A56006
Royal Borough of Kingston,01/11/2023,90284201,"4,185.00",BAVANI CARE HOME LIMITED,SOCIAL SERVICES RESIDENTIAL,Adult Social Care & Health,Independent Placements,A56006
Royal Borough of Kingston,01/11/2023,90284202,"-3,985.71",BAVANI CARE HOME LIMITED,SOCIAL SERVICES RESIDENTIAL,Adult Social Care & Health,Independent Placements,A56006
Royal Borough of Kingston,01/11/2023,90284203,"4,050.00",BAVANI CARE HOME LIMITED,SOCIAL SERVICES RESIDENTIAL,Adult Social Care & Health,Independent Placements,A56006
Royal Borough of Kingston,01/11/2023,90284204,"-3,857.14",BAVANI CARE HOME LIMITED,SOCIAL SERVICES RESIDENTIAL,Adult Social Care & Health,Independent Placements,A56006
Royal Borough of Kingston,01/11/2023,90284205,"4,185.00",BAVANI CARE HOME LIMITED,SOCIAL SERVICES RESIDENTIAL,Adult Social Care & Health,Independent Placements,A56006
Royal Borough of Kingston,01/11/2023,90284206,"-3,985.71",BAVANI CARE HOME LIMITED,SOCIAL SERVICES RESIDENTIAL,Adult Social Care & Health,Independent Placements,A56006
Royal Borough of Kingston,01/11/2023,90284207,"4,185.00",BAVANI CARE HOME LIMITED,SOCIAL SERVICES RESIDENTIAL,Adult Social Care & Health,Independent Placements,A56006
Royal Borough of Kingston,01/11/2023,90284208,"-3,985.71",BAVANI CARE HOME LIMITED,SOCIAL SERVICES RESIDENTIAL,Adult Social Care & Health,Independent Placements,A56006
Royal Borough of Kingston,01/11/2023,90284209,"4,050.00",BAVANI CARE HOME LIMITED,SOCIAL SERVICES RESIDENTIAL,Adult Social Care & Health,Independent Placements,A56006
Royal Borough of Kingston,01/11/2023,90284210,"-3,857.14",BAVANI CARE HOME LIMITED,SOCIAL SERVICES RESIDENTIAL,Adult Social Care & Health,Independent Placements,A56006
Royal Borough of Kingston,01/11/2023,90284211,"4,185.00",BAVANI CARE HOME LIMITED,SOCIAL SERVICES RESIDENTIAL,Adult Social Care & Health,Independent Placements,A56006
Royal Borough of Kingston,01/11/2023,90284212,"-3,985.71",BAVANI CARE HOME LIMITED,SOCIAL SERVICES RESIDENTIAL,Adult Social Care & Health,Independent Placements,A56006
Royal Borough of Kingston,01/11/2023,90284213,"4,050.00",BAVANI CARE HOME LIMITED,SOCIAL SERVICES RESIDENTIAL,Adult Social Care & Health,Independent Placements,A56006
Royal Borough of Kingston,01/11/2023,90284224,"5,785.71",BAVANI CARE HOME LIMITED,SOCIAL SERVICES RESIDENTIAL,Adult Social Care & Health,Independent Placements,A56006
Royal Borough of Kingston,01/11/2023,90284225,"5,785.71",BAVANI CARE HOME LIMITED,SOCIAL SERVICES RESIDENTIAL,Adult Social Care & Health,Independent Placements,A56006
Royal Borough of Kingston,01/11/2023,90284287,660.00,BAVANI CARE HOME LIMITED,SOCIAL SERVICES RESIDENTIAL,Adult Social Care & Health,Independent Placements,A56006
Royal Borough of Kingston,01/11/2023,90284288,"4,290.00",BAVANI CARE HOME LIMITED,SOCIAL SERVICES RESIDENTIAL,Adult Social Care & Health,Independent Placements,A56006
Royal Borough of Kingston,01/11/2023,90284289,"-4,085.71",BAVANI CARE HOME LIMITED,SOCIAL SERVICES RESIDENTIAL,Adult Social Care & Health,Independent Placements,A56006
Royal Borough of Kingston,01/11/2023,90284290,-628.57,BAVANI CARE HOME LIMITED,SOCIAL SERVICES RESIDENTIAL,Adult Social Care & Health,Independent Placements,A56006
Royal Borough of Kingston,01/11/2023,90284292,"4,785.00",BAVANI CARE HOME LIMITED,SOCIAL SERVICES RESIDENTIAL,Adult Social Care & Health,Independent Placements,A56006
Royal Borough of Kingston,01/11/2023,90284294,"-4,557.14",BAVANI CARE HOME LIMITED,SOCIAL SERVICES RESIDENTIAL,Adult Social Care & Health,Independent Placements,A56006
Royal Borough of Kingston,01/11/2023,90284296,"4,455.00",BAVANI CARE HOME LIMITED,SOCIAL SERVICES RESIDENTIAL,Adult Social Care & Health,Independent Placements,A56006
Royal Borough of Kingston,01/11/2023,90284298,"-4,242.86",BAVANI CARE HOME LIMITED,SOCIAL SERVICES RESIDENTIAL,Adult Social Care & Health,Independent Placements,A56006
Royal Borough of Kingston,01/11/2023,90284299,"5,115.00",BAVANI CARE HOME LIMITED,SOCIAL SERVICES RESIDENTIAL,Adult Social Care & Health,Independent Placements,A56006
Royal Borough of Kingston,01/11/2023,90284300,"-4,871.43",BAVANI CARE HOME LIMITED,SOCIAL SERVICES RESIDENTIAL,Adult Social Care & Health,Independent Placements,A56006
Royal Borough of Kingston,01/11/2023,90284301,"1,320.00",BAVANI CARE HOME LIMITED,SOCIAL SERVICES RESIDENTIAL,Adult Social Care & Health,Independent Placements,A56006
Royal Borough of Kingston,01/11/2023,90284302,"3,795.00",BAVANI CARE HOME LIMITED,SOCIAL SERVICES RESIDENTIAL,Adult Social Care & Health,Independent Placements,A56006
Royal Borough of Kingston,01/11/2023,90284303,"-1,257.14",BAVANI CARE HOME LIMITED,SOCIAL SERVICES RESIDENTIAL,Adult Social Care & Health,Independent Placements,A56006
Royal Borough of Kingston,01/11/2023,90284304,"-3,614.29",BAVANI CARE HOME LIMITED,SOCIAL SERVICES RESIDENTIAL,Adult Social Care & Health,Independent Placements,A56006
Royal Borough of Kingston,01/11/2023,90284305,"4,950.00",BAVANI CARE HOME LIMITED,SOCIAL SERVICES RESIDENTIAL,Adult Social Care & Health,Independent Placements,A56006
Royal Borough of Kingston,01/11/2023,90284306,"-4,714.29",BAVANI CARE HOME LIMITED,SOCIAL SERVICES RESIDENTIAL,Adult Social Care & Health,Independent Placements,A56006
Royal Borough of Kingston,01/11/2023,90284307,"1,485.00",BAVANI CARE HOME LIMITED,SOCIAL SERVICES RESIDENTIAL,Adult Social Care & Health,Independent Placements,A56006
Royal Borough of Kingston,01/11/2023,90284308,"-1,414.29",BAVANI CARE HOME LIMITED,SOCIAL SERVICES RESIDENTIAL,Adult Social Care & Health,Independent Placements,A56006
Royal Borough of Kingston,22/10/2023,70057812,"1,057.20",BDT HEALTHCARE LTD,SOCIAL SERVICES - OTHER,Adult Social Care & Health,Other Private Contractors - Third Party,A56080
Royal Borough of Kingston,22/10/2023,70057813,774.93,BDT HEALTHCARE LTD,SOCIAL SERVICES - OTHER,Adult Social Care & Health,Other Private Contractors - Third Party,A56080
Royal Borough of Kingston,22/10/2023,70057815,"1,059.77",BDT HEALTHCARE LTD,SOCIAL SERVICES - OTHER,Adult Social Care & Health,Other Private Contractors - Third Party,A56080
Royal Borough of Kingston,22/09/2023,70057643,"7,200.00",Beam Up Ltd,CHARITIES & VOLUNTARY ORGNS,Adult Social Care & Health,Housing and Support - Generic Services,A62013
Royal Borough of Kingston,03/10/2023,70055868,575.62,BFS GROUP LIMITED ,CATERING SERVICES,Adult Social Care & Health,Purchases for resale,A49004
Royal Borough of Kingston,19/10/2023,70057118,952.59,BFS GROUP LIMITED ,CATERING SERVICES,Adult Social Care & Health,Purchases for resale,A49004
Royal Borough of Kingston,31/10/2023,70057728,"5,235.45",CHELSEA & WESTMINSTER HOSP NHS FT,MANAGEMENT & TRAINING SERVICES,Adult Social Care & Health,Other Private Contractors - Third Party,A56080
Royal Borough of Kingston,23/11/2023,90283508,"1,317.76",REDACTED - PERSONAL DATA,PLS LANDLORDS,Place,PSL Payments To Landlords,A22031
Royal Borough of Kingston,16/10/2023,90279554,559.02,BLUE ARROW CARE LTD,SOCIAL SERVICES-HOME CARE,Adult Social Care & Health,Personal Budget - Third Party,A61019
Royal Borough of Kingston,16/10/2023,90279575,745.36,BLUE ARROW CARE LTD,SOCIAL SERVICES-HOME CARE,Adult Social Care & Health,Personal Budget - Third Party,A61019
Royal Borough of Kingston,23/10/2023,90282087,559.02,BLUE ARROW CARE LTD,SOCIAL SERVICES-HOME CARE,Adult Social Care & Health,Personal Budget - Third Party,A61019
Royal Borough of Kingston,23/10/2023,90282106,745.36,BLUE ARROW CARE LTD,SOCIAL SERVICES-HOME CARE,Adult Social Care & Health,Personal Budget - Third Party,A61019
Royal Borough of Kingston,30/10/2023,90283329,559.02,BLUE ARROW CARE LTD,SOCIAL SERVICES-HOME CARE,Adult Social Care & Health,Personal Budget - Third Party,A61019
Royal Borough of Kingston,30/10/2023,90283350,745.36,BLUE ARROW CARE LTD,SOCIAL SERVICES-HOME CARE,Adult Social Care & Health,Personal Budget - Third Party,A61019
Royal Borough of Kingston,06/11/2023,90287030,559.02,BLUE ARROW CARE LTD,SOCIAL SERVICES-HOME CARE,Adult Social Care & Health,Personal Budget - Third Party,A61019
Royal Borough of Kingston,06/11/2023,90287049,745.36,BLUE ARROW CARE LTD,SOCIAL SERVICES-HOME CARE,Adult Social Care & Health,Personal Budget - Third Party,A61019
Royal Borough of Kingston,23/11/2023,90283679,916.66,BONSOR PENNINGTONS LTD,PLS LANDLORDS,Place,PSL Payments To Landlords,A22031
Royal Borough of Kingston,31/10/2023,70057954,"2,828.58",Bosence Farm Community Ltd,SOCIAL SERVICES - OTHER,Adult Social Care & Health,Independent Placements,A56006
Royal Borough of Kingston,01/11/2023,90284509,"6,300.00",Boulters Lock Residential Home,SOCIAL SERVICES RESIDENTIAL,Adult Social Care & Health,Independent Placements,A56006
Royal Borough of Kingston,26/10/2023,70057789,"2,895.00",BOWLS SERVICES (TOLWORTH) LTD,GRANTS & EX GRATIA PAYMENTS,Corporate & Communities,Payments to Voluntary Organisations,A54005
Royal Borough of Kingston,23/11/2023,90283680,900.00,BR INVESTMENTS LIMITED,PLS LANDLORDS,Place,PSL Payments To Landlords,A22031
Royal Borough of Kingston,06/11/2023,70058203,450.00,BREAD AND BUTTER CREATIVE LIMITED,REPROGRAPHICS & PHOTOGRAPHY,Housing Revenue Account,Miscellaneous Expenses,A49000
Royal Borough of Kingston,28/11/2023,70059467,690.00,BREAD AND BUTTER CREATIVE LIMITED,REPROGRAPHICS & PHOTOGRAPHY,Adult Social Care & Health,Consultancy Services - Other,A44065
Royal Borough of Kingston,14/11/2023,90281175,"1,814.40",BRIGHT HORIZONS FAMILY SOLUTIONS,ACADEMIC INSTNS - OTHER,Schools,Early Years Contingency,A60030
Royal Borough of Kingston,14/11/2023,90281176,940.80,BRIGHT HORIZONS FAMILY SOLUTIONS,ACADEMIC INSTNS - OTHER,Schools,Early Years Contingency,A60030
Royal Borough of Kingston,14/11/2023,90281189,"1,524.90",BRIGHT HORIZONS FAMILY SOLUTIONS,ACADEMIC INSTNS - OTHER,Schools,Early Years Contingency,A60030
Royal Borough of Kingston,14/11/2023,90281262,"1,054.65",BRIGHT HORIZONS FAMILY SOLUTIONS,ACADEMIC INSTNS - OTHER,Schools,Early Years Contingency,A60030
Royal Borough of Kingston,14/11/2023,90281274,"1,344.00",BRIGHT HORIZONS FAMILY SOLUTIONS,ACADEMIC INSTNS - OTHER,Schools,Early Years Contingency,A60030
Royal Borough of Kingston,14/11/2023,90281278,"1,323.00",BRIGHT HORIZONS FAMILY SOLUTIONS,ACADEMIC INSTNS - OTHER,Schools,Early Years Contingency,A60030
Royal Borough of Kingston,14/11/2023,90281281,"1,890.38",BRIGHT HORIZONS FAMILY SOLUTIONS,ACADEMIC INSTNS - OTHER,Schools,Early Years Contingency,A60030
Royal Borough of Kingston,03/04/2023,70057948,"1,700.94",BRITISH TELECOMMUNICATIONS PLC,TELECOMS,Adult Social Care & Health,Telephones,A45020
Royal Borough of Kingston,28/03/2023,70058120,"114,307.00",BRITISH TELECOMMUNICATIONS PLC,TELECOMS,Adult Social Care & Health,Other Private Contractors - Third Party,A56080
Royal Borough of Kingston,06/11/2023,70058047,"72,098.00",Broxap Limited,SUNDRY SUPPLIER - FINANCE,Corporate & Communities,NCIL Grants,A47006
Royal Borough of Kingston,02/11/2023,70058081,"1,674.00","Buildvantage Management Limited,",ACCOMMODATION BED & BREAKFAST,Place,Bed & Breakfast,A56000
Royal Borough of Kingston,02/11/2023,70058082,"1,519.00","Buildvantage Management Limited,",ACCOMMODATION BED & BREAKFAST,Place,Bed & Breakfast,A56000
Royal Borough of Kingston,02/11/2023,70058083,"2,170.00","Buildvantage Management Limited,",ACCOMMODATION BED & BREAKFAST,Place,Bed & Breakfast,A56000
Royal Borough of Kingston,02/11/2023,70058084,"1,674.00","Buildvantage Management Limited,",ACCOMMODATION BED & BREAKFAST,Place,Bed & Breakfast,A56000
Royal Borough of Kingston,02/11/2023,70058085,"1,674.00","Buildvantage Management Limited,",ACCOMMODATION BED & BREAKFAST,Place,Bed & Breakfast,A56000
Royal Borough of Kingston,02/11/2023,70058086,"1,674.00","Buildvantage Management Limited,",ACCOMMODATION BED & BREAKFAST,Place,Bed & Breakfast,A56000
Royal Borough of Kingston,02/11/2023,70058087,"1,674.00","Buildvantage Management Limited,",ACCOMMODATION BED & BREAKFAST,Place,Bed & Breakfast,A56000
Royal Borough of Kingston,02/11/2023,70058088,"1,519.00","Buildvantage Management Limited,",ACCOMMODATION BED & BREAKFAST,Place,Bed & Breakfast,A56000
Royal Borough of Kingston,02/11/2023,70058089,"1,519.00","Buildvantage Management Limited,",ACCOMMODATION BED & BREAKFAST,Place,Bed & Breakfast,A56000
Royal Borough of Kingston,02/11/2023,70058090,"1,674.00","Buildvantage Management Limited,",ACCOMMODATION BED & BREAKFAST,Place,Bed & Breakfast,A56000
Royal Borough of Kingston,02/11/2023,70058091,"1,674.00","Buildvantage Management Limited,",ACCOMMODATION BED & BREAKFAST,Place,Bed & Breakfast,A56000
Royal Borough of Kingston,02/11/2023,70058092,"1,674.00","Buildvantage Management Limited,",ACCOMMODATION BED & BREAKFAST,Place,Bed & Breakfast,A56000
Royal Borough of Kingston,02/11/2023,70058093,"1,674.00","Buildvantage Management Limited,",ACCOMMODATION BED & BREAKFAST,Place,Bed & Breakfast,A56000
Royal Borough of Kingston,02/11/2023,70058094,"1,674.00","Buildvantage Management Limited,",ACCOMMODATION BED & BREAKFAST,Place,Bed & Breakfast,A56000
Royal Borough of Kingston,02/11/2023,70058095,"1,674.00","Buildvantage Management Limited,",ACCOMMODATION BED & BREAKFAST,Place,Bed & Breakfast,A56000
Royal Borough of Kingston,02/11/2023,70058096,432.00,"Buildvantage Management Limited,",ACCOMMODATION BED & BREAKFAST,Place,Bed & Breakfast,A56000
Royal Borough of Kingston,02/11/2023,70058097,"1,519.00","Buildvantage Management Limited,",ACCOMMODATION BED & BREAKFAST,Place,Bed & Breakfast,A56000
Royal Borough of Kingston,02/11/2023,70058098,"1,674.00","Buildvantage Management Limited,",ACCOMMODATION BED & BREAKFAST,Place,Bed & Breakfast,A56000
Royal Borough of Kingston,02/11/2023,70058099,"1,674.00","Buildvantage Management Limited,",ACCOMMODATION BED & BREAKFAST,Place,Bed & Breakfast,A56000
Royal Borough of Kingston,02/11/2023,70058100,"1,674.00","Buildvantage Management Limited,",ACCOMMODATION BED & BREAKFAST,Place,Bed & Breakfast,A56000
Royal Borough of Kingston,02/11/2023,70058101,"1,519.00","Buildvantage Management Limited,",ACCOMMODATION BED & BREAKFAST,Place,Bed & Breakfast,A56000
Royal Borough of Kingston,02/11/2023,70058102,"1,674.00","Buildvantage Management Limited,",ACCOMMODATION BED & BREAKFAST,Place,Bed & Breakfast,A56000
Royal Borough of Kingston,02/11/2023,70058103,"1,674.00","Buildvantage Management Limited,",ACCOMMODATION BED & BREAKFAST,Place,Bed & Breakfast,A56000
Royal Borough of Kingston,31/10/2023,70057877,"2,772.05",BUNZL OUTSOURCING SVS UK LTD,CLOTHING & UNIFORMS,Housing Revenue Account,Cleaning Supplies,A27020
Royal Borough of Kingston,31/10/2023,70057898,"1,064.65",BUNZL OUTSOURCING SVS UK LTD,CLOTHING & UNIFORMS,Housing Revenue Account,Cleaning Supplies,A27020
Royal Borough of Kingston,01/11/2023,90284152,"3,817.76",BUPA CARE HOMES (AKW) LIMITED,SOCIAL SERVICES RESIDENTIAL,Adult Social Care & Health,Independent Placements,A56006
Royal Borough of Kingston,01/11/2023,90284506,"5,411.06",BUPA CARE HOMES (AKW) LIMITED,SOCIAL SERVICES RESIDENTIAL,Adult Social Care & Health,Independent Placements,A56006
Royal Borough of Kingston,30/11/2023,90285792,"8,110.51",BUPA CARE HOMES (AKW) LIMITED,SOCIAL SERVICES RESIDENTIAL,Adult Social Care & Health,Independent Placements,A56006
Royal Borough of Kingston,30/11/2023,90285793,"8,390.19",BUPA CARE HOMES (AKW) LIMITED,SOCIAL SERVICES RESIDENTIAL,Adult Social Care & Health,Independent Placements,A56006
Royal Borough of Kingston,03/11/2023,90278821,"152,546.80",BURLINGTON INFANT AND NURSERY SCHOOL,SCHOOL FUNDS,Schools,Miscellaneous Expenses,A49000
Royal Borough of Kingston,09/11/2023,90280921,"1,692.60",BURLINGTON INFANT AND NURSERY SCHOOL,SCHOOL FUNDS,Schools,Miscellaneous Expenses,A49000
Royal Borough of Kingston,14/11/2023,90281029,"2,320.00",BURLINGTON INFANT AND NURSERY SCHOOL,SCHOOL FUNDS,Schools,Miscellaneous Expenses,A49000
Royal Borough of Kingston,14/11/2023,90281058,885.94,BURLINGTON INFANT AND NURSERY SCHOOL,SCHOOL FUNDS,Schools,Miscellaneous Expenses,A49000
Royal Borough of Kingston,14/11/2023,90281087,"22,916.25",BURLINGTON INFANT AND NURSERY SCHOOL,SCHOOL FUNDS,Schools,Miscellaneous Expenses,A49000
Royal Borough of Kingston,14/11/2023,90281088,632.50,BURLINGTON INFANT AND NURSERY SCHOOL,SCHOOL FUNDS,Schools,Miscellaneous Expenses,A49000
Royal Borough of Kingston,14/11/2023,90281160,"7,459.20",BURLINGTON INFANT AND NURSERY SCHOOL,SCHOOL FUNDS,Schools,Early Years Contingency,A60030
Royal Borough of Kingston,14/11/2023,90281235,"7,600.50",BURLINGTON INFANT AND NURSERY SCHOOL,SCHOOL FUNDS,Schools,Early Years Contingency,A60030
Royal Borough of Kingston,03/11/2023,90278822,"185,933.75",BURLINGTON JUNIOR SCHOOL,SCHOOL FUNDS,Schools,Miscellaneous Expenses,A49000
Royal Borough of Kingston,14/11/2023,90281028,"3,697.50",BURLINGTON JUNIOR SCHOOL,SCHOOL FUNDS,Schools,Miscellaneous Expenses,A49000
Royal Borough of Kingston,14/11/2023,90281057,"2,047.50",BURLINGTON JUNIOR SCHOOL,SCHOOL FUNDS,Schools,Miscellaneous Expenses,A49000
Royal Borough of Kingston,14/11/2023,90281089,"35,647.50",BURLINGTON JUNIOR SCHOOL,SCHOOL FUNDS,Schools,Miscellaneous Expenses,A49000
Royal Borough of Kingston,14/11/2023,90281090,"2,530.00",BURLINGTON JUNIOR SCHOOL,SCHOOL FUNDS,Schools,Miscellaneous Expenses,A49000
Royal Borough of Kingston,31/10/2023,70057850,"19,032.00",BURO HAPPOLD LIMTED,LEGAL & PROFESSIONAL SERVICES,Place,Buildings - Design & Planning,C14001
Royal Borough of Kingston,31/10/2023,70057998,450.00,BYTES SOFTWARE SERVICES LTD,BUSINESS & COMPUTER SYSTEMS,Corporate & Communities,IT Software Purchase,A45040
Royal Borough of Kingston,31/10/2023,70058001,"7,429.93",BYTES SOFTWARE SERVICES LTD,BUSINESS & COMPUTER SYSTEMS,Corporate & Communities,IT Hardware Purchase,A45005
Royal Borough of Kingston,15/11/2023,70058736,750.00,BYTES SOFTWARE SERVICES LTD,BUSINESS & COMPUTER SYSTEMS,Corporate & Communities,Consultancy Services,A56007
Royal Borough of Kingston,15/11/2023,70058737,"3,486.41",BYTES SOFTWARE SERVICES LTD,BUSINESS & COMPUTER SYSTEMS,Corporate & Communities,IT Software Maintenance,A45045
Royal Borough of Kingston,15/11/2023,70058738,750.00,BYTES SOFTWARE SERVICES LTD,BUSINESS & COMPUTER SYSTEMS,Corporate & Communities,Consultancy Services,A56007
Royal Borough of Kingston,17/11/2023,70058852,"2,083.20",BYTES SOFTWARE SERVICES LTD,BUSINESS & COMPUTER SYSTEMS,Corporate & Communities,IT Software Maintenance,A45045
Royal Borough of Kingston,08/11/2023,70059247,"12,815.00",C & C Builders Limited,SUNDRY SUPPLIER - HOUSING,Corporate & Communities,Grants Given For Capital Purposes,C20004
Royal Borough of Kingston,23/11/2023,90283625,"1,314.08",REDACTED - PERSONAL DATA,PLS LANDLORDS,Place,PSL Payments To Landlords,A22031
Royal Borough of Kingston,23/11/2023,90283627,"1,094.00",REDACTED - PERSONAL DATA,PLS LANDLORDS,Place,PSL Payments To Landlords,A22031
Royal Borough of Kingston,23/11/2023,90283748,"1,314.08",REDACTED - PERSONAL DATA,PLS LANDLORDS,Place,PSL Payments To Landlords,A22031
Royal Borough of Kingston,23/11/2023,90283749,"1,314.08",REDACTED - PERSONAL DATA,PLS LANDLORDS,Place,PSL Payments To Landlords,A22031
Royal Borough of Kingston,23/11/2023,90283750,"1,314.08",REDACTED - PERSONAL DATA,PLS LANDLORDS,Place,PSL Payments To Landlords,A22031
Royal Borough of Kingston,23/11/2023,90283751,"1,314.08",REDACTED - PERSONAL DATA,PLS LANDLORDS,Place,PSL Payments To Landlords,A22031
Royal Borough of Kingston,23/11/2023,90283708,"1,317.76",REDACTED - PERSONAL DATA,PLS LANDLORDS,Place,PSL Payments To Landlords,A22031
Royal Borough of Kingston,23/11/2023,90283692,"1,025.00",REDACTED - PERSONAL DATA,PLS LANDLORDS,Place,PSL Payments To Landlords,A22031
Royal Borough of Kingston,23/11/2023,90283829,"1,679.75",REDACTED - PERSONAL DATA,PLS LANDLORDS,Place,PSL Payments To Landlords,A22031
Royal Borough of Kingston,26/08/2023,70058683,"1,584.00",Caf� in the park (Sutton) Ltd,FOOD & DRINK,Corporate & Communities,Catering,A41000
Royal Borough of Kingston,31/10/2023,70058250,"84,392.57",Cambridge Road Estate (RBK) LLP,LEGAL & PROFESSIONAL SERVICES,Housing Revenue Account,Council Dwellings - Acquisition,C10006
Royal Borough of Kingston,31/10/2023,70058251,"142,103.78",Cambridge Road Estate (RBK) LLP,LEGAL & PROFESSIONAL SERVICES,Housing Revenue Account,Council Dwellings - Acquisition,C10006
Royal Borough of Kingston,01/08/2023,90285073,"3,818.85",Camphill Village Trust Ltd,SOCIAL SERVICES RESIDENTIAL,Adult Social Care & Health,Personal Budget - Third Party,A61019
Royal Borough of Kingston,01/08/2023,90285530,"46,621.43",Camphill Village Trust Ltd,SOCIAL SERVICES RESIDENTIAL,Adult Social Care & Health,Personal Budget - Third Party,A61019
Royal Borough of Kingston,01/08/2023,90285531,"13,611.54",Camphill Village Trust Ltd,SOCIAL SERVICES RESIDENTIAL,Adult Social Care & Health,Personal Budget - Third Party,A61019
Royal Borough of Kingston,01/11/2023,90285339,"5,513.31",CARE MANAGEMENT GROUP LTD,SOCIAL SERVICES RESIDENTIAL,Adult Social Care & Health,Personal Budget - Third Party,A61019
Royal Borough of Kingston,01/11/2023,90284091,"2,635.71",CARE UK COMMUNITY PARTNERSHIPS LTD,SOCIAL SERVICES RESIDENTIAL,Adult Social Care & Health,Independent Placements,A56006
Royal Borough of Kingston,01/11/2023,90284148,"3,278.57",CARE UK COMMUNITY PARTNERSHIPS LTD,SOCIAL SERVICES RESIDENTIAL,Adult Social Care & Health,Independent Placements,A56006
Royal Borough of Kingston,01/11/2023,90284239,"4,281.04",CARE UK COMMUNITY PARTNERSHIPS LTD,SOCIAL SERVICES RESIDENTIAL,Adult Social Care & Health,Independent Placements,A56006
Royal Borough of Kingston,01/11/2023,90284261,"2,833.33",CARE UK COMMUNITY PARTNERSHIPS LTD,SOCIAL SERVICES RESIDENTIAL,Adult Social Care & Health,Independent Placements,A56006
Royal Borough of Kingston,01/11/2023,90284173,"4,714.29",CARELODGES GROUP LTD  ,SOCIAL SERVICES RESIDENTIAL,Adult Social Care & Health,Independent Placements,A56006
Royal Borough of Kingston,01/11/2023,90284433,"5,658.81",CARELODGES GROUP LTD  ,SOCIAL SERVICES RESIDENTIAL,Adult Social Care & Health,Independent Placements,A56006
Royal Borough of Kingston,14/11/2023,90281142,"2,352.00",CAREROOM LTD ,ACADEMIC INSTNS - OTHER,Schools,Early Years Contingency,A60030
Royal Borough of Kingston,14/11/2023,90281186,"1,978.20",CAREROOM LTD ,ACADEMIC INSTNS - OTHER,Schools,Early Years Contingency,A60030
Royal Borough of Kingston,16/10/2023,90279094,504.21,CARLCARE LTD,SOCIAL SERVICES-HOME CARE,Adult Social Care & Health,Homecare - new framework,A56127
Royal Borough of Kingston,16/10/2023,90279373,513.22,CARLCARE LTD,SOCIAL SERVICES-HOME CARE,Adult Social Care & Health,Homecare - new framework,A56127
Royal Borough of Kingston,30/10/2023,90279588,"1,275.71",CARLCARE LTD,SOCIAL SERVICES-HOME CARE,Adult Social Care & Health,Personal Budget - Third Party,A61019
Royal Borough of Kingston,23/10/2023,90281590,504.21,CARLCARE LTD,SOCIAL SERVICES-HOME CARE,Adult Social Care & Health,Homecare - new framework,A56127
Royal Borough of Kingston,23/10/2023,90281903,513.22,CARLCARE LTD,SOCIAL SERVICES-HOME CARE,Adult Social Care & Health,Homecare - new framework,A56127
Royal Borough of Kingston,06/11/2023,90282119,"1,275.71",CARLCARE LTD,SOCIAL SERVICES-HOME CARE,Adult Social Care & Health,Personal Budget - Third Party,A61019
Royal Borough of Kingston,30/10/2023,90282394,756.32,CARLCARE LTD,SOCIAL SERVICES-HOME CARE,Adult Social Care & Health,Homecare - new framework,A56127
Royal Borough of Kingston,30/10/2023,90282490,504.21,CARLCARE LTD,SOCIAL SERVICES-HOME CARE,Adult Social Care & Health,Homecare - new framework,A56127
Royal Borough of Kingston,30/10/2023,90282766,513.22,CARLCARE LTD,SOCIAL SERVICES-HOME CARE,Adult Social Care & Health,Homecare - new framework,A56127
Royal Borough of Kingston,13/11/2023,90283379,"1,275.71",CARLCARE LTD,SOCIAL SERVICES-HOME CARE,Adult Social Care & Health,Personal Budget - Third Party,A61019
Royal Borough of Kingston,06/11/2023,90285965,909.39,CARLCARE LTD,SOCIAL SERVICES-HOME CARE,Adult Social Care & Health,Homecare - new framework,A56127
Royal Borough of Kingston,06/11/2023,90286018,504.21,CARLCARE LTD,SOCIAL SERVICES-HOME CARE,Adult Social Care & Health,Homecare - new framework,A56127
Royal Borough of Kingston,06/11/2023,90286492,567.24,CARLCARE LTD,SOCIAL SERVICES-HOME CARE,Adult Social Care & Health,Homecare - new framework,A56127
Royal Borough of Kingston,20/11/2023,90287064,"1,275.71",CARLCARE LTD,SOCIAL SERVICES-HOME CARE,Adult Social Care & Health,Personal Budget - Third Party,A61019
Royal Borough of Kingston,23/11/2023,90283723,"1,550.00",CARLISLE SECURITIES LTD,PLS LANDLORDS,Place,PSL Payments To Landlords,A22031
Royal Borough of Kingston,23/11/2023,90283543,"1,185.00",REDACTED - PERSONAL DATA,PLS LANDLORDS,Place,PSL Payments To Landlords,A22031
Royal Borough of Kingston,08/11/2023,70058569,"10,000.00",REDACTED - PERSONAL DATA,GRANTS & EX GRATIA PAYMENTS,Place,Arts Programme,A44286
Royal Borough of Kingston,01/11/2023,90284434,"9,623.19",CARTREF HOMES,SOCIAL SERVICES RESIDENTIAL,Adult Social Care & Health,Independent Placements,A56006
Royal Borough of Kingston,01/11/2023,90284345,"14,249.87",CAS CARE SERVICES LTD,SOCIAL SERVICES - OTHER,Adult Social Care & Health,Independent Placements,A56006
Royal Borough of Kingston,01/11/2023,90284466,"14,249.87",CAS CARE SERVICES LTD,SOCIAL SERVICES - OTHER,Adult Social Care & Health,Independent Placements,A56006
Royal Borough of Kingston,09/11/2023,90280922,"1,171.80",CASTLE HILL SCHOOL,SCHOOL FUNDS,Schools,Miscellaneous Expenses,A49000
Royal Borough of Kingston,14/11/2023,90281172,"3,292.80",CASTLE HILL SCHOOL,SCHOOL FUNDS,Schools,Early Years Contingency,A60030
Royal Borough of Kingston,14/11/2023,90281236,"3,880.80",CASTLE HILL SCHOOL,SCHOOL FUNDS,Schools,Early Years Contingency,A60030
Royal Borough of Kingston,23/11/2023,90283516,"2,149.00",CASTLE RESIDENTIAL PROPERTIES LTD,PLS LANDLORDS,Place,PSL Payments To Landlords,A22031
Royal Borough of Kingston,23/11/2023,90283517,"1,540.00",CASTLE RESIDENTIAL PROPERTIES LTD,PLS LANDLORDS,Place,PSL Payments To Landlords,A22031
Royal Borough of Kingston,23/11/2023,90283626,"1,321.00",CASTLE RESIDENTIAL PROPERTIES LTD,PLS LANDLORDS,Place,PSL Payments To Landlords,A22031
Royal Borough of Kingston,23/11/2023,90283628,"1,049.98",CASTLE RESIDENTIAL PROPERTIES LTD,PLS LANDLORDS,Place,PSL Payments To Landlords,A22031
Royal Borough of Kingston,23/11/2023,90283790,"2,144.09",CASTLE RESIDENTIAL PROPERTIES LTD,PLS LANDLORDS,Place,PSL Payments To Landlords,A22031
Royal Borough of Kingston,23/11/2023,90283858,"2,144.09",CASTLE RESIDENTIAL PROPERTIES LTD,PLS LANDLORDS,Place,PSL Payments To Landlords,A22031
Royal Borough of Kingston,23/11/2023,90283514,"1,094.34",CASTLE WILDISH RESI LTD,PLS LANDLORDS,Place,PSL Payments To Landlords,A22031
Royal Borough of Kingston,23/11/2023,90283515,"1,094.34",CASTLE WILDISH RESI LTD,PLS LANDLORDS,Place,PSL Payments To Landlords,A22031
Royal Borough of Kingston,23/11/2023,90283844,"2,100.00",CASTLE WILDISH RESI LTD,PLS LANDLORDS,Place,PSL Payments To Landlords,A22031
Royal Borough of Kingston,23/11/2023,90283845,"2,100.00",CASTLE WILDISH RESI LTD,PLS LANDLORDS,Place,PSL Payments To Landlords,A22031
Royal Borough of Kingston,23/11/2023,90283668,867.00,REDACTED - PERSONAL DATA,PLS LANDLORDS,Place,PSL Payments To Landlords,A22031
Royal Borough of Kingston,06/11/2023,70058579,845.25,CATTANEO COMMERCIAL LIMITED,PROFESSIONAL ASSOCIATIONS TU,Place,Property-Related Professional Fees,A20035
Royal Borough of Kingston,01/11/2023,90284363,"11,331.99",Gresham Care Operations Limited,SOCIAL SERVICES RESIDENTIAL,Adult Social Care & Health,Independent Placements,A56006
Royal Borough of Kingston,23/11/2023,90283655,895.10,REDACTED - PERSONAL DATA,PLS LANDLORDS,Place,PSL Payments To Landlords,A22031
Royal Borough of Kingston,02/10/2023,70057879,528.00,CENTRE FOR CIVIL SOCIETY LIMITED,CHARITIES & VOLUNTARY ORGNS,Corporate & Communities,Staff Professional Membership Fees Non Payroll,A15025
Royal Borough of Kingston,09/10/2023,70059138,"18,970.00",Chameleon People Solutions Ltd,TEMP STAFF & CONSULTANCY,Chief Executives,Consultancy Services - Other,A44065
Royal Borough of Kingston,30/09/2023,70055488,"1,912.50",CHAWTON HILL ASSOCIATES LIMITED,LEGAL & PROFESSIONAL SERVICES,Place,Buildings - Design & Planning,C14001
Royal Borough of Kingston,30/09/2023,70057637,"2,000.54",CHAWTON HILL ASSOCIATES LIMITED,LEGAL & PROFESSIONAL SERVICES,Place,Payments to Contractors,C14000
Royal Borough of Kingston,01/11/2023,90282277,892.86,CHD (CARE HOMES) LTD,SOCIAL SERVICES RESIDENTIAL,Adult Social Care & Health,Independent Placements,A56006
Royal Borough of Kingston,01/11/2023,90282278,"5,535.71",CHD (CARE HOMES) LTD,SOCIAL SERVICES RESIDENTIAL,Adult Social Care & Health,Independent Placements,A56006
Royal Borough of Kingston,01/11/2023,90284108,"3,562.29",CHD (CARE HOMES) LTD,SOCIAL SERVICES RESIDENTIAL,Adult Social Care & Health,Independent Placements,A56006
Royal Borough of Kingston,01/11/2023,90284244,"5,357.14",CHD (CARE HOMES) LTD,SOCIAL SERVICES RESIDENTIAL,Adult Social Care & Health,Independent Placements,A56006
Royal Borough of Kingston,01/11/2023,90284250,"5,280.00",CHD (CARE HOMES) LTD,SOCIAL SERVICES RESIDENTIAL,Adult Social Care & Health,Independent Placements,A56006
Royal Borough of Kingston,01/11/2023,90284277,"3,535.71",CHD (CARE HOMES) LTD,SOCIAL SERVICES RESIDENTIAL,Adult Social Care & Health,Independent Placements,A56006
Royal Borough of Kingston,01/11/2023,90278903,"3,085.71",CHD CARE LTD,SOCIAL SERVICES RESIDENTIAL,Adult Social Care & Health,Independent Placements,A56006
Royal Borough of Kingston,01/11/2023,90278904,"2,057.14",CHD CARE LTD,SOCIAL SERVICES RESIDENTIAL,Adult Social Care & Health,Independent Placements,A56006
Royal Borough of Kingston,01/11/2023,90278905,"-2,314.29",CHD CARE LTD,SOCIAL SERVICES RESIDENTIAL,Adult Social Care & Health,Independent Placements,A56006
Royal Borough of Kingston,01/11/2023,90278906,"-1,542.86",CHD CARE LTD,SOCIAL SERVICES RESIDENTIAL,Adult Social Care & Health,Independent Placements,A56006
Royal Borough of Kingston,01/11/2023,90278907,"2,314.29",CHD CARE LTD,SOCIAL SERVICES RESIDENTIAL,Adult Social Care & Health,Independent Placements,A56006
Royal Borough of Kingston,01/11/2023,90278908,"1,542.86",CHD CARE LTD,SOCIAL SERVICES RESIDENTIAL,Adult Social Care & Health,Independent Placements,A56006
Royal Borough of Kingston,01/11/2023,90278909,"5,314.29",CHD CARE LTD,SOCIAL SERVICES RESIDENTIAL,Adult Social Care & Health,Independent Placements,A56006
Royal Borough of Kingston,01/11/2023,90278910,"-3,985.71",CHD CARE LTD,SOCIAL SERVICES RESIDENTIAL,Adult Social Care & Health,Independent Placements,A56006
Royal Borough of Kingston,01/11/2023,90278911,"3,985.71",CHD CARE LTD,SOCIAL SERVICES RESIDENTIAL,Adult Social Care & Health,Independent Placements,A56006
Royal Borough of Kingston,01/11/2023,90278912,"5,142.86",CHD CARE LTD,SOCIAL SERVICES RESIDENTIAL,Adult Social Care & Health,Independent Placements,A56006
Royal Borough of Kingston,01/11/2023,90278913,"-3,857.14",CHD CARE LTD,SOCIAL SERVICES RESIDENTIAL,Adult Social Care & Health,Independent Placements,A56006
Royal Borough of Kingston,01/11/2023,90278914,"3,857.14",CHD CARE LTD,SOCIAL SERVICES RESIDENTIAL,Adult Social Care & Health,Independent Placements,A56006
Royal Borough of Kingston,01/11/2023,90278915,"5,314.29",CHD CARE LTD,SOCIAL SERVICES RESIDENTIAL,Adult Social Care & Health,Independent Placements,A56006
Royal Borough of Kingston,01/11/2023,90278916,"-3,985.71",CHD CARE LTD,SOCIAL SERVICES RESIDENTIAL,Adult Social Care & Health,Independent Placements,A56006
Royal Borough of Kingston,01/11/2023,90278917,"3,985.71",CHD CARE LTD,SOCIAL SERVICES RESIDENTIAL,Adult Social Care & Health,Independent Placements,A56006
Royal Borough of Kingston,01/11/2023,90278918,"3,771.43",CHD CARE LTD,SOCIAL SERVICES RESIDENTIAL,Adult Social Care & Health,Independent Placements,A56006
Royal Borough of Kingston,01/11/2023,90278919,"-2,828.57",CHD CARE LTD,SOCIAL SERVICES RESIDENTIAL,Adult Social Care & Health,Independent Placements,A56006
Royal Borough of Kingston,01/11/2023,90278920,"2,828.57",CHD CARE LTD,SOCIAL SERVICES RESIDENTIAL,Adult Social Care & Health,Independent Placements,A56006
Royal Borough of Kingston,01/11/2023,90280972,"1,728.57",CHD CARE LTD,SOCIAL SERVICES RESIDENTIAL,Adult Social Care & Health,Other Private Contractors - Third Party,A56080
Royal Borough of Kingston,01/11/2023,90280973,"1,728.57",CHD CARE LTD,SOCIAL SERVICES RESIDENTIAL,Adult Social Care & Health,Other Private Contractors - Third Party,A56080
Royal Borough of Kingston,01/11/2023,90280974,"1,728.57",CHD CARE LTD,SOCIAL SERVICES RESIDENTIAL,Adult Social Care & Health,Other Private Contractors - Third Party,A56080
Royal Borough of Kingston,01/11/2023,90280975,"1,728.57",CHD CARE LTD,SOCIAL SERVICES RESIDENTIAL,Adult Social Care & Health,Other Private Contractors - Third Party,A56080
Royal Borough of Kingston,01/11/2023,90280976,"1,728.57",CHD CARE LTD,SOCIAL SERVICES RESIDENTIAL,Adult Social Care & Health,Other Private Contractors - Third Party,A56080
Royal Borough of Kingston,01/11/2023,90280977,"1,728.57",CHD CARE LTD,SOCIAL SERVICES RESIDENTIAL,Adult Social Care & Health,Other Private Contractors - Third Party,A56080
Royal Borough of Kingston,01/11/2023,90280978,"1,728.57",CHD CARE LTD,SOCIAL SERVICES RESIDENTIAL,Adult Social Care & Health,Other Private Contractors - Third Party,A56080
Royal Borough of Kingston,01/11/2023,90280979,"1,728.57",CHD CARE LTD,SOCIAL SERVICES RESIDENTIAL,Adult Social Care & Health,Other Private Contractors - Third Party,A56080
Royal Borough of Kingston,01/11/2023,90280980,"1,728.57",CHD CARE LTD,SOCIAL SERVICES RESIDENTIAL,Adult Social Care & Health,Other Private Contractors - Third Party,A56080
Royal Borough of Kingston,01/11/2023,90280981,"1,728.57",CHD CARE LTD,SOCIAL SERVICES RESIDENTIAL,Adult Social Care & Health,Other Private Contractors - Third Party,A56080
Royal Borough of Kingston,01/11/2023,90284060,"4,157.14",CHD CARE LTD,SOCIAL SERVICES RESIDENTIAL,Adult Social Care & Health,Independent Placements,A56006
Royal Borough of Kingston,01/11/2023,90284540,"2,357.14",CHD CARE LTD,SOCIAL SERVICES RESIDENTIAL,Adult Social Care & Health,Other Private Contractors - Third Party,A56080
Royal Borough of Kingston,01/11/2023,90284541,"2,357.14",CHD CARE LTD,SOCIAL SERVICES RESIDENTIAL,Adult Social Care & Health,Other Private Contractors - Third Party,A56080
Royal Borough of Kingston,01/11/2023,90284542,"2,357.14",CHD CARE LTD,SOCIAL SERVICES RESIDENTIAL,Adult Social Care & Health,Other Private Contractors - Third Party,A56080
Royal Borough of Kingston,01/11/2023,90284543,"2,357.14",CHD CARE LTD,SOCIAL SERVICES RESIDENTIAL,Adult Social Care & Health,Other Private Contractors - Third Party,A56080
Royal Borough of Kingston,01/11/2023,90284544,"2,357.14",CHD CARE LTD,SOCIAL SERVICES RESIDENTIAL,Adult Social Care & Health,Other Private Contractors - Third Party,A56080
Royal Borough of Kingston,01/11/2023,90284545,"2,357.14",CHD CARE LTD,SOCIAL SERVICES RESIDENTIAL,Adult Social Care & Health,Other Private Contractors - Third Party,A56080
Royal Borough of Kingston,01/11/2023,90284546,"2,357.14",CHD CARE LTD,SOCIAL SERVICES RESIDENTIAL,Adult Social Care & Health,Other Private Contractors - Third Party,A56080
Royal Borough of Kingston,01/11/2023,90284547,"2,357.14",CHD CARE LTD,SOCIAL SERVICES RESIDENTIAL,Adult Social Care & Health,Other Private Contractors - Third Party,A56080
Royal Borough of Kingston,01/11/2023,90284548,"2,357.14",CHD CARE LTD,SOCIAL SERVICES RESIDENTIAL,Adult Social Care & Health,Other Private Contractors - Third Party,A56080
Royal Borough of Kingston,01/11/2023,90284549,"2,357.14",CHD CARE LTD,SOCIAL SERVICES RESIDENTIAL,Adult Social Care & Health,Other Private Contractors - Third Party,A56080
Royal Borough of Kingston,01/11/2023,90284116,"1,068.69",CHD LIVING,SOCIAL SERVICES RESIDENTIAL,Adult Social Care & Health,Independent Placements,A56006
Royal Borough of Kingston,14/11/2023,90281196,756.00,CHILDS PLAY NURSERY SCHOOL LTD,ACADEMIC INSTNS - OTHER,Schools,Early Years Contingency,A60030
Royal Borough of Kingston,01/11/2023,90284114,"3,633.90",CHISWICK NURSING CENTRE,SOCIAL SERVICES RESIDENTIAL,Adult Social Care & Health,Independent Placements,A56006
Royal Borough of Kingston,01/11/2023,90284166,"3,323.61",CHISWICK NURSING CENTRE,SOCIAL SERVICES RESIDENTIAL,Adult Social Care & Health,Independent Placements,A56006
Royal Borough of Kingston,01/11/2023,90284447,"8,539.41",CHOICE LTD,SOCIAL SERVICES RESIDENTIAL,Adult Social Care & Health,Independent Placements,A56006
Royal Borough of Kingston,01/11/2023,90284448,"-8,263.93",CHOICE LTD,SOCIAL SERVICES RESIDENTIAL,Adult Social Care & Health,Independent Placements,A56006
Royal Borough of Kingston,01/11/2023,90284449,"8,824.06",CHOICE LTD,SOCIAL SERVICES RESIDENTIAL,Adult Social Care & Health,Independent Placements,A56006
Royal Borough of Kingston,01/11/2023,90284450,"-8,539.39",CHOICE LTD,SOCIAL SERVICES RESIDENTIAL,Adult Social Care & Health,Independent Placements,A56006
Royal Borough of Kingston,01/11/2023,90284451,"8,539.41",CHOICE LTD,SOCIAL SERVICES RESIDENTIAL,Adult Social Care & Health,Independent Placements,A56006
Royal Borough of Kingston,01/11/2023,90284452,"-8,263.93",CHOICE LTD,SOCIAL SERVICES RESIDENTIAL,Adult Social Care & Health,Independent Placements,A56006
Royal Borough of Kingston,01/11/2023,90284453,"8,824.06",CHOICE LTD,SOCIAL SERVICES RESIDENTIAL,Adult Social Care & Health,Independent Placements,A56006
Royal Borough of Kingston,01/11/2023,90284454,"-8,539.39",CHOICE LTD,SOCIAL SERVICES RESIDENTIAL,Adult Social Care & Health,Independent Placements,A56006
Royal Borough of Kingston,01/11/2023,90284455,"8,824.06",CHOICE LTD,SOCIAL SERVICES RESIDENTIAL,Adult Social Care & Health,Independent Placements,A56006
Royal Borough of Kingston,01/11/2023,90284456,"-8,539.39",CHOICE LTD,SOCIAL SERVICES RESIDENTIAL,Adult Social Care & Health,Independent Placements,A56006
Royal Borough of Kingston,01/11/2023,90284457,"8,539.41",CHOICE LTD,SOCIAL SERVICES RESIDENTIAL,Adult Social Care & Health,Independent Placements,A56006
Royal Borough of Kingston,01/11/2023,90284458,"-8,263.93",CHOICE LTD,SOCIAL SERVICES RESIDENTIAL,Adult Social Care & Health,Independent Placements,A56006
Royal Borough of Kingston,01/11/2023,90284459,"8,824.06",CHOICE LTD,SOCIAL SERVICES RESIDENTIAL,Adult Social Care & Health,Independent Placements,A56006
Royal Borough of Kingston,01/11/2023,90284460,"-8,539.39",CHOICE LTD,SOCIAL SERVICES RESIDENTIAL,Adult Social Care & Health,Independent Placements,A56006
Royal Borough of Kingston,01/11/2023,90284461,"8,539.41",CHOICE LTD,SOCIAL SERVICES RESIDENTIAL,Adult Social Care & Health,Independent Placements,A56006
Royal Borough of Kingston,01/11/2023,90284471,"7,545.51",CHOICE LTD,SOCIAL SERVICES RESIDENTIAL,Adult Social Care & Health,Independent Placements,A56006
Royal Borough of Kingston,01/11/2023,90284472,"-7,302.09",CHOICE LTD,SOCIAL SERVICES RESIDENTIAL,Adult Social Care & Health,Independent Placements,A56006
Royal Borough of Kingston,01/11/2023,90284473,"7,797.03",CHOICE LTD,SOCIAL SERVICES RESIDENTIAL,Adult Social Care & Health,Independent Placements,A56006
Royal Borough of Kingston,01/11/2023,90284474,"-7,545.49",CHOICE LTD,SOCIAL SERVICES RESIDENTIAL,Adult Social Care & Health,Independent Placements,A56006
Royal Borough of Kingston,01/11/2023,90284475,"7,545.51",CHOICE LTD,SOCIAL SERVICES RESIDENTIAL,Adult Social Care & Health,Independent Placements,A56006
Royal Borough of Kingston,01/11/2023,90284476,"-7,302.09",CHOICE LTD,SOCIAL SERVICES RESIDENTIAL,Adult Social Care & Health,Independent Placements,A56006
Royal Borough of Kingston,01/11/2023,90284477,"7,797.03",CHOICE LTD,SOCIAL SERVICES RESIDENTIAL,Adult Social Care & Health,Independent Placements,A56006
Royal Borough of Kingston,01/11/2023,90284478,"-7,545.49",CHOICE LTD,SOCIAL SERVICES RESIDENTIAL,Adult Social Care & Health,Independent Placements,A56006
Royal Borough of Kingston,01/11/2023,90284479,"7,797.03",CHOICE LTD,SOCIAL SERVICES RESIDENTIAL,Adult Social Care & Health,Independent Placements,A56006
Royal Borough of Kingston,01/11/2023,90284480,"-7,545.49",CHOICE LTD,SOCIAL SERVICES RESIDENTIAL,Adult Social Care & Health,Independent Placements,A56006
Royal Borough of Kingston,01/11/2023,90284481,"7,545.51",CHOICE LTD,SOCIAL SERVICES RESIDENTIAL,Adult Social Care & Health,Independent Placements,A56006
Royal Borough of Kingston,01/11/2023,90284482,"-7,302.09",CHOICE LTD,SOCIAL SERVICES RESIDENTIAL,Adult Social Care & Health,Independent Placements,A56006
Royal Borough of Kingston,01/11/2023,90284483,"7,797.03",CHOICE LTD,SOCIAL SERVICES RESIDENTIAL,Adult Social Care & Health,Independent Placements,A56006
Royal Borough of Kingston,01/11/2023,90284484,"-7,545.49",CHOICE LTD,SOCIAL SERVICES RESIDENTIAL,Adult Social Care & Health,Independent Placements,A56006
Royal Borough of Kingston,01/11/2023,90284485,"7,545.51",CHOICE LTD,SOCIAL SERVICES RESIDENTIAL,Adult Social Care & Health,Independent Placements,A56006
Royal Borough of Kingston,03/11/2023,90278824,"167,164.50",CHRIST CHURCH  C. OF E.  PRIMARY SCHOOL (NEW MALDEN),SCHOOL FUNDS,Schools,Miscellaneous Expenses,A49000
Royal Borough of Kingston,14/11/2023,90281042,"1,667.50",CHRIST CHURCH  C. OF E.  PRIMARY SCHOOL (NEW MALDEN),SCHOOL FUNDS,Schools,Miscellaneous Expenses,A49000
Royal Borough of Kingston,14/11/2023,90281071,807.19,CHRIST CHURCH  C. OF E.  PRIMARY SCHOOL (NEW MALDEN),SCHOOL FUNDS,Schools,Miscellaneous Expenses,A49000
Royal Borough of Kingston,14/11/2023,90281093,"16,005.00",CHRIST CHURCH  C. OF E.  PRIMARY SCHOOL (NEW MALDEN),SCHOOL FUNDS,Schools,Miscellaneous Expenses,A49000
Royal Borough of Kingston,14/11/2023,90281094,"1,265.00",CHRIST CHURCH  C. OF E.  PRIMARY SCHOOL (NEW MALDEN),SCHOOL FUNDS,Schools,Miscellaneous Expenses,A49000
Royal Borough of Kingston,14/11/2023,90281237,"1,840.50",CHRIST CHURCH  C. OF E.  PRIMARY SCHOOL (NEW MALDEN),SCHOOL FUNDS,Schools,Early Years Contingency,A60030
Royal Borough of Kingston,17/11/2023,70058834,690.63,CHRIST CHURCH C.OF E. PRIMARY SCHOOL - (SURBITON),SCHOOL FUNDS,Childrens Services,MSF Claims Support Staff - Internal Trading,A46108
Royal Borough of Kingston,03/11/2023,90278823,"172,686.54",CHRIST CHURCH C.OF E. PRIMARY SCHOOL - (SURBITON),SCHOOL FUNDS,Schools,Miscellaneous Expenses,A49000
Royal Borough of Kingston,14/11/2023,90281043,"1,232.50",CHRIST CHURCH C.OF E. PRIMARY SCHOOL - (SURBITON),SCHOOL FUNDS,Schools,Miscellaneous Expenses,A49000
Royal Borough of Kingston,14/11/2023,90281072,630.00,CHRIST CHURCH C.OF E. PRIMARY SCHOOL - (SURBITON),SCHOOL FUNDS,Schools,Miscellaneous Expenses,A49000
Royal Borough of Kingston,14/11/2023,90281091,"10,548.75",CHRIST CHURCH C.OF E. PRIMARY SCHOOL - (SURBITON),SCHOOL FUNDS,Schools,Miscellaneous Expenses,A49000
Royal Borough of Kingston,14/11/2023,90281092,"3,162.50",CHRIST CHURCH C.OF E. PRIMARY SCHOOL - (SURBITON),SCHOOL FUNDS,Schools,Miscellaneous Expenses,A49000
Royal Borough of Kingston,01/11/2023,90285104,"6,035.10",CHRISTIES CARE LTD,SOCIAL SERVICES RESIDENTIAL,Adult Social Care & Health,Personal Budget - Third Party,A61019
Royal Borough of Kingston,01/11/2023,90285317,"5,641.71",CHRISTIES CARE LTD,SOCIAL SERVICES RESIDENTIAL,Adult Social Care & Health,Personal Budget - Third Party,A61019
Royal Borough of Kingston,01/11/2023,90285319,"5,870.14",CHRISTIES CARE LTD,SOCIAL SERVICES RESIDENTIAL,Adult Social Care & Health,Personal Budget - Third Party,A61019
Royal Borough of Kingston,01/11/2023,90285419,"5,664.21",CHRISTIES CARE LTD,SOCIAL SERVICES RESIDENTIAL,Adult Social Care & Health,Personal Budget - Third Party,A61019
Royal Borough of Kingston,27/07/2023,70057886,"6,000.00",CIPFA BUSINESS LIMITED,FINANCIAL / INSURANCE INSTNS,Corporate & Communities,Staff Development And Training,A15022
Royal Borough of Kingston,03/11/2023,70058023,"2,485.74",CITRON HYGIENE LIMITED,REFUSE COLLECTION / DISPOSAL,Corporate & Communities,Clinical Waste,A56054
Royal Borough of Kingston,09/10/2023,70057840,"11,379.84",CITY OF LONDON,CENTRAL & LOCAL GOVERNMENT,Corporate & Communities,Clinical Waste,A56054
Royal Borough of Kingston,25/10/2023,70057753,"94,782.41",CityAxis,CONSTRUCTION INDUSTRY,Place,Payments to Contractors,C14000
Royal Borough of Kingston,23/11/2023,70059251,"116,676.74",CityAxis,CONSTRUCTION INDUSTRY,Place,Payments to Contractors,C14000
Royal Borough of Kingston,01/11/2023,90284124,"6,214.29",Claremont Care Services Ltd,SOCIAL SERVICES RESIDENTIAL,Adult Social Care & Health,Independent Placements,A56006
Royal Borough of Kingston,01/11/2023,90284163,"7,500.00",Claremont Care Services Ltd,SOCIAL SERVICES RESIDENTIAL,Adult Social Care & Health,Independent Placements,A56006
Royal Borough of Kingston,01/11/2023,90284279,"2,052.00",Claremont Care Services Ltd,SOCIAL SERVICES RESIDENTIAL,Adult Social Care & Health,Independent Placements,A56006
Royal Borough of Kingston,01/11/2023,90284280,"7,068.00",Claremont Care Services Ltd,SOCIAL SERVICES RESIDENTIAL,Adult Social Care & Health,Independent Placements,A56006
Royal Borough of Kingston,01/11/2023,90284281,"1,368.00",Claremont Care Services Ltd,SOCIAL SERVICES RESIDENTIAL,Adult Social Care & Health,Independent Placements,A56006
Royal Borough of Kingston,01/11/2023,90284282,"8,664.00",Claremont Care Services Ltd,SOCIAL SERVICES RESIDENTIAL,Adult Social Care & Health,Independent Placements,A56006
Royal Borough of Kingston,01/11/2023,90284283,"1,140.00",Claremont Care Services Ltd,SOCIAL SERVICES RESIDENTIAL,Adult Social Care & Health,Independent Placements,A56006
Royal Borough of Kingston,01/11/2023,90284284,"4,332.00",Claremont Care Services Ltd,SOCIAL SERVICES RESIDENTIAL,Adult Social Care & Health,Independent Placements,A56006
Royal Borough of Kingston,01/11/2023,90284285,"5,472.00",Claremont Care Services Ltd,SOCIAL SERVICES RESIDENTIAL,Adult Social Care & Health,Independent Placements,A56006
Royal Borough of Kingston,01/11/2023,90284286,"13,680.00",Claremont Care Services Ltd,SOCIAL SERVICES RESIDENTIAL,Adult Social Care & Health,Independent Placements,A56006
Royal Borough of Kingston,01/11/2023,90284488,"8,953.59",CLEARWATER CARE (HACKNEY) LTD,SOCIAL SERVICES RESIDENTIAL,Adult Social Care & Health,Independent Placements,A56006
Royal Borough of Kingston,01/11/2023,90285605,"6,418.89",CLIA Care Ltd,ACCOMMODATION - OTHER,Adult Social Care & Health,Personal Budget - Third Party,A61019
Royal Borough of Kingston,23/11/2023,90283746,"1,094.00",REDACTED - PERSONAL DATA,PLS LANDLORDS,Place,PSL Payments To Landlords,A22031
Royal Borough of Kingston,23/11/2023,90283571,"1,435.50",CLIQUE 187 LTD,PLS LANDLORDS,Place,PSL Payments To Landlords,A22031
Royal Borough of Kingston,16/10/2023,70057917,650.00,Albion Cleaning Services,SOCIAL SERVICES - OTHER,Adult Social Care & Health,Other Private Contractors - Third Party,A56080
Royal Borough of Kingston,09/10/2023,70057530,"4,920.00",CLOSOMAT LIMITED,PREMISES - CLEANING & LAUNDRY,Housing Revenue Account,Disabled Adaptations,C20003
Royal Borough of Kingston,01/11/2023,90282137,"5,592.00",CM CARE LTD,SOCIAL SERVICES RESIDENTIAL,Adult Social Care & Health,Personal Budget - Third Party,A61019
Royal Borough of Kingston,01/11/2023,90285593,"5,991.43",CM CARE LTD,SOCIAL SERVICES RESIDENTIAL,Adult Social Care & Health,Personal Budget - Third Party,A61019
Royal Borough of Kingston,01/11/2023,90285603,"3,902.71",CM CARE LTD,SOCIAL SERVICES RESIDENTIAL,Adult Social Care & Health,Personal Budget - Third Party,A61019
Royal Borough of Kingston,01/11/2023,90285609,"4,364.29",CM CARE LTD,SOCIAL SERVICES RESIDENTIAL,Adult Social Care & Health,Personal Budget - Third Party,A61019
Royal Borough of Kingston,01/11/2023,90285610,"5,035.71",CM CARE LTD,SOCIAL SERVICES RESIDENTIAL,Adult Social Care & Health,Personal Budget - Third Party,A61019
Royal Borough of Kingston,01/11/2023,90285315,"3,099.39",CMG LIMITED,SOCIAL SERVICES - OTHER,Adult Social Care & Health,Personal Budget - Third Party,A61019
Royal Borough of Kingston,01/11/2023,90285358,"5,623.29",CMG LIMITED,SOCIAL SERVICES - OTHER,Adult Social Care & Health,Personal Budget - Third Party,A61019
Royal Borough of Kingston,01/11/2023,90285359,"5,589.94",CMG LIMITED,SOCIAL SERVICES - OTHER,Adult Social Care & Health,Personal Budget - Third Party,A61019
Royal Borough of Kingston,01/11/2023,90285383,"6,137.96",CMG LIMITED,SOCIAL SERVICES - OTHER,Adult Social Care & Health,Personal Budget - Third Party,A61019
Royal Borough of Kingston,01/11/2023,90285420,945.26,CMG LIMITED,SOCIAL SERVICES - OTHER,Adult Social Care & Health,Personal Budget - Third Party,A61019
Royal Borough of Kingston,01/11/2023,90285421,"4,083.86",CMG LIMITED,SOCIAL SERVICES - OTHER,Adult Social Care & Health,Personal Budget - Third Party,A61019
Royal Borough of Kingston,01/11/2023,90285529,"4,871.57",CMG LIMITED,SOCIAL SERVICES - OTHER,Adult Social Care & Health,Personal Budget - Third Party,A61019
Royal Borough of Kingston,16/10/2023,90279006,567.24,CN Healthcare,SOCIAL SERVICES - OTHER,Adult Social Care & Health,Homecare - new framework,A56127
Royal Borough of Kingston,16/10/2023,90279148,567.24,CN Healthcare,SOCIAL SERVICES - OTHER,Adult Social Care & Health,Homecare - new framework,A56127
Royal Borough of Kingston,16/10/2023,90279415,693.29,CN Healthcare,SOCIAL SERVICES - OTHER,Adult Social Care & Health,Homecare - new framework,A56127
Royal Borough of Kingston,16/10/2023,90279438,567.32,CN Healthcare,SOCIAL SERVICES - OTHER,Adult Social Care & Health,Homecare - new framework,A56127
Royal Borough of Kingston,23/10/2023,90281507,567.24,CN Healthcare,SOCIAL SERVICES - OTHER,Adult Social Care & Health,Homecare - new framework,A56127
Royal Borough of Kingston,23/10/2023,90281639,567.24,CN Healthcare,SOCIAL SERVICES - OTHER,Adult Social Care & Health,Homecare - new framework,A56127
Royal Borough of Kingston,23/10/2023,90281699,630.27,CN Healthcare,SOCIAL SERVICES - OTHER,Adult Social Care & Health,Homecare - new framework,A56127
Royal Borough of Kingston,23/10/2023,90281937,693.29,CN Healthcare,SOCIAL SERVICES - OTHER,Adult Social Care & Health,Homecare - new framework,A56127
Royal Borough of Kingston,23/10/2023,90281961,567.32,CN Healthcare,SOCIAL SERVICES - OTHER,Adult Social Care & Health,Homecare - new framework,A56127
Royal Borough of Kingston,30/10/2023,90282369,567.24,CN Healthcare,SOCIAL SERVICES - OTHER,Adult Social Care & Health,Homecare - new framework,A56127
Royal Borough of Kingston,30/10/2023,90282538,567.24,CN Healthcare,SOCIAL SERVICES - OTHER,Adult Social Care & Health,Homecare - new framework,A56127
Royal Borough of Kingston,30/10/2023,90282576,882.37,CN Healthcare,SOCIAL SERVICES - OTHER,Adult Social Care & Health,Homecare - new framework,A56127
Royal Borough of Kingston,30/10/2023,90282607,630.27,CN Healthcare,SOCIAL SERVICES - OTHER,Adult Social Care & Health,Homecare - new framework,A56127
Royal Borough of Kingston,30/10/2023,90282802,693.29,CN Healthcare,SOCIAL SERVICES - OTHER,Adult Social Care & Health,Homecare - new framework,A56127
Royal Borough of Kingston,30/10/2023,90282826,567.32,CN Healthcare,SOCIAL SERVICES - OTHER,Adult Social Care & Health,Homecare - new framework,A56127
Royal Borough of Kingston,06/11/2023,90286130,567.24,CN Healthcare,SOCIAL SERVICES - OTHER,Adult Social Care & Health,Homecare - new framework,A56127
Royal Borough of Kingston,06/11/2023,90286163,882.37,CN Healthcare,SOCIAL SERVICES - OTHER,Adult Social Care & Health,Homecare - new framework,A56127
Royal Borough of Kingston,06/11/2023,90286195,630.27,CN Healthcare,SOCIAL SERVICES - OTHER,Adult Social Care & Health,Homecare - new framework,A56127
Royal Borough of Kingston,06/11/2023,90286530,693.29,CN Healthcare,SOCIAL SERVICES - OTHER,Adult Social Care & Health,Homecare - new framework,A56127
Royal Borough of Kingston,06/11/2023,90286559,567.32,CN Healthcare,SOCIAL SERVICES - OTHER,Adult Social Care & Health,Homecare - new framework,A56127
Royal Borough of Kingston,23/11/2023,90283611,"1,215.00",REDACTED - PERSONAL DATA,PLS LANDLORDS,Place,PSL Payments To Landlords,A22031
Royal Borough of Kingston,23/11/2023,90283630,"1,094.00",REDACTED - PERSONAL DATA,PLS LANDLORDS,Place,PSL Payments To Landlords,A22031
Royal Borough of Kingston,30/01/2023,70058627,514.39,COMETT LIMITED,ENTERTAINMENTS INDUSTRY,Adult Social Care & Health,Consultancy Services - Other,A44065
Royal Borough of Kingston,15/11/2023,70058716,514.39,COMETT LIMITED,ENTERTAINMENTS INDUSTRY,Adult Social Care & Health,Consultancy Services - Other,A44065
Royal Borough of Kingston,01/11/2023,90284563,"1,434.38",COMFORT CARE SERVICES UK LTD,SOCIAL SERVICES-HOME CARE,Adult Social Care & Health,Supported Living - new framework,A56126
Royal Borough of Kingston,01/11/2023,90284564,"3,061.91",COMFORT CARE SERVICES UK LTD,SOCIAL SERVICES-HOME CARE,Adult Social Care & Health,Supported Living - new framework,A56126
Royal Borough of Kingston,01/11/2023,90284568,"2,843.10",COMFORT CARE SERVICES UK LTD,SOCIAL SERVICES-HOME CARE,Adult Social Care & Health,Supported Living - new framework,A56126
Royal Borough of Kingston,01/11/2023,90284570,"1,784.36",COMFORT CARE SERVICES UK LTD,SOCIAL SERVICES-HOME CARE,Adult Social Care & Health,Supported Living - new framework,A56126
Royal Borough of Kingston,01/11/2023,90284571,892.18,COMFORT CARE SERVICES UK LTD,SOCIAL SERVICES-HOME CARE,Adult Social Care & Health,Supported Living - new framework,A56126
Royal Borough of Kingston,01/11/2023,90284573,"1,784.36",COMFORT CARE SERVICES UK LTD,SOCIAL SERVICES-HOME CARE,Adult Social Care & Health,Supported Living - new framework,A56126
Royal Borough of Kingston,01/11/2023,90284574,892.18,COMFORT CARE SERVICES UK LTD,SOCIAL SERVICES-HOME CARE,Adult Social Care & Health,Supported Living - new framework,A56126
Royal Borough of Kingston,01/11/2023,90284816,"1,912.50",COMFORT CARE SERVICES UK LTD,SOCIAL SERVICES-HOME CARE,Adult Social Care & Health,Supported Living - new framework,A56126
Royal Borough of Kingston,01/11/2023,90284817,765.00,COMFORT CARE SERVICES UK LTD,SOCIAL SERVICES-HOME CARE,Adult Social Care & Health,Supported Living - new framework,A56126
Royal Borough of Kingston,01/11/2023,90284819,903.60,COMFORT CARE SERVICES UK LTD,SOCIAL SERVICES-HOME CARE,Adult Social Care & Health,Supported Living - new framework,A56126
Royal Borough of Kingston,01/11/2023,90284821,"1,784.36",COMFORT CARE SERVICES UK LTD,SOCIAL SERVICES-HOME CARE,Adult Social Care & Health,Supported Living - new framework,A56126
Royal Borough of Kingston,01/11/2023,90284822,892.18,COMFORT CARE SERVICES UK LTD,SOCIAL SERVICES-HOME CARE,Adult Social Care & Health,Supported Living - new framework,A56126
Royal Borough of Kingston,01/11/2023,90284823,573.69,COMFORT CARE SERVICES UK LTD,SOCIAL SERVICES-HOME CARE,Adult Social Care & Health,Supported Living - new framework,A56126
Royal Borough of Kingston,01/11/2023,90284824,"1,147.50",COMFORT CARE SERVICES UK LTD,SOCIAL SERVICES-HOME CARE,Adult Social Care & Health,Supported Living - new framework,A56126
Royal Borough of Kingston,01/11/2023,90284828,"1,784.36",COMFORT CARE SERVICES UK LTD,SOCIAL SERVICES-HOME CARE,Adult Social Care & Health,Supported Living - new framework,A56126
Royal Borough of Kingston,01/11/2023,90284829,892.18,COMFORT CARE SERVICES UK LTD,SOCIAL SERVICES-HOME CARE,Adult Social Care & Health,Supported Living - new framework,A56126
Royal Borough of Kingston,01/11/2023,90284831,"2,142.00",COMFORT CARE SERVICES UK LTD,SOCIAL SERVICES-HOME CARE,Adult Social Care & Health,Supported Living - new framework,A56126
Royal Borough of Kingston,01/11/2023,90284832,535.50,COMFORT CARE SERVICES UK LTD,SOCIAL SERVICES-HOME CARE,Adult Social Care & Health,Supported Living - new framework,A56126
Royal Borough of Kingston,01/11/2023,90284834,"1,784.36",COMFORT CARE SERVICES UK LTD,SOCIAL SERVICES-HOME CARE,Adult Social Care & Health,Supported Living - new framework,A56126
Royal Borough of Kingston,01/11/2023,90284835,892.18,COMFORT CARE SERVICES UK LTD,SOCIAL SERVICES-HOME CARE,Adult Social Care & Health,Supported Living - new framework,A56126
Royal Borough of Kingston,01/11/2023,90284838,855.00,COMFORT CARE SERVICES UK LTD,SOCIAL SERVICES-HOME CARE,Adult Social Care & Health,Supported Living - new framework,A56126
Royal Borough of Kingston,01/11/2023,90284839,"2,142.00",COMFORT CARE SERVICES UK LTD,SOCIAL SERVICES-HOME CARE,Adult Social Care & Health,Supported Living - new framework,A56126
Royal Borough of Kingston,01/11/2023,90284840,535.50,COMFORT CARE SERVICES UK LTD,SOCIAL SERVICES-HOME CARE,Adult Social Care & Health,Supported Living - new framework,A56126
Royal Borough of Kingston,01/11/2023,90284841,"3,569.60",COMFORT CARE SERVICES UK LTD,SOCIAL SERVICES-HOME CARE,Adult Social Care & Health,Supported Living - new framework,A56126
Royal Borough of Kingston,01/11/2023,90284842,"4,283.52",COMFORT CARE SERVICES UK LTD,SOCIAL SERVICES-HOME CARE,Adult Social Care & Health,Supported Living - new framework,A56126
Royal Borough of Kingston,01/11/2023,90284843,"1,912.50",COMFORT CARE SERVICES UK LTD,SOCIAL SERVICES-HOME CARE,Adult Social Care & Health,Supported Living - new framework,A56126
Royal Borough of Kingston,01/11/2023,90284844,"2,405.66",COMFORT CARE SERVICES UK LTD,SOCIAL SERVICES-HOME CARE,Adult Social Care & Health,Supported Living - new framework,A56126
Royal Borough of Kingston,01/11/2023,90284845,669.30,COMFORT CARE SERVICES UK LTD,SOCIAL SERVICES-HOME CARE,Adult Social Care & Health,Supported Living - new framework,A56126
Royal Borough of Kingston,01/11/2023,90284847,903.60,COMFORT CARE SERVICES UK LTD,SOCIAL SERVICES-HOME CARE,Adult Social Care & Health,Supported Living - new framework,A56126
Royal Borough of Kingston,01/11/2023,90284849,"1,784.36",COMFORT CARE SERVICES UK LTD,SOCIAL SERVICES-HOME CARE,Adult Social Care & Health,Supported Living - new framework,A56126
Royal Borough of Kingston,01/11/2023,90284850,892.18,COMFORT CARE SERVICES UK LTD,SOCIAL SERVICES-HOME CARE,Adult Social Care & Health,Supported Living - new framework,A56126
Royal Borough of Kingston,01/11/2023,90284852,"1,784.36",COMFORT CARE SERVICES UK LTD,SOCIAL SERVICES-HOME CARE,Adult Social Care & Health,Supported Living - new framework,A56126
Royal Borough of Kingston,01/11/2023,90284853,892.18,COMFORT CARE SERVICES UK LTD,SOCIAL SERVICES-HOME CARE,Adult Social Care & Health,Supported Living - new framework,A56126
Royal Borough of Kingston,01/11/2023,90284855,"1,784.36",COMFORT CARE SERVICES UK LTD,SOCIAL SERVICES-HOME CARE,Adult Social Care & Health,Supported Living - new framework,A56126
Royal Borough of Kingston,01/11/2023,90284856,892.18,COMFORT CARE SERVICES UK LTD,SOCIAL SERVICES-HOME CARE,Adult Social Care & Health,Supported Living - new framework,A56126
Royal Borough of Kingston,01/11/2023,90284858,"1,784.36",COMFORT CARE SERVICES UK LTD,SOCIAL SERVICES-HOME CARE,Adult Social Care & Health,Supported Living - new framework,A56126
Royal Borough of Kingston,01/11/2023,90284859,892.18,COMFORT CARE SERVICES UK LTD,SOCIAL SERVICES-HOME CARE,Adult Social Care & Health,Supported Living - new framework,A56126
Royal Borough of Kingston,01/11/2023,90284864,"1,784.36",COMFORT CARE SERVICES UK LTD,SOCIAL SERVICES-HOME CARE,Adult Social Care & Health,Supported Living - new framework,A56126
Royal Borough of Kingston,01/11/2023,90284865,892.18,COMFORT CARE SERVICES UK LTD,SOCIAL SERVICES-HOME CARE,Adult Social Care & Health,Supported Living - new framework,A56126
Royal Borough of Kingston,01/11/2023,90284867,"2,142.00",COMFORT CARE SERVICES UK LTD,SOCIAL SERVICES-HOME CARE,Adult Social Care & Health,Supported Living - new framework,A56126
Royal Borough of Kingston,01/11/2023,90284868,535.50,COMFORT CARE SERVICES UK LTD,SOCIAL SERVICES-HOME CARE,Adult Social Care & Health,Supported Living - new framework,A56126
Royal Borough of Kingston,01/11/2023,90284870,"2,142.00",COMFORT CARE SERVICES UK LTD,SOCIAL SERVICES-HOME CARE,Adult Social Care & Health,Supported Living - new framework,A56126
Royal Borough of Kingston,01/11/2023,90284871,535.50,COMFORT CARE SERVICES UK LTD,SOCIAL SERVICES-HOME CARE,Adult Social Care & Health,Supported Living - new framework,A56126
Royal Borough of Kingston,01/11/2023,90284873,573.69,COMFORT CARE SERVICES UK LTD,SOCIAL SERVICES-HOME CARE,Adult Social Care & Health,Supported Living - new framework,A56126
Royal Borough of Kingston,01/11/2023,90284874,"1,147.50",COMFORT CARE SERVICES UK LTD,SOCIAL SERVICES-HOME CARE,Adult Social Care & Health,Supported Living - new framework,A56126
Royal Borough of Kingston,01/11/2023,90284879,"1,784.36",COMFORT CARE SERVICES UK LTD,SOCIAL SERVICES-HOME CARE,Adult Social Care & Health,Supported Living - new framework,A56126
Royal Borough of Kingston,01/11/2023,90284880,892.18,COMFORT CARE SERVICES UK LTD,SOCIAL SERVICES-HOME CARE,Adult Social Care & Health,Supported Living - new framework,A56126
Royal Borough of Kingston,01/11/2023,90284883,"1,784.36",COMFORT CARE SERVICES UK LTD,SOCIAL SERVICES-HOME CARE,Adult Social Care & Health,Supported Living - new framework,A56126
Royal Borough of Kingston,01/11/2023,90284884,892.18,COMFORT CARE SERVICES UK LTD,SOCIAL SERVICES-HOME CARE,Adult Social Care & Health,Supported Living - new framework,A56126
Royal Borough of Kingston,01/11/2023,90285100,"1,095.48",COMFORT CARE SERVICES UK LTD,SOCIAL SERVICES-HOME CARE,Adult Social Care & Health,Personal Budget - Third Party,A61019
Royal Borough of Kingston,01/11/2023,90285101,"4,364.06",COMFORT CARE SERVICES UK LTD,SOCIAL SERVICES-HOME CARE,Adult Social Care & Health,Personal Budget - Third Party,A61019
Royal Borough of Kingston,01/11/2023,90285103,"1,059.84",COMFORT CARE SERVICES UK LTD,SOCIAL SERVICES-HOME CARE,Adult Social Care & Health,Personal Budget - Third Party,A61019
Royal Borough of Kingston,01/11/2023,90285121,935.15,COMFORT CARE SERVICES UK LTD,SOCIAL SERVICES-HOME CARE,Adult Social Care & Health,Personal Budget - Third Party,A61019
Royal Borough of Kingston,01/11/2023,90285122,"4,364.06",COMFORT CARE SERVICES UK LTD,SOCIAL SERVICES-HOME CARE,Adult Social Care & Health,Personal Budget - Third Party,A61019
Royal Borough of Kingston,01/11/2023,90285124,"1,059.84",COMFORT CARE SERVICES UK LTD,SOCIAL SERVICES-HOME CARE,Adult Social Care & Health,Personal Budget - Third Party,A61019
Royal Borough of Kingston,01/11/2023,90285234,"1,095.48",COMFORT CARE SERVICES UK LTD,SOCIAL SERVICES-HOME CARE,Adult Social Care & Health,Personal Budget - Third Party,A61019
Royal Borough of Kingston,01/11/2023,90285235,"4,364.06",COMFORT CARE SERVICES UK LTD,SOCIAL SERVICES-HOME CARE,Adult Social Care & Health,Personal Budget - Third Party,A61019
Royal Borough of Kingston,01/11/2023,90285237,"1,059.84",COMFORT CARE SERVICES UK LTD,SOCIAL SERVICES-HOME CARE,Adult Social Care & Health,Personal Budget - Third Party,A61019
Royal Borough of Kingston,01/11/2023,90285422,"4,063.46",COMFORT CARE SERVICES UK LTD,SOCIAL SERVICES-HOME CARE,Adult Social Care & Health,Personal Budget - Third Party,A61019
Royal Borough of Kingston,01/11/2023,90285424,"1,442.84",COMFORT CARE SERVICES UK LTD,SOCIAL SERVICES-HOME CARE,Adult Social Care & Health,Personal Budget - Third Party,A61019
Royal Borough of Kingston,01/11/2023,90285425,"4,364.06",COMFORT CARE SERVICES UK LTD,SOCIAL SERVICES-HOME CARE,Adult Social Care & Health,Personal Budget - Third Party,A61019
Royal Borough of Kingston,01/11/2023,90285427,"1,059.84",COMFORT CARE SERVICES UK LTD,SOCIAL SERVICES-HOME CARE,Adult Social Care & Health,Personal Budget - Third Party,A61019
Royal Borough of Kingston,01/11/2023,90285478,"1,469.52",COMFORT CARE SERVICES UK LTD,SOCIAL SERVICES-HOME CARE,Adult Social Care & Health,Personal Budget - Third Party,A61019
Royal Borough of Kingston,01/11/2023,90285479,"4,364.06",COMFORT CARE SERVICES UK LTD,SOCIAL SERVICES-HOME CARE,Adult Social Care & Health,Personal Budget - Third Party,A61019
Royal Borough of Kingston,01/11/2023,90285481,"1,059.84",COMFORT CARE SERVICES UK LTD,SOCIAL SERVICES-HOME CARE,Adult Social Care & Health,Personal Budget - Third Party,A61019
Royal Borough of Kingston,01/11/2023,90285522,"1,549.67",COMFORT CARE SERVICES UK LTD,SOCIAL SERVICES-HOME CARE,Adult Social Care & Health,Personal Budget - Third Party,A61019
Royal Borough of Kingston,01/11/2023,90285523,"4,364.06",COMFORT CARE SERVICES UK LTD,SOCIAL SERVICES-HOME CARE,Adult Social Care & Health,Personal Budget - Third Party,A61019
Royal Borough of Kingston,01/11/2023,90285525,"1,059.84",COMFORT CARE SERVICES UK LTD,SOCIAL SERVICES-HOME CARE,Adult Social Care & Health,Personal Budget - Third Party,A61019
Royal Borough of Kingston,01/11/2023,90285565,"2,985.26",COMFORT CARE SERVICES UK LTD,SOCIAL SERVICES-HOME CARE,Adult Social Care & Health,Personal Budget - Third Party,A61019
Royal Borough of Kingston,01/11/2023,90284435,"8,498.36",CONGRESS HOUSE LIMITED,SOCIAL SERVICES RESIDENTIAL,Adult Social Care & Health,Independent Placements,A56006
Royal Borough of Kingston,23/11/2023,90283896,842.00,REDACTED - PERSONAL DATA,PLS LANDLORDS,Place,PSL Payments To Landlords,A22031
Royal Borough of Kingston,19/10/2023,70058009,"2,705.00",COOMBE ACADEMY TRUST,SCHOOL FUNDS,Corporate & Communities,Building Rents,A22005
Royal Borough of Kingston,09/11/2023,90280932,781.20,COOMBE ACADEMY TRUST,SCHOOL FUNDS,Schools,Miscellaneous Expenses,A49000
Royal Borough of Kingston,14/11/2023,90281248,"1,512.00",COOMBE ACADEMY TRUST,SCHOOL FUNDS,Schools,Early Years Contingency,A60030
Royal Borough of Kingston,23/11/2023,90283501,"3,944.00",COOMBE ACADEMY TRUST,SCHOOL FUNDS,Schools,Miscellaneous Expenses,A49000
Royal Borough of Kingston,23/11/2023,90283504,"2,500.00",COOMBE GIRLS SCHOOL,SCHOOL FUNDS,Schools,Miscellaneous Expenses,A49000
Royal Borough of Kingston,03/11/2023,90278825,"115,549.93",COOMBE HILL INFANTS SCHOOL,SCHOOL FUNDS,Schools,Miscellaneous Expenses,A49000
Royal Borough of Kingston,14/11/2023,90281030,"1,123.75",COOMBE HILL INFANTS SCHOOL,SCHOOL FUNDS,Schools,Miscellaneous Expenses,A49000
Royal Borough of Kingston,14/11/2023,90281095,"11,276.25",COOMBE HILL INFANTS SCHOOL,SCHOOL FUNDS,Schools,Miscellaneous Expenses,A49000
Royal Borough of Kingston,08/11/2023,70058290,544.00,COOMBE HILL JUNIOR SCHOOL,SCHOOL FUNDS,Childrens Services,MSF Claims Support Staff - Internal Trading,A46108
Royal Borough of Kingston,03/11/2023,90278826,"152,594.06",COOMBE HILL JUNIOR SCHOOL,SCHOOL FUNDS,Schools,Miscellaneous Expenses,A49000
Royal Borough of Kingston,14/11/2023,90281034,"2,211.25",COOMBE HILL JUNIOR SCHOOL,SCHOOL FUNDS,Schools,Miscellaneous Expenses,A49000
Royal Borough of Kingston,14/11/2023,90281063,"1,220.63",COOMBE HILL JUNIOR SCHOOL,SCHOOL FUNDS,Schools,Miscellaneous Expenses,A49000
Royal Borough of Kingston,14/11/2023,90281096,"19,278.75",COOMBE HILL JUNIOR SCHOOL,SCHOOL FUNDS,Schools,Miscellaneous Expenses,A49000
Royal Borough of Kingston,14/11/2023,90281098,"5,060.00",COOMBE HILL JUNIOR SCHOOL,SCHOOL FUNDS,Schools,Miscellaneous Expenses,A49000
Royal Borough of Kingston,30/09/2023,70059125,659.90,COOMBE HILL PHARMACY,SCHOOL FUNDS,Adult Social Care & Health,Other Private Contractors - Third Party,A56080
Royal Borough of Kingston,03/11/2023,90278827,"153,762.37",CORPUS CHRISTI CATHOLIC PRIMARY SCHOOL ,SCHOOL FUNDS,Schools,Miscellaneous Expenses,A49000
Royal Borough of Kingston,14/11/2023,90281051,"1,087.50",CORPUS CHRISTI CATHOLIC PRIMARY SCHOOL ,SCHOOL FUNDS,Schools,Miscellaneous Expenses,A49000
Royal Borough of Kingston,14/11/2023,90281080,570.94,CORPUS CHRISTI CATHOLIC PRIMARY SCHOOL ,SCHOOL FUNDS,Schools,Miscellaneous Expenses,A49000
Royal Borough of Kingston,14/11/2023,90281099,"10,912.50",CORPUS CHRISTI CATHOLIC PRIMARY SCHOOL ,SCHOOL FUNDS,Schools,Miscellaneous Expenses,A49000
Royal Borough of Kingston,14/11/2023,90281238,"2,502.00",CORPUS CHRISTI CATHOLIC PRIMARY SCHOOL ,SCHOOL FUNDS,Schools,Early Years Contingency,A60030
Royal Borough of Kingston,23/11/2023,90283505,"4,167.00",CORPUS CHRISTI CATHOLIC PRIMARY SCHOOL ,SCHOOL FUNDS,Schools,Miscellaneous Expenses,A49000
Royal Borough of Kingston,01/11/2023,90278761,"1,025.00",COUNTRY COURT CARE HOMES 2 LTD,SOCIAL SERVICES RESIDENTIAL,Adult Social Care & Health,Independent Placements,A56006
Royal Borough of Kingston,01/11/2023,90283949,"3,587.14",COUNTRY COURT CARE HOMES 2 LTD,SOCIAL SERVICES RESIDENTIAL,Adult Social Care & Health,Independent Placements,A56006
Royal Borough of Kingston,01/11/2023,90283980,"3,747.86",COUNTRY COURT CARE HOMES 2 LTD,SOCIAL SERVICES RESIDENTIAL,Adult Social Care & Health,Independent Placements,A56006
Royal Borough of Kingston,01/11/2023,90284039,585.71,COUNTRY COURT CARE HOMES 2 LTD,SOCIAL SERVICES RESIDENTIAL,Adult Social Care & Health,Independent Placements,A56006
Royal Borough of Kingston,01/11/2023,90284043,"4,392.86",COUNTRY COURT CARE HOMES 2 LTD,SOCIAL SERVICES RESIDENTIAL,Adult Social Care & Health,Independent Placements,A56006
Royal Borough of Kingston,01/11/2023,90284059,"3,585.81",COUNTRY COURT CARE HOMES 2 LTD,SOCIAL SERVICES RESIDENTIAL,Adult Social Care & Health,Independent Placements,A56006
Royal Borough of Kingston,01/11/2023,90284064,"3,825.00",COUNTRY COURT CARE HOMES 2 LTD,SOCIAL SERVICES RESIDENTIAL,Adult Social Care & Health,Independent Placements,A56006
Royal Borough of Kingston,01/11/2023,90284118,"-1,285.12",COUNTRY COURT CARE HOMES 2 LTD,SOCIAL SERVICES RESIDENTIAL,Adult Social Care & Health,Independent Placements,A56006
Royal Borough of Kingston,01/11/2023,90284271,"3,642.86",COUNTRY COURT CARE HOMES 2 LTD,SOCIAL SERVICES RESIDENTIAL,Adult Social Care & Health,Independent Placements,A56006
Royal Borough of Kingston,01/11/2023,90284313,878.57,COUNTRY COURT CARE HOMES 2 LTD,SOCIAL SERVICES RESIDENTIAL,Adult Social Care & Health,Independent Placements,A56006
Royal Borough of Kingston,01/11/2023,90284317,"2,342.86",COUNTRY COURT CARE HOMES 2 LTD,SOCIAL SERVICES RESIDENTIAL,Adult Social Care & Health,Independent Placements,A56006
Royal Borough of Kingston,01/11/2023,90284527,"2,050.00",COUNTRY COURT CARE HOMES 2 LTD,SOCIAL SERVICES RESIDENTIAL,Adult Social Care & Health,Independent Placements,A56006
Royal Borough of Kingston,01/11/2023,70057829,"11,599.28",CRAVENCROFT LTD,CONSTRUCTION INDUSTRY,Place,Payments to Contractors,C14000
Royal Borough of Kingston,18/09/2023,70057839,"8,000.00",CREATIVE YOUTH,GRANTS & EX GRATIA PAYMENTS,Corporate & Communities,Payments to Voluntary Organisations,A54005
Royal Borough of Kingston,30/10/2023,70057843,"2,750.00",CREATIVE YOUTH,GRANTS & EX GRATIA PAYMENTS,Adult Social Care & Health,Payments to Voluntary Organisations,A54005
Royal Borough of Kingston,14/11/2023,70058600,"1,550.40",Credence Direct Limited,TEMP STAFF & CONSULTANCY,Adult Social Care & Health,Other Private Contractors - Third Party,A56080
Royal Borough of Kingston,23/11/2023,90283651,"2,144.08",CROMWOOD LIMITED,PLS LANDLORDS,Place,PSL Payments To Landlords,A22031
Royal Borough of Kingston,01/11/2023,70059160,"1,395.00",CRYSTAL & CO,ACCOMMODATION BED & BREAKFAST,Place,Bed & Breakfast,A56000
Royal Borough of Kingston,01/11/2023,70059161,"2,325.00",CRYSTAL & CO,ACCOMMODATION BED & BREAKFAST,Place,Bed & Breakfast,A56000
Royal Borough of Kingston,01/11/2023,70059162,"2,077.00",CRYSTAL & CO,ACCOMMODATION BED & BREAKFAST,Place,Bed & Breakfast,A56000
Royal Borough of Kingston,01/11/2023,70059163,"1,829.00",CRYSTAL & CO,ACCOMMODATION BED & BREAKFAST,Place,Bed & Breakfast,A56000
Royal Borough of Kingston,01/11/2023,70059164,"2,325.00",CRYSTAL & CO,ACCOMMODATION BED & BREAKFAST,Place,Bed & Breakfast,A56000
Royal Borough of Kingston,01/11/2023,70059165,"1,736.00",CRYSTAL & CO,ACCOMMODATION BED & BREAKFAST,Place,Bed & Breakfast,A56000
Royal Borough of Kingston,01/11/2023,70059166,"1,829.00",CRYSTAL & CO,ACCOMMODATION BED & BREAKFAST,Place,Bed & Breakfast,A56000
Royal Borough of Kingston,01/11/2023,70059167,"2,077.00",CRYSTAL & CO,ACCOMMODATION BED & BREAKFAST,Place,Bed & Breakfast,A56000
Royal Borough of Kingston,01/11/2023,70059168,"1,736.00",CRYSTAL & CO,ACCOMMODATION BED & BREAKFAST,Place,Bed & Breakfast,A56000
Royal Borough of Kingston,01/11/2023,70059169,"1,798.00",CRYSTAL & CO,ACCOMMODATION BED & BREAKFAST,Place,Bed & Breakfast,A56000
Royal Borough of Kingston,01/11/2023,70059170,"1,798.00",CRYSTAL & CO,ACCOMMODATION BED & BREAKFAST,Place,Bed & Breakfast,A56000
Royal Borough of Kingston,01/11/2023,70059171,"1,711.00",CRYSTAL & CO,ACCOMMODATION BED & BREAKFAST,Place,Bed & Breakfast,A56000
Royal Borough of Kingston,01/11/2023,70059177,"2,480.00",CRYSTAL & CO,ACCOMMODATION BED & BREAKFAST,Place,Bed & Breakfast,A56000
Royal Borough of Kingston,01/11/2023,70059178,"2,077.00",CRYSTAL & CO,ACCOMMODATION BED & BREAKFAST,Place,Bed & Breakfast,A56000
Royal Borough of Kingston,01/11/2023,70059329,720.00,CRYSTAL & CO,ACCOMMODATION BED & BREAKFAST,Place,Bed & Breakfast,A56000
Royal Borough of Kingston,14/11/2023,90281242,"1,798.20",KNOLLMEAD PRIMARY SCHOOL,SCHOOL FUNDS,Schools,Early Years Contingency,A60030
Royal Borough of Kingston,23/11/2023,90283735,"1,317.00",REDACTED - PERSONAL DATA,PLS LANDLORDS,Place,PSL Payments To Landlords,A22031
Royal Borough of Kingston,23/11/2023,90283804,"1,321.66",REDACTED - PERSONAL DATA,PLS LANDLORDS,Place,PSL Payments To Landlords,A22031
Royal Borough of Kingston,23/11/2023,90283837,"1,094.00",REDACTED - PERSONAL DATA,PLS LANDLORDS,Place,PSL Payments To Landlords,A22031
Royal Borough of Kingston,30/11/2023,90287175,"1,603.57",Daniels care ltd,SOCIAL SERVICES RESIDENTIAL,Adult Social Care & Health,Personal Budget - Third Party,A61019
Royal Borough of Kingston,30/11/2023,90287176,"5,345.23",Daniels care ltd,SOCIAL SERVICES RESIDENTIAL,Adult Social Care & Health,Personal Budget - Third Party,A61019
Royal Borough of Kingston,01/11/2023,90284908,"2,785.59",Darethealthcare UK Limited,ACCOMMODATION - OTHER,Adult Social Care & Health,Personal Budget - Third Party,A61019
Royal Borough of Kingston,01/11/2023,90285608,"3,100.50",Darethealthcare UK Limited,ACCOMMODATION - OTHER,Adult Social Care & Health,Personal Budget - Third Party,A61019
Royal Borough of Kingston,01/11/2023,90285619,"3,404.87",Darethealthcare UK Limited,ACCOMMODATION - OTHER,Adult Social Care & Health,Personal Budget - Third Party,A61019
Royal Borough of Kingston,05/11/2023,70059246,"1,922.26",DARIBA Design Limited,SUNDRY SUPPLIER - HOUSING,Corporate & Communities,Grants Given For Capital Purposes,C20004
Royal Borough of Kingston,25/11/2023,70058007,625.00,Darling Signs,FM SERVICES,Corporate & Communities,Equipment And Materials Purchase,A40000
Royal Borough of Kingston,07/11/2023,90278900,500.00,REDACTED - PERSONAL DATA,GRANTS & EX GRATIA PAYMENTS,Adult Social Care & Health,"Grants, Contributions & Donations",A47005
Royal Borough of Kingston,07/11/2023,90278901,500.00,REDACTED - PERSONAL DATA,GRANTS & EX GRATIA PAYMENTS,Adult Social Care & Health,"Grants, Contributions & Donations",A47005
Royal Borough of Kingston,07/11/2023,90278902,500.00,REDACTED - PERSONAL DATA,GRANTS & EX GRATIA PAYMENTS,Adult Social Care & Health,"Grants, Contributions & Donations",A47005
Royal Borough of Kingston,09/11/2023,90281016,500.00,REDACTED - PERSONAL DATA,GRANTS & EX GRATIA PAYMENTS,Adult Social Care & Health,"Grants, Contributions & Donations",A47005
Royal Borough of Kingston,23/11/2023,90283871,"1,400.00",REDACTED - PERSONAL DATA,PLS LANDLORDS,Place,PSL Payments To Landlords,A22031
Royal Borough of Kingston,23/11/2023,90283801,"1,094.00",REDACTED - PERSONAL DATA,PLS LANDLORDS,Place,PSL Payments To Landlords,A22031
Royal Borough of Kingston,23/11/2023,90283890,"1,000.00",REDACTED - PERSONAL DATA,PLS LANDLORDS,Place,PSL Payments To Landlords,A22031
Royal Borough of Kingston,07/11/2023,90279638,500.00,REDACTED - PERSONAL DATA,GRANTS & EX GRATIA PAYMENTS,Adult Social Care & Health,"Grants, Contributions & Donations",A47005
Royal Borough of Kingston,07/11/2023,90279637,550.00,REDACTED - PERSONAL DATA,CHARITIES & VOLUNTARY ORGNS,Adult Social Care & Health,"Grants, Contributions & Donations",A47005
Royal Borough of Kingston,23/11/2023,90283821,"1,094.00",REDACTED - PERSONAL DATA,PLS LANDLORDS,Place,PSL Payments To Landlords,A22031
Royal Borough of Kingston,01/11/2023,70057958,"2,635.00",Delta Wise Limited,ACCOMMODATION BED & BREAKFAST,Place,Bed & Breakfast,A56000
Royal Borough of Kingston,01/11/2023,70057959,"2,635.00",Delta Wise Limited,ACCOMMODATION BED & BREAKFAST,Place,Bed & Breakfast,A56000
Royal Borough of Kingston,01/11/2023,70057960,"5,115.00",Delta Wise Limited,ACCOMMODATION BED & BREAKFAST,Place,Bed & Breakfast,A56000
Royal Borough of Kingston,01/11/2023,70057961,"2,170.00",Delta Wise Limited,ACCOMMODATION BED & BREAKFAST,Place,Bed & Breakfast,A56000
Royal Borough of Kingston,01/11/2023,70057963,"2,635.00",Delta Wise Limited,ACCOMMODATION BED & BREAKFAST,Place,Bed & Breakfast,A56000
Royal Borough of Kingston,01/11/2023,70057964,"2,976.00",Delta Wise Limited,ACCOMMODATION BED & BREAKFAST,Place,Bed & Breakfast,A56000
Royal Borough of Kingston,01/11/2023,70057965,"3,069.00",Delta Wise Limited,ACCOMMODATION BED & BREAKFAST,Place,Bed & Breakfast,A56000
Royal Borough of Kingston,01/11/2023,70057966,"2,530.00",Delta Wise Limited,ACCOMMODATION BED & BREAKFAST,Place,Bed & Breakfast,A56000
Royal Borough of Kingston,01/11/2023,70057967,"1,953.00",Delta Wise Limited,ACCOMMODATION BED & BREAKFAST,Place,Bed & Breakfast,A56000
Royal Borough of Kingston,01/11/2023,70057968,"2,077.00",Delta Wise Limited,ACCOMMODATION BED & BREAKFAST,Place,Bed & Breakfast,A56000
Royal Borough of Kingston,01/11/2023,70057969,"3,720.00",Delta Wise Limited,ACCOMMODATION BED & BREAKFAST,Place,Bed & Breakfast,A56000
Royal Borough of Kingston,01/11/2023,70057970,"3,565.00",Delta Wise Limited,ACCOMMODATION BED & BREAKFAST,Place,Bed & Breakfast,A56000
Royal Borough of Kingston,01/11/2023,70057971,"4,402.00",Delta Wise Limited,ACCOMMODATION BED & BREAKFAST,Place,Bed & Breakfast,A56000
Royal Borough of Kingston,01/11/2023,70057972,"4,092.00",Delta Wise Limited,ACCOMMODATION BED & BREAKFAST,Place,Bed & Breakfast,A56000
Royal Borough of Kingston,01/11/2023,90285561,"6,772.50",Dephinus Healthcare Ltd,ACCOMMODATION - OTHER,Adult Social Care & Health,Personal Budget - Third Party,A61019
Royal Borough of Kingston,01/11/2023,90285596,"7,551.60",Dephinus Healthcare Ltd,ACCOMMODATION - OTHER,Adult Social Care & Health,Personal Budget - Third Party,A61019
Royal Borough of Kingston,01/11/2023,90285597,"6,975.00",Dephinus Healthcare Ltd,ACCOMMODATION - OTHER,Adult Social Care & Health,Personal Budget - Third Party,A61019
Royal Borough of Kingston,01/11/2023,90285598,"15,171.43",Dephinus Healthcare Ltd,ACCOMMODATION - OTHER,Adult Social Care & Health,Personal Budget - Third Party,A61019
Royal Borough of Kingston,01/11/2023,90285618,"5,985.43",Dephinus Healthcare Ltd,ACCOMMODATION - OTHER,Adult Social Care & Health,Personal Budget - Third Party,A61019
Royal Borough of Kingston,01/11/2023,70057920,"1,150.00",DEXTERS LIMITED,LANDLORDS,Adult Social Care & Health,Building Rents,A22005
Royal Borough of Kingston,27/11/2023,70059310,"17,680.00",DFE ,SUNDRY SUPPLIER - FINANCE,Childrens Services,Holiday Activities and Food Grant,A91081
Royal Borough of Kingston,23/11/2023,90283540,"1,321.00",REDACTED - PERSONAL DATA,PLS LANDLORDS,Place,PSL Payments To Landlords,A22031
Royal Borough of Kingston,14/11/2023,90281188,"2,966.40",DICKY BIRDS PRE SCHOOL NURSERIES LTD,ACADEMIC INSTNS - OTHER,Schools,Early Years Contingency,A60030
Royal Borough of Kingston,14/11/2023,90281215,"2,566.20",DICKY BIRDS PRE SCHOOL NURSERIES LTD,ACADEMIC INSTNS - OTHER,Schools,Early Years Contingency,A60030
Royal Borough of Kingston,14/11/2023,90281273,"1,638.00",DICKY BIRDS PRE SCHOOL NURSERIES LTD,ACADEMIC INSTNS - OTHER,Schools,Early Years Contingency,A60030
Royal Borough of Kingston,07/11/2023,90279639,500.00,REDACTED - PERSONAL DATA,GRANTS & EX GRATIA PAYMENTS,Adult Social Care & Health,"Grants, Contributions & Donations",A47005
Royal Borough of Kingston,31/10/2023,70059174,"26,170.00",DISCLOSURE AND BARRING SERVICE,LEGAL & PROFESSIONAL SERVICES,Corporate & Communities,DBS Checks,A15029
Royal Borough of Kingston,30/09/2023,70059175,"25,124.00",DISCLOSURE AND BARRING SERVICE,LEGAL & PROFESSIONAL SERVICES,Corporate & Communities,DBS Checks,A15029
Royal Borough of Kingston,31/08/2023,70059176,"15,866.00",DISCLOSURE AND BARRING SERVICE,LEGAL & PROFESSIONAL SERVICES,Corporate & Communities,DBS Checks,A15029
Royal Borough of Kingston,23/11/2023,90283868,"1,094.33",REDACTED - PERSONAL DATA,PLS LANDLORDS,Place,PSL Payments To Landlords,A22031
Royal Borough of Kingston,23/11/2023,90283869,867.83,REDACTED - PERSONAL DATA,PLS LANDLORDS,Place,PSL Payments To Landlords,A22031
Royal Borough of Kingston,30/10/2023,70058494,"5,606.00",DOLPHIN MOBILITY LIMITED,CONSTRUCTION INDUSTRY,Corporate & Communities,Grants Given For Capital Purposes,C20004
Royal Borough of Kingston,14/11/2023,90281155,"5,544.00",DORIS VENNER PRE-SCHOOL,ACADEMIC INSTNS - OTHER,Schools,Early Years Contingency,A60030
Royal Borough of Kingston,14/11/2023,90281208,"1,767.30",DORIS VENNER PRE-SCHOOL,ACADEMIC INSTNS - OTHER,Schools,Early Years Contingency,A60030
Royal Borough of Kingston,01/11/2023,90284495,"5,624.10",DOWNING (CHERTSEY ROAD) LTD,SOCIAL SERVICES RESIDENTIAL,Adult Social Care & Health,Independent Placements,A56006
Royal Borough of Kingston,01/11/2023,90285635,-724.71,DOWNING (CHERTSEY ROAD) LTD,SOCIAL SERVICES RESIDENTIAL,Adult Social Care & Health,Financially Assessed Contributions clients � Non VAT,A92047
Royal Borough of Kingston,23/11/2023,90283545,"1,675.00",REDACTED - PERSONAL DATA,PLS LANDLORDS,Place,PSL Payments To Landlords,A22031
Royal Borough of Kingston,23/11/2023,90283843,"1,314.00",REDACTED - PERSONAL DATA,PLS LANDLORDS,Place,PSL Payments To Landlords,A22031
Royal Borough of Kingston,23/11/2023,90283676,"1,090.00",REDACTED - PERSONAL DATA,PLS LANDLORDS,Place,PSL Payments To Landlords,A22031
Royal Borough of Kingston,23/11/2023,90283526,"1,314.00",REDACTED - PERSONAL DATA,PLS LANDLORDS,Place,PSL Payments To Landlords,A22031
Royal Borough of Kingston,23/11/2023,90283831,"1,094.00",REDACTED - PERSONAL DATA,PLS LANDLORDS,Place,PSL Payments To Landlords,A22031
Royal Borough of Kingston,14/11/2023,70059258,"6,450.00",Driscoll Kingston & Co Ltd,SUNDRY SUPPLIER - HOUSING,Place,Compensation (In Lieu Of Works),A20039
Royal Borough of Kingston,31/10/2023,70058255,"1,705.00",Dunheved Hotel LTD,ACCOMMODATION BED & BREAKFAST,Place,Bed & Breakfast,A56000
Royal Borough of Kingston,06/11/2023,70058451,"2,829.71",E.ON Next Energy Ltd,UTILITIES,Place,Electricity,A21000
Royal Borough of Kingston,23/11/2023,90283696,"1,094.00",EARLSFIELD PROPERTIES,PLS LANDLORDS,Place,PSL Payments To Landlords,A22031
Royal Borough of Kingston,23/11/2023,90283697,"1,094.00",EARLSFIELD PROPERTIES,PLS LANDLORDS,Place,PSL Payments To Landlords,A22031
Royal Borough of Kingston,23/11/2023,90283916,"1,047.00",EARLSFIELD PROPERTIES,PLS LANDLORDS,Place,PSL Payments To Landlords,A22031
Royal Borough of Kingston,24/10/2023,70057890,490.93,EDF ENERGY CUSTOMERS PLC,UTILITIES,Housing Revenue Account,Electricity,A21000
Royal Borough of Kingston,23/11/2023,90283559,"1,050.00",REDACTED - PERSONAL DATA,PLS LANDLORDS,Place,PSL Payments To Landlords,A22031
Royal Borough of Kingston,23/11/2023,90283577,"1,200.00",REDACTED - PERSONAL DATA,PLS LANDLORDS,Place,PSL Payments To Landlords,A22031
Royal Borough of Kingston,11/10/2023,70056476,"3,859.00",ELDERCARE (UK) LTD,SOCIAL SERVICES - OTHER,Adult Social Care & Health,Equipment And Materials Purchase,A40000
Royal Borough of Kingston,07/11/2023,90279640,500.00,REDACTED - PERSONAL DATA,CHARITIES & VOLUNTARY ORGNS,Adult Social Care & Health,"Grants, Contributions & Donations",A47005
Royal Borough of Kingston,03/11/2023,90278837,"30,402.82",ELLINGHAM PRIMARY SCHOOL,SCHOOL FUNDS,Schools,Miscellaneous Expenses,A49000
Royal Borough of Kingston,14/11/2023,90281031,"3,371.25",ELLINGHAM PRIMARY SCHOOL,SCHOOL FUNDS,Schools,Miscellaneous Expenses,A49000
Royal Borough of Kingston,14/11/2023,90281060,"1,673.44",ELLINGHAM PRIMARY SCHOOL,SCHOOL FUNDS,Schools,Miscellaneous Expenses,A49000
Royal Borough of Kingston,14/11/2023,90281100,"33,465.00",ELLINGHAM PRIMARY SCHOOL,SCHOOL FUNDS,Schools,Miscellaneous Expenses,A49000
Royal Borough of Kingston,14/11/2023,90281101,632.50,ELLINGHAM PRIMARY SCHOOL,SCHOOL FUNDS,Schools,Miscellaneous Expenses,A49000
Royal Borough of Kingston,14/11/2023,90281161,940.80,ELLINGHAM PRIMARY SCHOOL,SCHOOL FUNDS,Schools,Early Years Contingency,A60030
Royal Borough of Kingston,01/11/2023,90284339,"10,044.00",ELYSIUM HEALTHCARE LTD,SOCIAL SERVICES - OTHER,Adult Social Care & Health,Independent Placements,A56006
Royal Borough of Kingston,01/11/2023,90284347,"9,690.60",ELYSIUM HEALTHCARE LTD,SOCIAL SERVICES - OTHER,Adult Social Care & Health,Independent Placements,A56006
Royal Borough of Kingston,01/11/2023,90284349,"11,530.03",ELYSIUM HEALTHCARE LTD,SOCIAL SERVICES - OTHER,Adult Social Care & Health,Independent Placements,A56006
Royal Borough of Kingston,01/11/2023,90284353,"9,926.91",ELYSIUM HEALTHCARE LTD,SOCIAL SERVICES - OTHER,Adult Social Care & Health,Independent Placements,A56006
Royal Borough of Kingston,01/11/2023,90284356,"10,247.31",ELYSIUM HEALTHCARE LTD,SOCIAL SERVICES - OTHER,Adult Social Care & Health,Independent Placements,A56006
Royal Borough of Kingston,01/11/2023,90284440,"10,044.00",ELYSIUM HEALTHCARE LTD,SOCIAL SERVICES - OTHER,Adult Social Care & Health,Independent Placements,A56006
Royal Borough of Kingston,01/11/2023,90284619,"5,070.24",EMEZZIONS LIMITED,SOCIAL SERVICES - OTHER,Adult Social Care & Health,Supported Living - new framework,A56126
Royal Borough of Kingston,01/11/2023,90284620,"2,716.20",EMEZZIONS LIMITED,SOCIAL SERVICES - OTHER,Adult Social Care & Health,Supported Living - new framework,A56126
Royal Borough of Kingston,16/10/2023,90284779,914.88,EMEZZIONS LIMITED,SOCIAL SERVICES - OTHER,Adult Social Care & Health,Supported Living - new framework,A56126
Royal Borough of Kingston,16/10/2023,90284780,914.88,EMEZZIONS LIMITED,SOCIAL SERVICES - OTHER,Adult Social Care & Health,Supported Living - new framework,A56126
Royal Borough of Kingston,16/10/2023,90284781,914.88,EMEZZIONS LIMITED,SOCIAL SERVICES - OTHER,Adult Social Care & Health,Supported Living - new framework,A56126
Royal Borough of Kingston,16/10/2023,90284782,914.88,EMEZZIONS LIMITED,SOCIAL SERVICES - OTHER,Adult Social Care & Health,Supported Living - new framework,A56126
Royal Borough of Kingston,16/10/2023,90284783,914.88,EMEZZIONS LIMITED,SOCIAL SERVICES - OTHER,Adult Social Care & Health,Supported Living - new framework,A56126
Royal Borough of Kingston,16/10/2023,90284784,914.88,EMEZZIONS LIMITED,SOCIAL SERVICES - OTHER,Adult Social Care & Health,Supported Living - new framework,A56126
Royal Borough of Kingston,16/10/2023,90284785,914.88,EMEZZIONS LIMITED,SOCIAL SERVICES - OTHER,Adult Social Care & Health,Supported Living - new framework,A56126
Royal Borough of Kingston,16/10/2023,90284786,914.88,EMEZZIONS LIMITED,SOCIAL SERVICES - OTHER,Adult Social Care & Health,Supported Living - new framework,A56126
Royal Borough of Kingston,16/10/2023,90284787,914.88,EMEZZIONS LIMITED,SOCIAL SERVICES - OTHER,Adult Social Care & Health,Supported Living - new framework,A56126
Royal Borough of Kingston,16/10/2023,90284788,914.88,EMEZZIONS LIMITED,SOCIAL SERVICES - OTHER,Adult Social Care & Health,Supported Living - new framework,A56126
Royal Borough of Kingston,16/10/2023,90284790,849.53,EMEZZIONS LIMITED,SOCIAL SERVICES - OTHER,Adult Social Care & Health,Supported Living - new framework,A56126
Royal Borough of Kingston,16/10/2023,90284791,960.48,EMEZZIONS LIMITED,SOCIAL SERVICES - OTHER,Adult Social Care & Health,Supported Living - new framework,A56126
Royal Borough of Kingston,16/10/2023,90284792,960.48,EMEZZIONS LIMITED,SOCIAL SERVICES - OTHER,Adult Social Care & Health,Supported Living - new framework,A56126
Royal Borough of Kingston,16/10/2023,90284793,960.48,EMEZZIONS LIMITED,SOCIAL SERVICES - OTHER,Adult Social Care & Health,Supported Living - new framework,A56126
Royal Borough of Kingston,16/10/2023,90284794,960.48,EMEZZIONS LIMITED,SOCIAL SERVICES - OTHER,Adult Social Care & Health,Supported Living - new framework,A56126
Royal Borough of Kingston,16/10/2023,90284795,960.48,EMEZZIONS LIMITED,SOCIAL SERVICES - OTHER,Adult Social Care & Health,Supported Living - new framework,A56126
Royal Borough of Kingston,16/10/2023,90284796,960.48,EMEZZIONS LIMITED,SOCIAL SERVICES - OTHER,Adult Social Care & Health,Supported Living - new framework,A56126
Royal Borough of Kingston,16/10/2023,90284797,960.48,EMEZZIONS LIMITED,SOCIAL SERVICES - OTHER,Adult Social Care & Health,Supported Living - new framework,A56126
Royal Borough of Kingston,16/10/2023,90284798,800.40,EMEZZIONS LIMITED,SOCIAL SERVICES - OTHER,Adult Social Care & Health,Supported Living - new framework,A56126
Royal Borough of Kingston,16/10/2023,90284799,960.48,EMEZZIONS LIMITED,SOCIAL SERVICES - OTHER,Adult Social Care & Health,Supported Living - new framework,A56126
Royal Borough of Kingston,01/11/2023,90284860,"2,564.38",EMEZZIONS LIMITED,SOCIAL SERVICES - OTHER,Adult Social Care & Health,Supported Living - new framework,A56126
Royal Borough of Kingston,01/11/2023,90284861,"3,420.54",EMEZZIONS LIMITED,SOCIAL SERVICES - OTHER,Adult Social Care & Health,Supported Living - new framework,A56126
Royal Borough of Kingston,01/11/2023,90284862,"1,629.63",EMEZZIONS LIMITED,SOCIAL SERVICES - OTHER,Adult Social Care & Health,Supported Living - new framework,A56126
Royal Borough of Kingston,01/11/2023,90284876,"3,533.28",EMEZZIONS LIMITED,SOCIAL SERVICES - OTHER,Adult Social Care & Health,Supported Living - new framework,A56126
Royal Borough of Kingston,01/11/2023,90284877,"2,160.36",EMEZZIONS LIMITED,SOCIAL SERVICES - OTHER,Adult Social Care & Health,Supported Living - new framework,A56126
Royal Borough of Kingston,01/11/2023,90284907,"5,146.20",EMEZZIONS LIMITED,SOCIAL SERVICES - OTHER,Adult Social Care & Health,Personal Budget - Third Party,A61019
Royal Borough of Kingston,07/11/2023,90279641,500.00,REDACTED - PERSONAL DATA,CHARITIES & VOLUNTARY ORGNS,Adult Social Care & Health,"Grants, Contributions & Donations",A47005
Royal Borough of Kingston,31/10/2023,70057930,"1,425.00",EMPATHY HOUSING LTD,ACCOMMODATION BED & BREAKFAST,Place,Bed & Breakfast,A56000
Royal Borough of Kingston,30/09/2023,70057912,"1,198.48",EMPLOYEE ADVISORY RESOURCE LTD,LEGAL & PROFESSIONAL SERVICES,Corporate & Communities,Other Private Contractors - Third Party,A56080
Royal Borough of Kingston,01/11/2023,90284107,"3,241.63",ENHAM,SOCIAL SERVICES - OTHER,Adult Social Care & Health,Independent Placements,A56006
Royal Borough of Kingston,01/11/2023,90285621,-517.71,ENHAM,SOCIAL SERVICES - OTHER,Adult Social Care & Health,Financially Assessed Contributions clients � Non VAT,A92047
Royal Borough of Kingston,31/10/2023,70059023,741.60,ENHANCEABLE,SOCIAL SERVICES - OTHER,Adult Social Care & Health,Other Private Contractors - Third Party,A56080
Royal Borough of Kingston,01/11/2023,90283365,"1,525.67",ENHANCEABLE,SOCIAL SERVICES - OTHER,Adult Social Care & Health,Personal Budget - Third Party,A61019
Royal Borough of Kingston,01/11/2023,90284554,"31,731.09",ENHANCEABLE,SOCIAL SERVICES - OTHER,Adult Social Care & Health,Other Private Contractors - Third Party,A56080
Royal Borough of Kingston,01/11/2023,90284558,"1,524.21",ENHANCEABLE,SOCIAL SERVICES - OTHER,Adult Social Care & Health,Other Private Contractors - Third Party,A56080
Royal Borough of Kingston,01/11/2023,90284560,533.49,ENHANCEABLE,SOCIAL SERVICES - OTHER,Adult Social Care & Health,Other Private Contractors - Third Party,A56080
Royal Borough of Kingston,01/11/2023,90285370,"1,715.57",ENHANCEABLE,SOCIAL SERVICES - OTHER,Adult Social Care & Health,Personal Budget - Third Party,A61019
Royal Borough of Kingston,01/11/2023,90285640,953.10,ENHANCEABLE,SOCIAL SERVICES - OTHER,Adult Social Care & Health,Personal Budget - Third Party,A61019
Royal Borough of Kingston,01/11/2023,90285641,"1,048.41",ENHANCEABLE,SOCIAL SERVICES - OTHER,Adult Social Care & Health,Personal Budget - Third Party,A61019
Royal Borough of Kingston,26/10/2023,70057903,"1,238.21",EPSOM & ST HELIER UNIVERSITY HOSPITALS NHS TRUST,SOCIAL SERVICES - OTHER,Adult Social Care & Health,Other Private Contractors - Third Party,A56080
Royal Borough of Kingston,10/10/2023,70058575,"39,800.00",ERNST AND YOUNG LLP,LEGAL & PROFESSIONAL SERVICES,Adult Social Care & Health,Professional Fees,A44066
Royal Borough of Kingston,02/11/2023,70058080,"4,805.00",EurohousingLTD,ACCOMMODATION BED & BREAKFAST,Place,Bed & Breakfast,A56000
Royal Borough of Kingston,19/10/2023,70059128,"8,476.00",Evolve AMS UK Ltd,SUNDRY SUPPLIER - HOUSING,Corporate & Communities,Grants Given For Capital Purposes,C20004
Royal Borough of Kingston,13/11/2023,70059129,"3,269.00",Evolve AMS UK Ltd,SUNDRY SUPPLIER - HOUSING,Corporate & Communities,Grants Given For Capital Purposes,C20004
Royal Borough of Kingston,30/06/2023,70058636,667.30,EXCHANGING LTD,TCES RETAILERS (PHARMACYS),Adult Social Care & Health,Other Private Contractors - Third Party,A56080
Royal Borough of Kingston,30/09/2023,70058638,825.40,EXCHANGING LTD,TCES RETAILERS (PHARMACYS),Adult Social Care & Health,Other Private Contractors - Third Party,A56080
Royal Borough of Kingston,01/11/2023,70058820,"4,030.00",EXCLUSIVE FINE HOMES LTD,ACCOMMODATION BED & BREAKFAST,Place,Bed & Breakfast,A56000
Royal Borough of Kingston,01/11/2023,70058821,"4,650.00",EXCLUSIVE FINE HOMES LTD,ACCOMMODATION BED & BREAKFAST,Place,Bed & Breakfast,A56000
Royal Borough of Kingston,01/11/2023,70058822,"2,790.00",EXCLUSIVE FINE HOMES LTD,ACCOMMODATION BED & BREAKFAST,Place,Bed & Breakfast,A56000
Royal Borough of Kingston,23/11/2023,90283800,823.33,REDACTED - PERSONAL DATA,PLS LANDLORDS,Place,PSL Payments To Landlords,A22031
Royal Borough of Kingston,23/11/2023,90283776,"1,551.00",REDACTED - PERSONAL DATA,PLS LANDLORDS,Place,PSL Payments To Landlords,A22031
Royal Borough of Kingston,23/11/2023,90283550,918.33,REDACTED - PERSONAL DATA,PLS LANDLORDS,Place,PSL Payments To Landlords,A22031
Royal Borough of Kingston,08/09/2023,70054141,650.00,F H & G LIMITED,LEGAL & PROFESSIONAL SERVICES,Housing Revenue Account,Professional Fees,A44066
Royal Borough of Kingston,23/11/2023,90283812,"1,675.00",REDACTED - PERSONAL DATA,PLS LANDLORDS,Place,PSL Payments To Landlords,A22031
Royal Borough of Kingston,26/09/2023,70055515,"4,065.71",F.M. CONWAY LTD,CONSTRUCTION INDUSTRY,Corporate & Communities,Infrastructure Assets - Project Management,C12000
Royal Borough of Kingston,16/10/2023,70056930,"8,102.64",F.M. CONWAY LTD,CONSTRUCTION INDUSTRY,Corporate & Communities,Vehicle Crossings,A56043
Royal Borough of Kingston,30/10/2023,70057755,"4,401.62",F.M. CONWAY LTD,CONSTRUCTION INDUSTRY,Corporate & Communities,Infrastructure Assets - Project Management,C12000
Royal Borough of Kingston,30/10/2023,70057824,"5,315.36",F.M. CONWAY LTD,CONSTRUCTION INDUSTRY,Corporate & Communities,Vehicle Crossings,A56043
Royal Borough of Kingston,30/10/2023,70057825,"2,083.47",F.M. CONWAY LTD,CONSTRUCTION INDUSTRY,Corporate & Communities,Vehicle Crossings,A56043
Royal Borough of Kingston,14/11/2023,90281158,"3,998.40",FAIRFIELD PLAYBOX PLAYGROUP,ACADEMIC INSTNS - OTHER,Schools,Early Years Contingency,A60030
Royal Borough of Kingston,26/10/2023,70057749,"3,000.00",FAMILIES THRIVING TOGETHER,SUNDRY SUPPLIER - FINANCE,Corporate & Communities,Payments to Voluntary Organisations,A54005
Royal Borough of Kingston,01/10/2023,90278762,"5,233.73",FAMILY INVESTMENT (THREE) LIMITED,SOCIAL SERVICES RESIDENTIAL,Adult Social Care & Health,Independent Placements,A56006
Royal Borough of Kingston,01/11/2023,90284490,"5,064.90",FAMILY INVESTMENT (THREE) LIMITED,SOCIAL SERVICES RESIDENTIAL,Adult Social Care & Health,Independent Placements,A56006
Royal Borough of Kingston,23/11/2023,90283531,"1,094.00",REDACTED - PERSONAL DATA,PLS LANDLORDS,Place,PSL Payments To Landlords,A22031
Royal Borough of Kingston,15/09/2023,70058331,625.50,FAROL LIMITED,OPERATIONAL EQUIPMENT/MATERIAL,Adult Social Care & Health,Equipment And Materials Purchase,A40000
Royal Borough of Kingston,31/10/2023,70058003,"7,020.00",FARRER HUXLEY LIMITED,CONSULTING ARCHITECTS ENGINEER,Place,Infrastructure Assets - Detailed Design,C12003
Royal Borough of Kingston,14/11/2023,90281165,"1,411.20",REDACTED - PERSONAL DATA,CHILDMINDERS START UP GRANT,Schools,Early Years Contingency,A60030
Royal Borough of Kingston,14/11/2023,90281256,540.00,REDACTED - PERSONAL DATA,CHILDMINDERS START UP GRANT,Schools,Early Years Contingency,A60030
Royal Borough of Kingston,14/11/2023,90281271,"2,242.80",Fern Hill Primary School,SCHOOL FUNDS,Schools,Early Years Contingency,A60030
Royal Borough of Kingston,01/11/2023,90284045,"4,551.43",Fir Ridge Care Home Ltd,SOCIAL SERVICES RESIDENTIAL,Adult Social Care & Health,Independent Placements,A56006
Royal Borough of Kingston,01/11/2023,90284240,"4,542.86",Fir Ridge Care Home Ltd,SOCIAL SERVICES RESIDENTIAL,Adult Social Care & Health,Independent Placements,A56006
Royal Borough of Kingston,03/11/2023,70057957,"56,193.58",TRAVELODGE,SUNDRY SUPPLIER - FINANCE,Housing Revenue Account,Bed & Breakfast,A56000
Royal Borough of Kingston,14/11/2023,70058491,"105,174.76",TRAVELODGE,SUNDRY SUPPLIER - FINANCE,Housing Revenue Account,Bed & Breakfast,A56000
Royal Borough of Kingston,01/11/2023,90284497,"7,740.21",FitzRoy Support,SOCIAL SERVICES - OTHER,Adult Social Care & Health,Independent Placements,A56006
Royal Borough of Kingston,26/10/2023,70057636,500.00,FOTHERGILL & COMPANY LIMITED,LEGAL & PROFESSIONAL SERVICES,Housing Revenue Account,Council Dwellings - Construction & Renovation,C10002
Royal Borough of Kingston,14/11/2023,90281275,693.00,Fountain Nursery Limited,CHILDMINDERS START UP GRANT,Schools,Early Years Contingency,A60030
Royal Borough of Kingston,01/11/2023,90283933,"4,232.57",FOUR SEASONS HEALTHCARE,SOCIAL SERVICES RESIDENTIAL,Adult Social Care & Health,Independent Placements,A56006
Royal Borough of Kingston,01/11/2023,90283934,"3,570.56",FOUR SEASONS HEALTHCARE,SOCIAL SERVICES RESIDENTIAL,Adult Social Care & Health,Independent Placements,A56006
Royal Borough of Kingston,01/11/2023,90283939,"3,392.86",FOUR SEASONS HEALTHCARE,SOCIAL SERVICES RESIDENTIAL,Adult Social Care & Health,Independent Placements,A56006
Royal Borough of Kingston,01/11/2023,90283941,"3,593.44",FOUR SEASONS HEALTHCARE,SOCIAL SERVICES RESIDENTIAL,Adult Social Care & Health,Independent Placements,A56006
Royal Borough of Kingston,01/11/2023,90283944,"2,035.71",FOUR SEASONS HEALTHCARE,SOCIAL SERVICES RESIDENTIAL,Adult Social Care & Health,Independent Placements,A56006
Royal Borough of Kingston,01/11/2023,90283945,"4,071.43",FOUR SEASONS HEALTHCARE,SOCIAL SERVICES RESIDENTIAL,Adult Social Care & Health,Independent Placements,A56006
Royal Borough of Kingston,01/11/2023,90283955,"3,489.81",FOUR SEASONS HEALTHCARE,SOCIAL SERVICES RESIDENTIAL,Adult Social Care & Health,Independent Placements,A56006
Royal Borough of Kingston,01/11/2023,90283969,"3,592.76",FOUR SEASONS HEALTHCARE,SOCIAL SERVICES RESIDENTIAL,Adult Social Care & Health,Independent Placements,A56006
Royal Borough of Kingston,01/11/2023,90283970,"3,214.29",FOUR SEASONS HEALTHCARE,SOCIAL SERVICES RESIDENTIAL,Adult Social Care & Health,Independent Placements,A56006
Royal Borough of Kingston,01/11/2023,90283971,"3,593.44",FOUR SEASONS HEALTHCARE,SOCIAL SERVICES RESIDENTIAL,Adult Social Care & Health,Independent Placements,A56006
Royal Borough of Kingston,01/11/2023,90283993,"3,593.44",FOUR SEASONS HEALTHCARE,SOCIAL SERVICES RESIDENTIAL,Adult Social Care & Health,Independent Placements,A56006
Royal Borough of Kingston,01/11/2023,90283996,"3,593.44",FOUR SEASONS HEALTHCARE,SOCIAL SERVICES RESIDENTIAL,Adult Social Care & Health,Independent Placements,A56006
Royal Borough of Kingston,01/11/2023,90284015,"3,800.00",FOUR SEASONS HEALTHCARE,SOCIAL SERVICES RESIDENTIAL,Adult Social Care & Health,Independent Placements,A56006
Royal Borough of Kingston,01/11/2023,90284016,"4,071.43",FOUR SEASONS HEALTHCARE,SOCIAL SERVICES RESIDENTIAL,Adult Social Care & Health,Independent Placements,A56006
Royal Borough of Kingston,01/11/2023,90284017,"4,207.14",FOUR SEASONS HEALTHCARE,SOCIAL SERVICES RESIDENTIAL,Adult Social Care & Health,Independent Placements,A56006
Royal Borough of Kingston,01/11/2023,90284018,"4,071.43",FOUR SEASONS HEALTHCARE,SOCIAL SERVICES RESIDENTIAL,Adult Social Care & Health,Independent Placements,A56006
Royal Borough of Kingston,01/11/2023,90284019,"3,593.44",FOUR SEASONS HEALTHCARE,SOCIAL SERVICES RESIDENTIAL,Adult Social Care & Health,Independent Placements,A56006
Royal Borough of Kingston,01/11/2023,90284065,"4,071.43",FOUR SEASONS HEALTHCARE,SOCIAL SERVICES RESIDENTIAL,Adult Social Care & Health,Independent Placements,A56006
Royal Borough of Kingston,01/11/2023,90284082,"3,857.14",FOUR SEASONS HEALTHCARE,SOCIAL SERVICES RESIDENTIAL,Adult Social Care & Health,Independent Placements,A56006
Royal Borough of Kingston,01/11/2023,90284115,"3,228.34",FOUR SEASONS HEALTHCARE,SOCIAL SERVICES RESIDENTIAL,Adult Social Care & Health,Independent Placements,A56006
Royal Borough of Kingston,01/11/2023,90284127,"3,413.10",FOUR SEASONS HEALTHCARE,SOCIAL SERVICES RESIDENTIAL,Adult Social Care & Health,Independent Placements,A56006
Royal Borough of Kingston,01/11/2023,90284155,"3,125.44",FOUR SEASONS HEALTHCARE,SOCIAL SERVICES RESIDENTIAL,Adult Social Care & Health,Independent Placements,A56006
Royal Borough of Kingston,01/11/2023,90284242,"3,642.86",FOUR SEASONS HEALTHCARE,SOCIAL SERVICES RESIDENTIAL,Adult Social Care & Health,Independent Placements,A56006
Royal Borough of Kingston,23/11/2023,90283521,"2,083.33",REDACTED - PERSONAL DATA,PLS LANDLORDS,Place,PSL Payments To Landlords,A22031
Royal Borough of Kingston,23/11/2023,90283789,"1,280.67",REDACTED - PERSONAL DATA,PLS LANDLORDS,Place,PSL Payments To Landlords,A22031
Royal Borough of Kingston,06/11/2023,70059208,"5,000.00",Full Cycle Bicyle Project CIC,GRANTS & EX GRATIA PAYMENTS,Adult Social Care & Health,"Grants, Contributions & Donations",A47005
Royal Borough of Kingston,23/11/2023,90283667,"1,094.00",REDACTED - PERSONAL DATA,PLS LANDLORDS,Place,PSL Payments To Landlords,A22031
Royal Borough of Kingston,23/11/2023,90283511,"1,094.34",REDACTED - PERSONAL DATA,PLS LANDLORDS,Place,PSL Payments To Landlords,A22031
Royal Borough of Kingston,23/11/2023,90283794,"1,094.34",REDACTED - PERSONAL DATA,PLS LANDLORDS,Place,PSL Payments To Landlords,A22031
Royal Borough of Kingston,22/11/2023,70059094,"17,846.80",Gainsborough Healthcare Group Ltd,SUNDRY SUPPLIER - HOUSING,Corporate & Communities,Grants Given For Capital Purposes,C20004
Royal Borough of Kingston,31/10/2023,70057894,"2,368.00",GAS CONTRACT SERVICES LTD,LEGAL & PROFESSIONAL SERVICES,Housing Revenue Account,Gas Servicing & Heating Repairs,A20005
Royal Borough of Kingston,23/11/2023,90283605,"1,240.00",GATES & BRADSHAW (UK) LTD,PLS LANDLORDS,Place,PSL Payments To Landlords,A22031
Royal Borough of Kingston,17/10/2023,70056897,"329,201.00",KINGSTON HOSPITAL NHS FT,CENTRAL & LOCAL GOVERNMENT,Adult Social Care & Health,Other Private Contractors - Third Party,A56080
Royal Borough of Kingston,17/10/2023,70056898,"34,500.00",KINGSTON HOSPITAL NHS FT,CENTRAL & LOCAL GOVERNMENT,Adult Social Care & Health,Other Private Contractors - Third Party,A56080
Royal Borough of Kingston,14/11/2023,90281216,"1,806.00",KINGSTON HOSPITAL NHS FT,SOCIAL SERVICES DAY CARE,Schools,Early Years Contingency,A60030
Royal Borough of Kingston,09/10/2023,90278772,864.00,GENEVA ROAD LIMITED,SOCIAL SERVICES RESIDENTIAL,Adult Social Care & Health,Personal Budget - Third Party,A61019
Royal Borough of Kingston,09/10/2023,90278778,"2,054.80",GENEVA ROAD LIMITED,SOCIAL SERVICES RESIDENTIAL,Adult Social Care & Health,Personal Budget - Third Party,A61019
Royal Borough of Kingston,09/10/2023,90278779,"1,080.00",GENEVA ROAD LIMITED,SOCIAL SERVICES RESIDENTIAL,Adult Social Care & Health,Personal Budget - Third Party,A61019
Royal Borough of Kingston,09/10/2023,90278782,672.48,GENEVA ROAD LIMITED,SOCIAL SERVICES RESIDENTIAL,Adult Social Care & Health,Personal Budget - Third Party,A61019
Royal Borough of Kingston,09/10/2023,90278783,648.00,GENEVA ROAD LIMITED,SOCIAL SERVICES RESIDENTIAL,Adult Social Care & Health,Personal Budget - Third Party,A61019
Royal Borough of Kingston,09/10/2023,90278784,"1,868.00",GENEVA ROAD LIMITED,SOCIAL SERVICES RESIDENTIAL,Adult Social Care & Health,Personal Budget - Third Party,A61019
Royal Borough of Kingston,09/10/2023,90278785,"1,080.00",GENEVA ROAD LIMITED,SOCIAL SERVICES RESIDENTIAL,Adult Social Care & Health,Personal Budget - Third Party,A61019
Royal Borough of Kingston,09/10/2023,90278794,864.00,GENEVA ROAD LIMITED,SOCIAL SERVICES RESIDENTIAL,Adult Social Care & Health,Personal Budget - Third Party,A61019
Royal Borough of Kingston,09/10/2023,90278799,971.36,GENEVA ROAD LIMITED,SOCIAL SERVICES RESIDENTIAL,Adult Social Care & Health,Personal Budget - Third Party,A61019
Royal Borough of Kingston,09/10/2023,90278802,864.00,GENEVA ROAD LIMITED,SOCIAL SERVICES RESIDENTIAL,Adult Social Care & Health,Personal Budget - Third Party,A61019
Royal Borough of Kingston,09/10/2023,90278803,648.00,GENEVA ROAD LIMITED,SOCIAL SERVICES RESIDENTIAL,Adult Social Care & Health,Personal Budget - Third Party,A61019
Royal Borough of Kingston,09/10/2023,90278812,540.00,GENEVA ROAD LIMITED,SOCIAL SERVICES RESIDENTIAL,Adult Social Care & Health,Personal Budget - Third Party,A61019
Royal Borough of Kingston,16/10/2023,90284770,587.16,GENEVA ROAD LIMITED,SOCIAL SERVICES RESIDENTIAL,Adult Social Care & Health,Supported Living - new framework,A56126
Royal Borough of Kingston,16/10/2023,90284808,"1,100.16",GENEVA ROAD LIMITED,SOCIAL SERVICES RESIDENTIAL,Adult Social Care & Health,Supported Living - new framework,A56126
Royal Borough of Kingston,01/11/2023,90284925,"1,124.14",GENEVA ROAD LIMITED,SOCIAL SERVICES RESIDENTIAL,Adult Social Care & Health,Personal Budget - Third Party,A61019
Royal Borough of Kingston,01/11/2023,90284926,"1,285.71",GENEVA ROAD LIMITED,SOCIAL SERVICES RESIDENTIAL,Adult Social Care & Health,Personal Budget - Third Party,A61019
Royal Borough of Kingston,01/11/2023,90284927,"3,176.74",GENEVA ROAD LIMITED,SOCIAL SERVICES RESIDENTIAL,Adult Social Care & Health,Personal Budget - Third Party,A61019
Royal Borough of Kingston,01/11/2023,90284928,"7,821.43",GENEVA ROAD LIMITED,SOCIAL SERVICES RESIDENTIAL,Adult Social Care & Health,Personal Budget - Third Party,A61019
Royal Borough of Kingston,06/11/2023,90284948,864.00,GENEVA ROAD LIMITED,SOCIAL SERVICES RESIDENTIAL,Adult Social Care & Health,Personal Budget - Third Party,A61019
Royal Borough of Kingston,06/11/2023,90284969,"2,054.80",GENEVA ROAD LIMITED,SOCIAL SERVICES RESIDENTIAL,Adult Social Care & Health,Personal Budget - Third Party,A61019
Royal Borough of Kingston,06/11/2023,90284970,"1,080.00",GENEVA ROAD LIMITED,SOCIAL SERVICES RESIDENTIAL,Adult Social Care & Health,Personal Budget - Third Party,A61019
Royal Borough of Kingston,01/11/2023,90284979,428.57,GENEVA ROAD LIMITED,SOCIAL SERVICES RESIDENTIAL,Adult Social Care & Health,Personal Budget - Third Party,A61019
Royal Borough of Kingston,01/11/2023,90284981,642.86,GENEVA ROAD LIMITED,SOCIAL SERVICES RESIDENTIAL,Adult Social Care & Health,Personal Budget - Third Party,A61019
Royal Borough of Kingston,06/11/2023,90284982,672.48,GENEVA ROAD LIMITED,SOCIAL SERVICES RESIDENTIAL,Adult Social Care & Health,Personal Budget - Third Party,A61019
Royal Borough of Kingston,06/11/2023,90284983,648.00,GENEVA ROAD LIMITED,SOCIAL SERVICES RESIDENTIAL,Adult Social Care & Health,Personal Budget - Third Party,A61019
Royal Borough of Kingston,01/11/2023,90284984,"1,071.43",GENEVA ROAD LIMITED,SOCIAL SERVICES RESIDENTIAL,Adult Social Care & Health,Personal Budget - Third Party,A61019
Royal Borough of Kingston,06/11/2023,90284985,"1,868.00",GENEVA ROAD LIMITED,SOCIAL SERVICES RESIDENTIAL,Adult Social Care & Health,Personal Budget - Third Party,A61019
Royal Borough of Kingston,06/11/2023,90284986,"1,080.00",GENEVA ROAD LIMITED,SOCIAL SERVICES RESIDENTIAL,Adult Social Care & Health,Personal Budget - Third Party,A61019
Royal Borough of Kingston,06/11/2023,90285007,"1,360.97",GENEVA ROAD LIMITED,SOCIAL SERVICES RESIDENTIAL,Adult Social Care & Health,Personal Budget - Third Party,A61019
Royal Borough of Kingston,06/11/2023,90285008,655.72,GENEVA ROAD LIMITED,SOCIAL SERVICES RESIDENTIAL,Adult Social Care & Health,Personal Budget - Third Party,A61019
Royal Borough of Kingston,06/11/2023,90285009,-524.57,GENEVA ROAD LIMITED,SOCIAL SERVICES RESIDENTIAL,Adult Social Care & Health,Personal Budget - Third Party,A61019
Royal Borough of Kingston,06/11/2023,90285010,"2,241.60",GENEVA ROAD LIMITED,SOCIAL SERVICES RESIDENTIAL,Adult Social Care & Health,Personal Budget - Third Party,A61019
Royal Borough of Kingston,06/11/2023,90285011,"1,080.00",GENEVA ROAD LIMITED,SOCIAL SERVICES RESIDENTIAL,Adult Social Care & Health,Personal Budget - Third Party,A61019
Royal Borough of Kingston,06/11/2023,90285025,971.36,GENEVA ROAD LIMITED,SOCIAL SERVICES RESIDENTIAL,Adult Social Care & Health,Personal Budget - Third Party,A61019
Royal Borough of Kingston,01/11/2023,90285040,857.14,GENEVA ROAD LIMITED,SOCIAL SERVICES RESIDENTIAL,Adult Social Care & Health,Personal Budget - Third Party,A61019
Royal Borough of Kingston,06/11/2023,90285041,864.00,GENEVA ROAD LIMITED,SOCIAL SERVICES RESIDENTIAL,Adult Social Care & Health,Personal Budget - Third Party,A61019
Royal Borough of Kingston,01/11/2023,90285043,642.86,GENEVA ROAD LIMITED,SOCIAL SERVICES RESIDENTIAL,Adult Social Care & Health,Personal Budget - Third Party,A61019
Royal Borough of Kingston,06/11/2023,90285044,648.00,GENEVA ROAD LIMITED,SOCIAL SERVICES RESIDENTIAL,Adult Social Care & Health,Personal Budget - Third Party,A61019
Royal Borough of Kingston,01/11/2023,90285060,490.54,GENEVA ROAD LIMITED,SOCIAL SERVICES RESIDENTIAL,Adult Social Care & Health,Personal Budget - Third Party,A61019
Royal Borough of Kingston,01/11/2023,90285079,642.86,GENEVA ROAD LIMITED,SOCIAL SERVICES RESIDENTIAL,Adult Social Care & Health,Personal Budget - Third Party,A61019
Royal Borough of Kingston,06/11/2023,90285080,540.00,GENEVA ROAD LIMITED,SOCIAL SERVICES RESIDENTIAL,Adult Social Care & Health,Personal Budget - Third Party,A61019
Royal Borough of Kingston,01/11/2023,90284125,"3,506.61",GEORGIAN HOUSE NURSING HOME,SOCIAL SERVICES RESIDENTIAL,Adult Social Care & Health,Independent Placements,A56006
Royal Borough of Kingston,09/11/2023,90281014,500.00,REDACTED - PERSONAL DATA,GRANTS & EX GRATIA PAYMENTS,Adult Social Care & Health,"Grants, Contributions & Donations",A47005
Royal Borough of Kingston,25/10/2023,70057641,"2,406.30",Glasdon UK Limited,OPERATIONAL EQUIPMENT/MATERIAL,Corporate & Communities,Equipment And Materials Purchase,A40000
Royal Borough of Kingston,30/10/2023,70057758,"36,944.06",Glendale Countryside Ltd,CONSTRUCTION INDUSTRY,Corporate & Communities,Infrastructure Assets - Purchase & Enhancement,C12001
Royal Borough of Kingston,30/10/2023,70057759,"38,170.55",Glendale Countryside Ltd,CONSTRUCTION INDUSTRY,Corporate & Communities,Infrastructure Assets - Purchase & Enhancement,C12001
Royal Borough of Kingston,30/10/2023,70057760,"23,892.72",Glendale Countryside Ltd,CONSTRUCTION INDUSTRY,Corporate & Communities,Infrastructure Assets - Purchase & Enhancement,C12001
Royal Borough of Kingston,30/10/2023,70057762,"1,876.90",Glendale Countryside Ltd,CONSTRUCTION INDUSTRY,Housing Revenue Account,Miscellaneous Expenses,A49000
Royal Borough of Kingston,30/10/2023,70057764,"146,691.66",Glendale Countryside Ltd,CONSTRUCTION INDUSTRY,Corporate & Communities,Grounds Maintenance Contract,A28000
Royal Borough of Kingston,30/10/2023,70057765,"1,676.18",Glendale Countryside Ltd,CONSTRUCTION INDUSTRY,Corporate & Communities,Grounds Maintenance Contract,A28000
Royal Borough of Kingston,30/10/2023,70058806,"4,499.15",Glendale Countryside Ltd,CONSTRUCTION INDUSTRY,Corporate & Communities,Professional Fees,A44066
Royal Borough of Kingston,23/10/2023,90279062,630.27,Global Homecare,SOCIAL SERVICES-HOME CARE,Adult Social Care & Health,Homecare - new framework,A56127
Royal Borough of Kingston,23/10/2023,90279251,567.24,Global Homecare,SOCIAL SERVICES-HOME CARE,Adult Social Care & Health,Homecare - new framework,A56127
Royal Borough of Kingston,23/10/2023,90279479,"1,764.75",Global Homecare,SOCIAL SERVICES-HOME CARE,Adult Social Care & Health,Homecare - new framework,A56127
Royal Borough of Kingston,23/10/2023,90279494,"1,512.64",Global Homecare,SOCIAL SERVICES-HOME CARE,Adult Social Care & Health,Homecare - new framework,A56127
Royal Borough of Kingston,30/10/2023,90281568,630.27,Global Homecare,SOCIAL SERVICES-HOME CARE,Adult Social Care & Health,Homecare - new framework,A56127
Royal Borough of Kingston,30/10/2023,90281740,567.24,Global Homecare,SOCIAL SERVICES-HOME CARE,Adult Social Care & Health,Homecare - new framework,A56127
Royal Borough of Kingston,30/10/2023,90282009,"1,764.75",Global Homecare,SOCIAL SERVICES-HOME CARE,Adult Social Care & Health,Homecare - new framework,A56127
Royal Borough of Kingston,30/10/2023,90282026,"1,512.64",Global Homecare,SOCIAL SERVICES-HOME CARE,Adult Social Care & Health,Homecare - new framework,A56127
Royal Borough of Kingston,06/11/2023,90282422,630.27,Global Homecare,SOCIAL SERVICES-HOME CARE,Adult Social Care & Health,Homecare - new framework,A56127
Royal Borough of Kingston,06/11/2023,90282617,693.29,Global Homecare,SOCIAL SERVICES-HOME CARE,Adult Social Care & Health,Homecare - new framework,A56127
Royal Borough of Kingston,06/11/2023,90282650,567.24,Global Homecare,SOCIAL SERVICES-HOME CARE,Adult Social Care & Health,Homecare - new framework,A56127
Royal Borough of Kingston,06/11/2023,90282866,"1,764.75",Global Homecare,SOCIAL SERVICES-HOME CARE,Adult Social Care & Health,Homecare - new framework,A56127
Royal Borough of Kingston,06/11/2023,90282881,"1,512.64",Global Homecare,SOCIAL SERVICES-HOME CARE,Adult Social Care & Health,Homecare - new framework,A56127
Royal Borough of Kingston,13/11/2023,90285998,630.27,Global Homecare,SOCIAL SERVICES-HOME CARE,Adult Social Care & Health,Homecare - new framework,A56127
Royal Borough of Kingston,13/11/2023,90286258,567.24,Global Homecare,SOCIAL SERVICES-HOME CARE,Adult Social Care & Health,Homecare - new framework,A56127
Royal Borough of Kingston,13/11/2023,90286838,"1,764.75",Global Homecare,SOCIAL SERVICES-HOME CARE,Adult Social Care & Health,Homecare - new framework,A56127
Royal Borough of Kingston,13/11/2023,90286853,"1,512.64",Global Homecare,SOCIAL SERVICES-HOME CARE,Adult Social Care & Health,Homecare - new framework,A56127
Royal Borough of Kingston,01/11/2023,90280968,"4,539.29",Gold Care Homes,SOCIAL SERVICES RESIDENTIAL,Adult Social Care & Health,Independent Placements,A56006
Royal Borough of Kingston,01/11/2023,90280969,"4,392.86",Gold Care Homes,SOCIAL SERVICES RESIDENTIAL,Adult Social Care & Health,Independent Placements,A56006
Royal Borough of Kingston,01/11/2023,90280970,"4,539.29",Gold Care Homes,SOCIAL SERVICES RESIDENTIAL,Adult Social Care & Health,Independent Placements,A56006
Royal Borough of Kingston,01/11/2023,90284035,"4,092.73",Gold Care Homes,SOCIAL SERVICES RESIDENTIAL,Adult Social Care & Health,Independent Placements,A56006
Royal Borough of Kingston,01/11/2023,90284070,"5,571.43",Gold Care Homes,SOCIAL SERVICES RESIDENTIAL,Adult Social Care & Health,Independent Placements,A56006
Royal Borough of Kingston,01/11/2023,90284071,"6,000.00",Gold Care Homes,SOCIAL SERVICES RESIDENTIAL,Adult Social Care & Health,Independent Placements,A56006
Royal Borough of Kingston,01/11/2023,90284083,"3,783.81",Gold Care Homes,SOCIAL SERVICES RESIDENTIAL,Adult Social Care & Health,Independent Placements,A56006
Royal Borough of Kingston,01/11/2023,90284098,"4,318.29",Gold Care Homes,SOCIAL SERVICES RESIDENTIAL,Adult Social Care & Health,Independent Placements,A56006
Royal Borough of Kingston,01/11/2023,90284193,"6,000.00",Gold Care Homes,SOCIAL SERVICES RESIDENTIAL,Adult Social Care & Health,Independent Placements,A56006
Royal Borough of Kingston,01/11/2023,90284196,"5,464.29",Gold Care Homes,SOCIAL SERVICES RESIDENTIAL,Adult Social Care & Health,Independent Placements,A56006
Royal Borough of Kingston,01/11/2023,90284197,"4,318.29",Gold Care Homes,SOCIAL SERVICES RESIDENTIAL,Adult Social Care & Health,Independent Placements,A56006
Royal Borough of Kingston,01/11/2023,90284198,"4,318.29",Gold Care Homes,SOCIAL SERVICES RESIDENTIAL,Adult Social Care & Health,Independent Placements,A56006
Royal Borough of Kingston,01/11/2023,90284223,"4,188.94",Gold Care Homes,SOCIAL SERVICES RESIDENTIAL,Adult Social Care & Health,Independent Placements,A56006
Royal Borough of Kingston,01/11/2023,90284226,"4,352.10",Gold Care Homes,SOCIAL SERVICES RESIDENTIAL,Adult Social Care & Health,Independent Placements,A56006
Royal Borough of Kingston,01/11/2023,90284227,"4,608.73",Gold Care Homes,SOCIAL SERVICES RESIDENTIAL,Adult Social Care & Health,Independent Placements,A56006
Royal Borough of Kingston,01/11/2023,90284238,"6,857.14",Gold Care Homes,SOCIAL SERVICES RESIDENTIAL,Adult Social Care & Health,Independent Placements,A56006
Royal Borough of Kingston,01/11/2023,90284241,"4,392.86",Gold Care Homes,SOCIAL SERVICES RESIDENTIAL,Adult Social Care & Health,Independent Placements,A56006
Royal Borough of Kingston,01/11/2023,90284245,"4,318.29",Gold Care Homes,SOCIAL SERVICES RESIDENTIAL,Adult Social Care & Health,Independent Placements,A56006
Royal Borough of Kingston,01/11/2023,90284246,"4,608.73",Gold Care Homes,SOCIAL SERVICES RESIDENTIAL,Adult Social Care & Health,Independent Placements,A56006
Royal Borough of Kingston,01/11/2023,90284266,"4,608.73",Gold Care Homes,SOCIAL SERVICES RESIDENTIAL,Adult Social Care & Health,Independent Placements,A56006
Royal Borough of Kingston,01/11/2023,90284269,"4,318.29",Gold Care Homes,SOCIAL SERVICES RESIDENTIAL,Adult Social Care & Health,Independent Placements,A56006
Royal Borough of Kingston,01/11/2023,90284331,"3,600.00",Gold Care Homes,SOCIAL SERVICES RESIDENTIAL,Adult Social Care & Health,Independent Placements,A56006
Royal Borough of Kingston,01/11/2023,90284896,"1,446.60",Gold Care Homes,SOCIAL SERVICES RESIDENTIAL,Adult Social Care & Health,Personal Budget - Third Party,A61019
Royal Borough of Kingston,01/11/2023,90284901,603.86,Gold Care Homes,SOCIAL SERVICES RESIDENTIAL,Adult Social Care & Health,Personal Budget - Third Party,A61019
Royal Borough of Kingston,06/11/2023,90284919,750.00,Gold Care Homes,SOCIAL SERVICES RESIDENTIAL,Adult Social Care & Health,Personal Budget - Third Party,A61019
Royal Borough of Kingston,23/10/2023,90279010,567.24,Goldsmith Personnel Ltd,SOCIAL SERVICES - OTHER,Adult Social Care & Health,Homecare - new framework,A56127
Royal Borough of Kingston,23/10/2023,90279064,504.21,Goldsmith Personnel Ltd,SOCIAL SERVICES - OTHER,Adult Social Care & Health,Homecare - new framework,A56127
Royal Borough of Kingston,30/10/2023,90281511,567.24,Goldsmith Personnel Ltd,SOCIAL SERVICES - OTHER,Adult Social Care & Health,Homecare - new framework,A56127
Royal Borough of Kingston,30/10/2023,90281570,504.21,Goldsmith Personnel Ltd,SOCIAL SERVICES - OTHER,Adult Social Care & Health,Homecare - new framework,A56127
Royal Borough of Kingston,06/11/2023,90282376,567.24,Goldsmith Personnel Ltd,SOCIAL SERVICES - OTHER,Adult Social Care & Health,Homecare - new framework,A56127
Royal Borough of Kingston,06/11/2023,90282424,504.21,Goldsmith Personnel Ltd,SOCIAL SERVICES - OTHER,Adult Social Care & Health,Homecare - new framework,A56127
Royal Borough of Kingston,01/11/2023,90285586,"50,909.95",Goldsmith Personnel Ltd,SOCIAL SERVICES - OTHER,Adult Social Care & Health,Personal Budget - Third Party,A61019
Royal Borough of Kingston,01/11/2023,90285587,"17,051.43",Goldsmith Personnel Ltd,SOCIAL SERVICES - OTHER,Adult Social Care & Health,Personal Budget - Third Party,A61019
Royal Borough of Kingston,01/11/2023,90285588,"17,342.95",Goldsmith Personnel Ltd,SOCIAL SERVICES - OTHER,Adult Social Care & Health,Personal Budget - Third Party,A61019
Royal Borough of Kingston,01/11/2023,90285589,"17,342.95",Goldsmith Personnel Ltd,SOCIAL SERVICES - OTHER,Adult Social Care & Health,Personal Budget - Third Party,A61019
Royal Borough of Kingston,01/11/2023,90285590,"16,783.50",Goldsmith Personnel Ltd,SOCIAL SERVICES - OTHER,Adult Social Care & Health,Personal Budget - Third Party,A61019
Royal Borough of Kingston,01/11/2023,90285591,"17,342.95",Goldsmith Personnel Ltd,SOCIAL SERVICES - OTHER,Adult Social Care & Health,Personal Budget - Third Party,A61019
Royal Borough of Kingston,01/11/2023,90285592,"16,783.50",Goldsmith Personnel Ltd,SOCIAL SERVICES - OTHER,Adult Social Care & Health,Personal Budget - Third Party,A61019
Royal Borough of Kingston,01/09/2023,70057808,"1,500.00",REDACTED - PERSONAL DATA,TRAINING,Adult Social Care & Health,Staff Development And Training,A15022
Royal Borough of Kingston,01/09/2023,70057811,"10,500.00",REDACTED - PERSONAL DATA,TRAINING,Adult Social Care & Health,Staff Development And Training,A15022
Royal Borough of Kingston,26/10/2023,70057745,"3,000.00",Graham Spicer Table Tennis Club,SUNDRY SUPPLIER - FINANCE,Corporate & Communities,Payments to Voluntary Organisations,A54005
Royal Borough of Kingston,14/08/2023,70052300,"4,000.00",GRAND AVENUE PRIMARY AND NURSERY SCHOOL,SCHOOL FUNDS,Childrens Services,MSF Claims Teaching Staff - Internal Trading,A46107
Royal Borough of Kingston,14/08/2023,70052301,"2,200.00",GRAND AVENUE PRIMARY AND NURSERY SCHOOL,SCHOOL FUNDS,Childrens Services,MSF Claims Support Staff - Internal Trading,A46108
Royal Borough of Kingston,14/08/2023,70052302,"4,000.00",GRAND AVENUE PRIMARY AND NURSERY SCHOOL,SCHOOL FUNDS,Childrens Services,MSF Claims Teaching Staff - Internal Trading,A46107
Royal Borough of Kingston,14/08/2023,70052303,"3,200.00",GRAND AVENUE PRIMARY AND NURSERY SCHOOL,SCHOOL FUNDS,Childrens Services,MSF Claims Teaching Staff - Internal Trading,A46107
Royal Borough of Kingston,03/11/2023,90278828,"234,458.44",GRAND AVENUE PRIMARY AND NURSERY SCHOOL,SCHOOL FUNDS,Schools,Miscellaneous Expenses,A49000
Royal Borough of Kingston,09/11/2023,90280920,725.40,GRAND AVENUE PRIMARY AND NURSERY SCHOOL,SCHOOL FUNDS,Schools,Miscellaneous Expenses,A49000
Royal Borough of Kingston,14/11/2023,90281038,"3,480.00",GRAND AVENUE PRIMARY AND NURSERY SCHOOL,SCHOOL FUNDS,Schools,Miscellaneous Expenses,A49000
Royal Borough of Kingston,14/11/2023,90281067,"1,712.81",GRAND AVENUE PRIMARY AND NURSERY SCHOOL,SCHOOL FUNDS,Schools,Miscellaneous Expenses,A49000
Royal Borough of Kingston,14/11/2023,90281102,"32,737.50",GRAND AVENUE PRIMARY AND NURSERY SCHOOL,SCHOOL FUNDS,Schools,Miscellaneous Expenses,A49000
Royal Borough of Kingston,14/11/2023,90281103,"3,795.00",GRAND AVENUE PRIMARY AND NURSERY SCHOOL,SCHOOL FUNDS,Schools,Miscellaneous Expenses,A49000
Royal Borough of Kingston,14/11/2023,90281227,"4,644.00",GRAND AVENUE PRIMARY AND NURSERY SCHOOL,SCHOOL FUNDS,Schools,Early Years Contingency,A60030
Royal Borough of Kingston,09/11/2023,90280925,781.20,GREEN LANE PRIMARY & NURSERY SCHOOL,SCHOOL FUNDS,Schools,Miscellaneous Expenses,A49000
Royal Borough of Kingston,14/11/2023,90281240,"2,851.80",GREEN LANE PRIMARY & NURSERY SCHOOL,SCHOOL FUNDS,Schools,Early Years Contingency,A60030
Royal Borough of Kingston,01/11/2023,90284332,"11,268.43",Grove Care Partnership Limited,SOCIAL SERVICES RESIDENTIAL,Adult Social Care & Health,Independent Placements,A56006
Royal Borough of Kingston,01/11/2023,90284348,"10,507.97",Grove Care Partnership Limited,SOCIAL SERVICES RESIDENTIAL,Adult Social Care & Health,Independent Placements,A56006
Royal Borough of Kingston,01/11/2023,90284367,"15,418.11",Grove Care Partnership Limited,SOCIAL SERVICES RESIDENTIAL,Adult Social Care & Health,Independent Placements,A56006
Royal Borough of Kingston,01/11/2023,90284432,"10,217.83",Grove Care Partnership Limited,SOCIAL SERVICES RESIDENTIAL,Adult Social Care & Health,Independent Placements,A56006
Royal Borough of Kingston,01/11/2023,90284489,"15,263.27",Grove Care Partnership Limited,SOCIAL SERVICES RESIDENTIAL,Adult Social Care & Health,Independent Placements,A56006
Royal Borough of Kingston,01/11/2023,90284499,"11,910.73",Grove Care Partnership Limited,SOCIAL SERVICES RESIDENTIAL,Adult Social Care & Health,Independent Placements,A56006
Royal Borough of Kingston,01/11/2023,90284502,"9,783.90",Grove Care Partnership Limited,SOCIAL SERVICES RESIDENTIAL,Adult Social Care & Health,Independent Placements,A56006
Royal Borough of Kingston,01/11/2023,90284513,"7,878.26",Grove Care Partnership Limited,SOCIAL SERVICES RESIDENTIAL,Adult Social Care & Health,Independent Placements,A56006
Royal Borough of Kingston,01/11/2023,90284522,"11,720.57",Grove Care Partnership Limited,SOCIAL SERVICES RESIDENTIAL,Adult Social Care & Health,Independent Placements,A56006
Royal Borough of Kingston,01/11/2023,90284523,"11,711.27",Grove Care Partnership Limited,SOCIAL SERVICES RESIDENTIAL,Adult Social Care & Health,Independent Placements,A56006
Royal Borough of Kingston,23/11/2023,90283798,"1,500.00",REDACTED - PERSONAL DATA,PLS LANDLORDS,Place,PSL Payments To Landlords,A22031
Royal Borough of Kingston,05/10/2023,70057173,"10,413.00",GUY'S AND ST THOMAS' NHS FOUNDATION TRUST,SOCIAL SERVICES - OTHER,Corporate & Communities,Clinical Waste,A56054
Royal Borough of Kingston,23/11/2023,90283506,"1,296.67",REDACTED - PERSONAL DATA,PLS LANDLORDS,Place,PSL Payments To Landlords,A22031
Royal Borough of Kingston,09/11/2023,90280984,550.00,REDACTED - PERSONAL DATA,GRANTS & EX GRATIA PAYMENTS,Adult Social Care & Health,"Grants, Contributions & Donations",A47005
Royal Borough of Kingston,07/11/2023,90279642,500.00,REDACTED - PERSONAL DATA,GRANTS & EX GRATIA PAYMENTS,Adult Social Care & Health,"Grants, Contributions & Donations",A47005
Royal Borough of Kingston,01/11/2023,90280956,"4,200.00",HAMPTON CARE LIMITED,SOCIAL SERVICES RESIDENTIAL,Adult Social Care & Health,Independent Placements,A56006
Royal Borough of Kingston,01/11/2023,90280957,"6,200.00",HAMPTON CARE LIMITED,SOCIAL SERVICES RESIDENTIAL,Adult Social Care & Health,Independent Placements,A56006
Royal Borough of Kingston,01/11/2023,90280958,"2,600.00",HAMPTON CARE LIMITED,SOCIAL SERVICES RESIDENTIAL,Adult Social Care & Health,Independent Placements,A56006
Royal Borough of Kingston,01/11/2023,90284164,"4,452.86",HAMPTON CARE LIMITED,SOCIAL SERVICES RESIDENTIAL,Adult Social Care & Health,Independent Placements,A56006
Royal Borough of Kingston,23/11/2023,90283640,"1,550.00",Haycorn Limited,PLS LANDLORDS,Place,PSL Payments To Landlords,A22031
Royal Borough of Kingston,23/11/2023,90283909,"1,150.00",Haycorn Limited,PLS LANDLORDS,Place,PSL Payments To Landlords,A22031
Royal Borough of Kingston,23/11/2023,90283910,"1,150.00",Haycorn Limited,PLS LANDLORDS,Place,PSL Payments To Landlords,A22031
Royal Borough of Kingston,23/11/2023,90283911,"1,150.00",Haycorn Limited,PLS LANDLORDS,Place,PSL Payments To Landlords,A22031
Royal Borough of Kingston,05/09/2023,70058074,"3,200.00",HAYMARKET MEDIA GROUP LTD,SUBSCRIPTIONS & PUBLICATIONS,Place,Subscriptions,A47010
Royal Borough of Kingston,01/11/2023,90284467,"8,987.87",HAZELDENE UK LIMITED,OPERATIONAL EQUIPMENT/MATERIAL,Adult Social Care & Health,Independent Placements,A56006
Royal Borough of Kingston,01/11/2023,90285053,917.27,HAZELDENE UK LTD,SOCIAL SERVICES RESIDENTIAL,Adult Social Care & Health,Personal Budget - Third Party,A61019
Royal Borough of Kingston,01/11/2023,90284165,"4,071.43",Hazelgrove Nursing Home,SOCIAL SERVICES RESIDENTIAL,Adult Social Care & Health,Independent Placements,A56006
Royal Borough of Kingston,01/11/2023,90284230,"4,898.14",HAZELWOOD HOUSE,SOCIAL SERVICES RESIDENTIAL,Adult Social Care & Health,Independent Placements,A56006
Royal Borough of Kingston,01/11/2023,90283958,"3,783.43",HC-1 LIMITED ASHGROVE CARE HOME,SOCIAL SERVICES RESIDENTIAL,Adult Social Care & Health,Independent Placements,A56006
Royal Borough of Kingston,10/10/2023,70058645,"34,000.00",HEALTHWATCH KINGSTON UPON THAMES,CHARITIES & VOLUNTARY ORGNS,Adult Social Care & Health,Payments to Voluntary Organisations,A54005
Royal Borough of Kingston,01/11/2023,90284338,"13,805.96",HEATHCOTES (SOUTHERN) LTD,SOCIAL SERVICES RESIDENTIAL,Adult Social Care & Health,Independent Placements,A56006
Royal Borough of Kingston,01/11/2023,90284364,"10,286.10",HEATHCOTES (SOUTHERN) LTD,SOCIAL SERVICES RESIDENTIAL,Adult Social Care & Health,Independent Placements,A56006
Royal Borough of Kingston,01/11/2023,90284366,"12,208.80",HEATHCOTES (SOUTHERN) LTD,SOCIAL SERVICES RESIDENTIAL,Adult Social Care & Health,Independent Placements,A56006
Royal Borough of Kingston,01/11/2023,90284216,"5,142.86",Heatherwood Nursing Home Ltd,SOCIAL SERVICES RESIDENTIAL,Adult Social Care & Health,Independent Placements,A56006
Royal Borough of Kingston,23/11/2023,90283795,"1,094.34",REDACTED - PERSONAL DATA,PLS LANDLORDS,Place,PSL Payments To Landlords,A22031
Royal Borough of Kingston,18/10/2023,70057202,"2,080.00",Heena's Events Limited,SUNDRY SUPPLIER - FINANCE,Chief Executives,Catering,A41000
Royal Borough of Kingston,09/11/2023,90281013,500.00,REDACTED - PERSONAL DATA,CHARITIES & VOLUNTARY ORGNS,Adult Social Care & Health,"Grants, Contributions & Donations",A47005
Royal Borough of Kingston,16/10/2023,90278968,567.24,HELMAR CARE AND COMMUNITY SERVICES LTD,SOCIAL SERVICES DAY CARE,Adult Social Care & Health,Homecare - new framework,A56127
Royal Borough of Kingston,16/10/2023,90279319,693.29,HELMAR CARE AND COMMUNITY SERVICES LTD,SOCIAL SERVICES DAY CARE,Adult Social Care & Health,Homecare - new framework,A56127
Royal Borough of Kingston,16/10/2023,90279465,648.27,HELMAR CARE AND COMMUNITY SERVICES LTD,SOCIAL SERVICES DAY CARE,Adult Social Care & Health,Homecare - new framework,A56127
Royal Borough of Kingston,16/10/2023,90279466,550.73,HELMAR CARE AND COMMUNITY SERVICES LTD,SOCIAL SERVICES DAY CARE,Adult Social Care & Health,Homecare - new framework,A56127
Royal Borough of Kingston,23/10/2023,90279547,"1,673.93",HELMAR CARE AND COMMUNITY SERVICES LTD,SOCIAL SERVICES DAY CARE,Adult Social Care & Health,Personal Budget - Third Party,A61019
Royal Borough of Kingston,23/10/2023,90281467,567.24,HELMAR CARE AND COMMUNITY SERVICES LTD,SOCIAL SERVICES DAY CARE,Adult Social Care & Health,Homecare - new framework,A56127
Royal Borough of Kingston,23/10/2023,90281811,693.29,HELMAR CARE AND COMMUNITY SERVICES LTD,SOCIAL SERVICES DAY CARE,Adult Social Care & Health,Homecare - new framework,A56127
Royal Borough of Kingston,23/10/2023,90281984,648.27,HELMAR CARE AND COMMUNITY SERVICES LTD,SOCIAL SERVICES DAY CARE,Adult Social Care & Health,Homecare - new framework,A56127
Royal Borough of Kingston,23/10/2023,90281985,550.73,HELMAR CARE AND COMMUNITY SERVICES LTD,SOCIAL SERVICES DAY CARE,Adult Social Care & Health,Homecare - new framework,A56127
Royal Borough of Kingston,30/10/2023,90282080,"1,673.93",HELMAR CARE AND COMMUNITY SERVICES LTD,SOCIAL SERVICES DAY CARE,Adult Social Care & Health,Personal Budget - Third Party,A61019
Royal Borough of Kingston,30/10/2023,90282327,567.24,HELMAR CARE AND COMMUNITY SERVICES LTD,SOCIAL SERVICES DAY CARE,Adult Social Care & Health,Homecare - new framework,A56127
Royal Borough of Kingston,30/10/2023,90282713,693.29,HELMAR CARE AND COMMUNITY SERVICES LTD,SOCIAL SERVICES DAY CARE,Adult Social Care & Health,Homecare - new framework,A56127
Royal Borough of Kingston,30/10/2023,90282851,648.27,HELMAR CARE AND COMMUNITY SERVICES LTD,SOCIAL SERVICES DAY CARE,Adult Social Care & Health,Homecare - new framework,A56127
Royal Borough of Kingston,30/10/2023,90282852,550.73,HELMAR CARE AND COMMUNITY SERVICES LTD,SOCIAL SERVICES DAY CARE,Adult Social Care & Health,Homecare - new framework,A56127
Royal Borough of Kingston,06/11/2023,90283323,"1,673.93",HELMAR CARE AND COMMUNITY SERVICES LTD,SOCIAL SERVICES DAY CARE,Adult Social Care & Health,Personal Budget - Third Party,A61019
Royal Borough of Kingston,06/11/2023,90285872,567.24,HELMAR CARE AND COMMUNITY SERVICES LTD,SOCIAL SERVICES DAY CARE,Adult Social Care & Health,Homecare - new framework,A56127
Royal Borough of Kingston,06/11/2023,90285874,567.24,HELMAR CARE AND COMMUNITY SERVICES LTD,SOCIAL SERVICES DAY CARE,Adult Social Care & Health,Homecare - new framework,A56127
Royal Borough of Kingston,06/11/2023,90286433,693.29,HELMAR CARE AND COMMUNITY SERVICES LTD,SOCIAL SERVICES DAY CARE,Adult Social Care & Health,Homecare - new framework,A56127
Royal Borough of Kingston,06/11/2023,90286582,648.27,HELMAR CARE AND COMMUNITY SERVICES LTD,SOCIAL SERVICES DAY CARE,Adult Social Care & Health,Homecare - new framework,A56127
Royal Borough of Kingston,06/11/2023,90286583,550.73,HELMAR CARE AND COMMUNITY SERVICES LTD,SOCIAL SERVICES DAY CARE,Adult Social Care & Health,Homecare - new framework,A56127
Royal Borough of Kingston,13/11/2023,90287024,"1,673.93",HELMAR CARE AND COMMUNITY SERVICES LTD,SOCIAL SERVICES DAY CARE,Adult Social Care & Health,Personal Budget - Third Party,A61019
Royal Borough of Kingston,01/11/2023,90284126,"3,249.21",JESYEM MEDICARE LTD,SOCIAL SERVICES RESIDENTIAL,Adult Social Care & Health,Independent Placements,A56006
Royal Borough of Kingston,01/11/2023,90284132,"4,230.21",JESYEM MEDICARE LTD,SOCIAL SERVICES RESIDENTIAL,Adult Social Care & Health,Independent Placements,A56006
Royal Borough of Kingston,01/11/2023,90284154,"4,230.21",JESYEM MEDICARE LTD,SOCIAL SERVICES RESIDENTIAL,Adult Social Care & Health,Independent Placements,A56006
Royal Borough of Kingston,01/11/2023,90284967,558.09,HERTFORDSHIRE COUNTY COUNCIL,SOCIAL SERVICES RESIDENTIAL,Adult Social Care & Health,Personal Budget - Third Party,A61019
Royal Borough of Kingston,01/11/2023,90284923,903.27,HF TRUST LTD ,SOCIAL SERVICES DAY CARE,Adult Social Care & Health,Personal Budget - Third Party,A61019
Royal Borough of Kingston,01/11/2023,90284924,"2,258.19",HF TRUST LTD ,SOCIAL SERVICES DAY CARE,Adult Social Care & Health,Personal Budget - Third Party,A61019
Royal Borough of Kingston,01/11/2023,90284935,642.86,HF TRUST LTD ,SOCIAL SERVICES DAY CARE,Adult Social Care & Health,Personal Budget - Third Party,A61019
Royal Borough of Kingston,01/11/2023,90284938,964.29,HF TRUST LTD ,SOCIAL SERVICES DAY CARE,Adult Social Care & Health,Personal Budget - Third Party,A61019
Royal Borough of Kingston,01/11/2023,90284959,642.86,HF TRUST LTD ,SOCIAL SERVICES DAY CARE,Adult Social Care & Health,Personal Budget - Third Party,A61019
Royal Borough of Kingston,01/11/2023,90284963,857.14,HF TRUST LTD ,SOCIAL SERVICES DAY CARE,Adult Social Care & Health,Personal Budget - Third Party,A61019
Royal Borough of Kingston,01/11/2023,90284965,857.14,HF TRUST LTD ,SOCIAL SERVICES DAY CARE,Adult Social Care & Health,Personal Budget - Third Party,A61019
Royal Borough of Kingston,01/11/2023,90284976,"2,311.71",HF TRUST LTD ,SOCIAL SERVICES DAY CARE,Adult Social Care & Health,Personal Budget - Third Party,A61019
Royal Borough of Kingston,01/11/2023,90284978,857.14,HF TRUST LTD ,SOCIAL SERVICES DAY CARE,Adult Social Care & Health,Personal Budget - Third Party,A61019
Royal Borough of Kingston,01/11/2023,90284989,"1,071.43",HF TRUST LTD ,SOCIAL SERVICES DAY CARE,Adult Social Care & Health,Personal Budget - Third Party,A61019
Royal Borough of Kingston,01/11/2023,90285002,"1,278.77",HF TRUST LTD ,SOCIAL SERVICES DAY CARE,Adult Social Care & Health,Personal Budget - Third Party,A61019
Royal Borough of Kingston,01/11/2023,90285006,642.86,HF TRUST LTD ,SOCIAL SERVICES DAY CARE,Adult Social Care & Health,Personal Budget - Third Party,A61019
Royal Borough of Kingston,01/11/2023,90285013,"1,941.84",HF TRUST LTD ,SOCIAL SERVICES DAY CARE,Adult Social Care & Health,Personal Budget - Third Party,A61019
Royal Borough of Kingston,01/11/2023,90285014,"1,071.43",HF TRUST LTD ,SOCIAL SERVICES DAY CARE,Adult Social Care & Health,Personal Budget - Third Party,A61019
Royal Borough of Kingston,01/11/2023,90285017,844.38,HF TRUST LTD ,SOCIAL SERVICES DAY CARE,Adult Social Care & Health,Personal Budget - Third Party,A61019
Royal Borough of Kingston,01/11/2023,90285020,642.86,HF TRUST LTD ,SOCIAL SERVICES DAY CARE,Adult Social Care & Health,Personal Budget - Third Party,A61019
Royal Borough of Kingston,01/11/2023,90285021,"1,941.84",HF TRUST LTD ,SOCIAL SERVICES DAY CARE,Adult Social Care & Health,Personal Budget - Third Party,A61019
Royal Borough of Kingston,01/11/2023,90285022,844.38,HF TRUST LTD ,SOCIAL SERVICES DAY CARE,Adult Social Care & Health,Personal Budget - Third Party,A61019
Royal Borough of Kingston,01/11/2023,90285027,642.86,HF TRUST LTD ,SOCIAL SERVICES DAY CARE,Adult Social Care & Health,Personal Budget - Third Party,A61019
Royal Borough of Kingston,01/11/2023,90285042,"1,071.43",HF TRUST LTD ,SOCIAL SERVICES DAY CARE,Adult Social Care & Health,Personal Budget - Third Party,A61019
Royal Borough of Kingston,01/11/2023,90285047,857.14,HF TRUST LTD ,SOCIAL SERVICES DAY CARE,Adult Social Care & Health,Personal Budget - Third Party,A61019
Royal Borough of Kingston,01/11/2023,90285048,642.86,HF TRUST LTD ,SOCIAL SERVICES DAY CARE,Adult Social Care & Health,Personal Budget - Third Party,A61019
Royal Borough of Kingston,01/11/2023,90285050,642.86,HF TRUST LTD ,SOCIAL SERVICES DAY CARE,Adult Social Care & Health,Personal Budget - Third Party,A61019
Royal Borough of Kingston,01/11/2023,90285054,"1,071.43",HF TRUST LTD ,SOCIAL SERVICES DAY CARE,Adult Social Care & Health,Personal Budget - Third Party,A61019
Royal Borough of Kingston,01/11/2023,90285055,857.14,HF TRUST LTD ,SOCIAL SERVICES DAY CARE,Adult Social Care & Health,Personal Budget - Third Party,A61019
Royal Borough of Kingston,01/11/2023,90285056,"1,071.43",HF TRUST LTD ,SOCIAL SERVICES DAY CARE,Adult Social Care & Health,Personal Budget - Third Party,A61019
Royal Borough of Kingston,01/11/2023,90285061,"1,071.43",HF TRUST LTD ,SOCIAL SERVICES DAY CARE,Adult Social Care & Health,Personal Budget - Third Party,A61019
Royal Borough of Kingston,01/11/2023,90285064,642.86,HF TRUST LTD ,SOCIAL SERVICES DAY CARE,Adult Social Care & Health,Personal Budget - Third Party,A61019
Royal Borough of Kingston,01/11/2023,90285069,"1,071.43",HF TRUST LTD ,SOCIAL SERVICES DAY CARE,Adult Social Care & Health,Personal Budget - Third Party,A61019
Royal Borough of Kingston,01/11/2023,90285072,"1,071.43",HF TRUST LTD ,SOCIAL SERVICES DAY CARE,Adult Social Care & Health,Personal Budget - Third Party,A61019
Royal Borough of Kingston,01/11/2023,90285077,642.86,HF TRUST LTD ,SOCIAL SERVICES DAY CARE,Adult Social Care & Health,Personal Budget - Third Party,A61019
Royal Borough of Kingston,23/11/2023,90283779,"1,450.00",REDACTED - PERSONAL DATA,PLS LANDLORDS,Place,PSL Payments To Landlords,A22031
Royal Borough of Kingston,23/11/2023,90283548,"1,093.50",REDACTED - PERSONAL DATA,PLS LANDLORDS,Place,PSL Payments To Landlords,A22031
Royal Borough of Kingston,23/11/2023,90283604,"1,314.00",REDACTED - PERSONAL DATA,PLS LANDLORDS,Place,PSL Payments To Landlords,A22031
Royal Borough of Kingston,23/11/2023,90283731,"1,093.50",REDACTED - PERSONAL DATA,PLS LANDLORDS,Place,PSL Payments To Landlords,A22031
Royal Borough of Kingston,23/11/2023,90283732,833.33,REDACTED - PERSONAL DATA,PLS LANDLORDS,Place,PSL Payments To Landlords,A22031
Royal Borough of Kingston,23/11/2023,90283923,"1,047.00",REDACTED - PERSONAL DATA,PLS LANDLORDS,Place,PSL Payments To Landlords,A22031
Royal Borough of Kingston,23/11/2023,90283924,"1,047.00",REDACTED - PERSONAL DATA,PLS LANDLORDS,Place,PSL Payments To Landlords,A22031
Royal Borough of Kingston,01/11/2023,90284906,"9,750.00",Hives Lodges Ltd,SOCIAL SERVICES - OTHER,Adult Social Care & Health,Personal Budget - Third Party,A61019
Royal Borough of Kingston,31/10/2023,70058197,910.00,HML INDEPENDENT MEDICAL ADVICE LTD,LEGAL & PROFESSIONAL SERVICES,Place,Professional Fees,A44066
Royal Borough of Kingston,31/08/2023,70058198,910.00,HML INDEPENDENT MEDICAL ADVICE LTD,LEGAL & PROFESSIONAL SERVICES,Place,Professional Fees,A44066
Royal Borough of Kingston,16/11/2023,70058812,"1,200.00",Holdings Matrix Limited,SUNDRY SUPPLIER - FINANCE,Housing Revenue Account,Vandalism Damage,A20029
Royal Borough of Kingston,31/10/2023,70058470,"7,500.00",HOME CONNECTIONS LETTINGS LTD,ACCOMMODATION - OTHER,Housing Revenue Account,Other Supplies & Services,A44291
Royal Borough of Kingston,23/11/2023,90283813,"1,314.00",HOMEPATH MANAGEMENT LTD,PLS LANDLORDS,Place,PSL Payments To Landlords,A22031
Royal Borough of Kingston,23/11/2023,90283814,"1,400.00",HOMEPATH MANAGEMENT LTD,PLS LANDLORDS,Place,PSL Payments To Landlords,A22031
Royal Borough of Kingston,09/11/2023,90280911,651.00,HOOK PRE-SCHOOL ,ACADEMIC INSTNS - OTHER,Schools,PVI Providers,A60014
Royal Borough of Kingston,14/11/2023,90281151,846.72,HOOK PRE-SCHOOL ,ACADEMIC INSTNS - OTHER,Schools,Early Years Contingency,A60030
Royal Borough of Kingston,14/11/2023,90281200,"1,251.60",HOOK PRE-SCHOOL ,ACADEMIC INSTNS - OTHER,Schools,Early Years Contingency,A60030
Royal Borough of Kingston,01/11/2023,90284102,"2,613.62",ACTIVE NEURO LTD,SOCIAL SERVICES RESIDENTIAL,Adult Social Care & Health,Independent Placements,A56006
